Vendor,Category,Amount Paid,Payment Date
 The Dashcam Store LLC,Capital Purchases,148071.25,00:00.0
10 S. Riverside Property Owner LLC,Rental Expense,11535.23,00:00.0
10 S. Riverside Property Owner LLC,Rental Expense,810.75,00:00.0
10 S. Riverside Property Owner LLC,Rental Expense,11535.23,00:00.0
10 S. Riverside Property Owner LLC,Rental Expense,810.75,00:00.0
10 S. Riverside Property Owner LLC,Rental Expense,11535.23,00:00.0
10 S. Riverside Property Owner LLC,Rental Expense,12598.8,00:00.0
10 S. Riverside Property Owner LLC,Rental Expense,1621.5,00:00.0
10 S. Riverside Property Owner LLC,Rental Expense,11535.23,00:00.0
10 S. Riverside Property Owner LLC,Rental Expense,11535.23,00:00.0
10 S. Riverside Property Owner LLC,Rental Expense,810.75,00:00.0
10 S. Riverside Property Owner LLC,Rental Expense,11881.29,00:00.0
10 S. Riverside Property Owner LLC,Rental Expense,11881.29,00:00.0
10 S. Riverside Property Owner LLC,Rental Expense,1702.58,00:00.0
10 S. Riverside Property Owner LLC,Rental Expense,11881.29,00:00.0
10 S. Riverside Property Owner LLC,Rental Expense,11881.29,00:00.0
10 S. Riverside Property Owner LLC,Rental Expense,11881.29,00:00.0
10 S. Riverside Property Owner LLC,Rental Expense,11881.29,00:00.0
10 S. Riverside Property Owner LLC,Rental Expense,2553.87,00:00.0
22Vets LLC,Capital Purchases,147125,00:00.0
22Vets LLC,Capital Purchases,9954.56,00:00.0
22Vets LLC,Capital Purchases,770303.43,00:00.0
22Vets LLC,Services,57290.54,00:00.0
22Vets LLC,Capital Purchases,367812.5,00:00.0
22Vets LLC,Capital Purchases,6468,00:00.0
22Vets LLC,Capital Purchases,84505.9,00:00.0
22Vets LLC,Capital Purchases,124075.75,00:00.0
22Vets LLC,Services,116317.16,00:00.0
22Vets LLC,Capital Purchases,2090443.31,00:00.0
22Vets LLC,Capital Purchases,23086.56,00:00.0
2423 Partners  LLC,Rental Expense,16586.39,00:00.0
4 Imprint,Services,3594.2,00:00.0
4 Imprint,Materials,705.94,00:00.0
4 Imprint,Services,336.32,00:00.0
4 Imprint,Services,1498.28,00:00.0
4 Imprint,Services,1559.65,00:00.0
401 Properties Lp C/O: Eric Janssen  Receiver #133,Rental Expense,22424.02,00:00.0
401 Properties Lp C/O: Eric Janssen  Receiver #133,Rental Expense,4410,00:00.0
401 Properties Lp C/O: Eric Janssen  Receiver #133,Rental Expense,3840,00:00.0
401 Properties Lp C/O: Eric Janssen  Receiver #133,Rental Expense,22424.02,00:00.0
401 Properties Lp C/O: Eric Janssen  Receiver #133,Rental Expense,3885,00:00.0
401 Properties Lp C/O: Eric Janssen  Receiver #133,Rental Expense,22424.02,00:00.0
401 Properties Lp C/O: Eric Janssen  Receiver #133,Rental Expense,3138.98,00:00.0
401 Properties Lp C/O: Eric Janssen  Receiver #133,Rental Expense,4725,00:00.0
401 Properties Lp C/O: Eric Janssen  Receiver #133,Rental Expense,6475,00:00.0
401 Properties Lp C/O: Eric Janssen  Receiver #133,Rental Expense,21218.71,00:00.0
401 Properties Lp C/O: Eric Janssen  Receiver #133,Rental Expense,21827.88,00:00.0
401 Properties Lp C/O: Eric Janssen  Receiver #133,Rental Expense,6450,00:00.0
401 Properties Lp C/O: Eric Janssen  Receiver #133,Rental Expense,7900,00:00.0
401 Properties Lp C/O: Eric Janssen  Receiver #133,Rental Expense,21827.88,00:00.0
401 Properties Lp C/O: Eric Janssen  Receiver #133,Rental Expense,21827.88,00:00.0
401 Properties Lp C/O: Eric Janssen  Receiver #133,Rental Expense,6475,00:00.0
401 Properties Lp C/O: Eric Janssen  Receiver #133,Rental Expense,21827.88,00:00.0
401 Properties Lp C/O: Eric Janssen  Receiver #133,Rental Expense,7000,00:00.0
401 Properties Lp C/O: Eric Janssen  Receiver #133,Rental Expense,26237.88,00:00.0
401 Properties Lp C/O: Eric Janssen  Receiver #133,Rental Expense,52265.76,00:00.0
440 South Lasalle St.(Chicago)Owner Llc,Rental Expense,135167.17,00:00.0
440 South Lasalle St.(Chicago)Owner Llc,Rental Expense,123184.43,00:00.0
440 South Lasalle St.(Chicago)Owner Llc,Rental Expense,139990.51,00:00.0
440 South Lasalle St.(Chicago)Owner Llc,Rental Expense,393912.14,00:00.0
440 South Lasalle St.(Chicago)Owner Llc,Rental Expense,137817.31,00:00.0
440 South Lasalle St.(Chicago)Owner Llc,Rental Expense,123165.01,00:00.0
440 South Lasalle St.(Chicago)Owner Llc,Rental Expense,246330.02,00:00.0
A & L Relay Services Llc,Services,8175,00:00.0
A & L Relay Services Llc,Services,5950,00:00.0
A & L Relay Services Llc,Services,8715,00:00.0
A-1 Equipment Sales,Services,4646.26,00:00.0
A-1 Equipment Sales,Services,523.72,00:00.0
A-Alert Exterminating Service,Services,75,00:00.0
A-Alert Exterminating Service,Services,465,00:00.0
A-Alert Exterminating Service,Services,150,00:00.0
A-Alert Exterminating Service,Services,75,00:00.0
A-Alert Exterminating Service,Services,210,00:00.0
A-Alert Exterminating Service,Services,30,00:00.0
A-Alert Exterminating Service,Services,45,00:00.0
A-Alert Exterminating Service,Services,45,00:00.0
A-Alert Exterminating Service,Services,45,00:00.0
A-Alert Exterminating Service,Services,165,00:00.0
A-Alert Exterminating Service,Services,40,00:00.0
A-Alert Exterminating Service,Services,60,00:00.0
A-Alert Exterminating Service,Services,210,00:00.0
A-Alert Exterminating Service,Services,80,00:00.0
A-Alert Exterminating Service,Services,75,00:00.0
A-Alert Exterminating Service,Services,45,00:00.0
A-Alert Exterminating Service,Services,75,00:00.0
A-Alert Exterminating Service,Services,115,00:00.0
A-Alert Exterminating Service,Services,75,00:00.0
A-Alert Exterminating Service,Services,75,00:00.0
A-Alert Exterminating Service,Services,745,00:00.0
A-Alert Exterminating Service,Services,30,00:00.0
A-Alert Exterminating Service,Services,315,00:00.0
A-Alert Exterminating Service,Services,280,00:00.0
A-Alert Exterminating Service,Services,210,00:00.0
A-Alert Exterminating Service,Services,60,00:00.0
A-Alert Exterminating Service,Services,30,00:00.0
A-Alert Exterminating Service,Services,75,00:00.0
A-Alert Exterminating Service,Services,30,00:00.0
A-Alert Exterminating Service,Services,360,00:00.0
A-Alert Exterminating Service,Services,45,00:00.0
A-Alert Exterminating Service,Services,75,00:00.0
A-Alert Exterminating Service,Services,75,00:00.0
A-Alert Exterminating Service,Services,80,00:00.0
A-Alert Exterminating Service,Services,75,00:00.0
A-Alert Exterminating Service,Services,130,00:00.0
A-Alert Exterminating Service,Services,75,00:00.0
A-Alert Exterminating Service,Services,40,00:00.0
A-Alert Exterminating Service,Services,420,00:00.0
A-Alert Exterminating Service,Services,75,00:00.0
A-Alert Exterminating Service,Services,315,00:00.0
A-Alert Exterminating Service,Services,75,00:00.0
A-Alert Exterminating Service,Services,75,00:00.0
A-Alert Exterminating Service,Services,420,00:00.0
A-Alert Exterminating Service,Services,115,00:00.0
A-Alert Exterminating Service,Services,210,00:00.0
A-Alert Exterminating Service,Services,75,00:00.0
A-Alert Exterminating Service,Services,45,00:00.0
A-Alert Exterminating Service,Services,75,00:00.0
A-Alert Exterminating Service,Services,385,00:00.0
A-Alert Exterminating Service,Services,40,00:00.0
A-Alert Exterminating Service,Services,75,00:00.0
A-Alert Exterminating Service,Services,150,00:00.0
A-Alert Exterminating Service,Services,30,00:00.0
A-Alert Exterminating Service,Services,435,00:00.0
A-Alert Exterminating Service,Services,155,00:00.0
A-Alert Exterminating Service,Services,150,00:00.0
A-Alert Exterminating Service,Services,75,00:00.0
A-Alert Exterminating Service,Services,75,00:00.0
A-Alert Exterminating Service,Services,45,00:00.0
A-Alert Exterminating Service,Services,140,00:00.0
A-Alert Exterminating Service,Services,135,00:00.0
A-Alert Exterminating Service,Services,385,00:00.0
A-Alert Exterminating Service,Services,85,00:00.0
A-Alert Exterminating Service,Services,30,00:00.0
A-Alert Exterminating Service,Services,30,00:00.0
A-Alert Exterminating Service,Services,75,00:00.0
A-Alert Exterminating Service,Services,115,00:00.0
A-Alert Exterminating Service,Services,75,00:00.0
A-Alert Exterminating Service,Services,360,00:00.0
A-Alert Exterminating Service,Services,75,00:00.0
A-Alert Exterminating Service,Services,200,00:00.0
A-Alert Exterminating Service,Services,460,00:00.0
A-Alert Exterminating Service,Services,45,00:00.0
A-Alert Exterminating Service,Services,75,00:00.0
A-Alert Exterminating Service,Services,75,00:00.0
A-Alert Exterminating Service,Services,220,00:00.0
A-Alert Exterminating Service,Services,50,00:00.0
A-Alert Exterminating Service,Services,75,00:00.0
A-Alert Exterminating Service,Services,45,00:00.0
A-Alert Exterminating Service,Services,75,00:00.0
A-Alert Exterminating Service,Services,75,00:00.0
A-Alert Exterminating Service,Services,115,00:00.0
A-Alert Exterminating Service,Services,75,00:00.0
A-Alert Exterminating Service,Services,30,00:00.0
A-Alert Exterminating Service,Services,35,00:00.0
A-Alert Exterminating Service,Services,105,00:00.0
A-Alert Exterminating Service,Services,75,00:00.0
A-Alert Exterminating Service,Services,75,00:00.0
A-Alert Exterminating Service,Services,560,00:00.0
A-Alert Exterminating Service,Services,75,00:00.0
A-Alert Exterminating Service,Services,45,00:00.0
A-Alert Exterminating Service,Services,190,00:00.0
A-Alert Exterminating Service,Services,435,00:00.0
A-Alert Exterminating Service,Services,1335,00:00.0
A-Alert Exterminating Service,Services,95,00:00.0
A-Alert Exterminating Service,Services,190,00:00.0
A-Alert Exterminating Service,Services,75,00:00.0
A-Alert Exterminating Service,Services,165,00:00.0
A-Alert Exterminating Service,Services,285,00:00.0
A-Alert Exterminating Service,Services,95,00:00.0
A-Alert Exterminating Service,Services,95,00:00.0
A-Alert Exterminating Service,Services,1335,00:00.0
A-Alert Exterminating Service,Services,95,00:00.0
A-Alert Exterminating Service,Services,296.67,00:00.0
A-Alert Exterminating Service,Services,165,00:00.0
A-Alert Exterminating Service,Services,296.67,00:00.0
A-Alert Exterminating Service,Services,95,00:00.0
A-Alert Exterminating Service,Services,435,00:00.0
A-Alert Exterminating Service,Services,1335,00:00.0
A-Alert Exterminating Service,Services,296.67,00:00.0
A-Alert Exterminating Service,Services,95,00:00.0
A-Alert Exterminating Service,Services,95,00:00.0
A-Alert Exterminating Service,Services,95,00:00.0
A-Alert Exterminating Service,Services,95,00:00.0
A-Alert Exterminating Service,Services,165,00:00.0
A-Alert Exterminating Service,Services,201.67,00:00.0
A-Alert Exterminating Service,Services,815,00:00.0
A-Alert Exterminating Service,Services,1335,00:00.0
A-Alert Exterminating Service,Services,95,00:00.0
A-Alert Exterminating Service,Services,815,00:00.0
A-Alert Exterminating Service,Services,95,00:00.0
A-Alert Exterminating Service,Services,201.67,00:00.0
A-Alert Exterminating Service,Services,165,00:00.0
A-Alert Exterminating Service,Services,190,00:00.0
A-Alert Exterminating Service,Services,95,00:00.0
A-Alert Exterminating Service,Services,1335,00:00.0
A-Alert Exterminating Service,Services,201.67,00:00.0
A-Alert Exterminating Service,Services,95,00:00.0
A-Alert Exterminating Service,Services,910,00:00.0
A-Alert Exterminating Service,Services,380,00:00.0
A-Alert Exterminating Service,Services,165,00:00.0
A-Alert Exterminating Service,Services,190,00:00.0
A-Alert Exterminating Service,Services,1335,00:00.0
Aaron Gulbransen,Services,41.79,00:00.0
Aaron Gulbransen,Services,59.74,00:00.0
Aaron Gulbransen,Services,630.59,00:00.0
Aaron Gulbransen,Services,241.5,00:00.0
Aaron Gulbransen,Services,273.92,00:00.0
Aaron Gulbransen,Services,18.91,00:00.0
Aaron Gulbransen,Services,30,00:00.0
Aaron Gulbransen,Services,47.03,00:00.0
Aaron Gulbransen,Services,60,00:00.0
Aaron Gulbransen,Services,395.73,00:00.0
Aaron Gulbransen,Services,45,00:00.0
Aaron Gulbransen,Services,80.37,00:00.0
Aaron Gulbransen,Services,47.03,00:00.0
Aaron Gulbransen,Services,160,00:00.0
Aaron Gulbransen,Services,47.03,00:00.0
Aaron Gulbransen,Services,45,00:00.0
Aaron Gulbransen,Services,576.36,00:00.0
Aaron Gulbransen,Services,185,00:00.0
Aaron Gulbransen,Services,127.99,00:00.0
Aaron Gulbransen,Services,128.24,00:00.0
Aaron Gulbransen,Services,47.03,00:00.0
Aaron Gulbransen,Services,160,00:00.0
Aaron Gulbransen,Services,45,00:00.0
Aaron Gulbransen,Services,73.46,00:00.0
Aaron Gulbransen,Services,454.96,00:00.0
Aaron Maertins,Services,11.92,00:00.0
Aaron Maertins,Services,57.43,00:00.0
Aaron Maertins,Services,1079.04,00:00.0
Aaron Maertins,Services,948,00:00.0
Aaron Schultz,Services,115.08,00:00.0
Aaron Schultz,Services,168.34,00:00.0
Aaron Schultz,Services,93.08,00:00.0
Aaron Willie,Services,78.6,00:00.0
Aaron Willie,Services,39.3,00:00.0
Aaron Willie,Services,120.52,00:00.0
"ABM Industry Groups, LLC",Services,26439.76,00:00.0
"ABM Industry Groups, LLC",Services,5748.08,00:00.0
"ABM Industry Groups, LLC",Services,40949.72,00:00.0
"ABM Industry Groups, LLC",Services,17796.08,00:00.0
"ABM Industry Groups, LLC",Services,33460.46,00:00.0
"ABM Industry Groups, LLC",Services,114215.22,00:00.0
"ABM Industry Groups, LLC",Services,8528.97,00:00.0
"ABM Industry Groups, LLC",Services,39834.96,00:00.0
"ABM Industry Groups, LLC",Services,43194.99,00:00.0
"ABM Industry Groups, LLC",Services,50241.42,00:00.0
"ABM Industry Groups, LLC",Services,-1916.64,00:00.0
"ABM Industry Groups, LLC",Services,114767.16,00:00.0
"ABM Industry Groups, LLC",Services,54048.23,00:00.0
"ABM Industry Groups, LLC",Services,8337.9,00:00.0
"ABM Industry Groups, LLC",Services,57628.1,00:00.0
"ABM Industry Groups, LLC",Services,215527.72,00:00.0
"ABM Industry Groups, LLC",Services,50827.06,00:00.0
"ABM Industry Groups, LLC",Services,674.56,00:00.0
"ABM Industry Groups, LLC",Services,5310.88,00:00.0
"ABM Industry Groups, LLC",Services,5310.88,00:00.0
"ABM Industry Groups, LLC",Services,1159.4,00:00.0
"ABM Industry Groups, LLC",Services,57572.22,00:00.0
"ABM Industry Groups, LLC",Services,50827.06,00:00.0
"ABM Industry Groups, LLC",Services,166777.2,00:00.0
"ABM Industry Groups, LLC",Services,55592.4,00:00.0
"ABM Industry Groups, LLC",Services,57156.34,00:00.0
"ABM Industry Groups, LLC",Services,21380.64,00:00.0
"ABM Industry Groups, LLC",Services,50241.39,00:00.0
"ABM Industry Groups, LLC",Services,55592.4,00:00.0
"ABM Industry Groups, LLC",Services,58202.55,00:00.0
"ABM Industry Groups, LLC",Services,113736.23,00:00.0
Abraham R. Castellano,Services,37.5,00:00.0
Abraham R. Castellano,Services,115,00:00.0
Abraham R. Castellano,Services,138.86,00:00.0
Abraham R. Castellano,Services,159.82,00:00.0
Abraham R. Castellano,Services,39.3,00:00.0
Abraham R. Castellano,Services,39.3,00:00.0
Abraham R. Castellano,Services,99.56,00:00.0
"Absolent, Inc.",Materials,769.02,00:00.0
"Absolent, Inc.",Services,241.18,00:00.0
Abt,Materials,279,00:00.0
Abt,Materials,261,00:00.0
Abt,Materials,399.99,00:00.0
Abt,Materials,764,00:00.0
Abt,Materials,630,00:00.0
Abt,Materials,979,00:00.0
Abt,Materials,674,00:00.0
Abt,Materials,375,00:00.0
Abt,Materials,209,00:00.0
Abt,Materials,2244,00:00.0
Abt,Materials,199,00:00.0
Abt,Materials,375.1,00:00.0
Abt,Materials,319,00:00.0
Abt,Materials,1668,00:00.0
Abt,Materials,359.95,00:00.0
Abt,Materials,1869.95,00:00.0
Abt,Materials,2849,00:00.0
Abt,Materials,1390,00:00.0
Abt,Materials,522,00:00.0
Abt,Materials,261,00:00.0
Abt,Materials,748,00:00.0
Abt,Materials,261,00:00.0
Abt,Materials,189.99,00:00.0
Abt,Materials,1330,00:00.0
Abt,Materials,260,00:00.0
Abt,Services,1289,00:00.0
Abt,Materials,454,00:00.0
Abt,Materials,959,00:00.0
Abt,Materials,365,00:00.0
Abt,Materials,667,00:00.0
Abt,Materials,1662,00:00.0
Abt,Materials,229.99,00:00.0
Abt,Materials,249,00:00.0
Abt,Materials,380,00:00.0
Abt,Materials,289.99,00:00.0
Abt,Materials,289.99,00:00.0
Abt,Materials,2408,00:00.0
Abt,Materials,600,00:00.0
Abt,Materials,1396,00:00.0
Aca Compliance Services  Inc.,Claims & Insurance,13640,00:00.0
Acacia Financial Group  Inc.,Services,8318.75,00:00.0
Acacia Financial Group  Inc.,Services,11368.75,00:00.0
Acacia Financial Group  Inc.,Services,5968.75,00:00.0
Acacia Financial Group  Inc.,Services,5968.75,00:00.0
Acacia Financial Group  Inc.,Services,5218.75,00:00.0
Acacia Financial Group  Inc.,Services,5981.96,00:00.0
Acacia Financial Group  Inc.,Services,1675,00:00.0
Acacia Financial Group  Inc.,Services,1943.75,00:00.0
"AccuSource Electronics, Inc.",Materials,2230,00:00.0
"AccuSource Electronics, Inc.",Services,54.7,00:00.0
Aci Worldwide Corp.,Services,29895,00:00.0
Aci Worldwide Corp.,Services,29895,00:00.0
Aci Worldwide Corp.,Services,59790,00:00.0
Aci Worldwide Corp.,Services,29895,00:00.0
Aci Worldwide Corp.,Services,29895,00:00.0
Aci Worldwide Corp.,Services,29895,00:00.0
Aci Worldwide Corp.,Services,59790,00:00.0
Aci Worldwide Corp.,Services,29895,00:00.0
Aci Worldwide Corp.,Services,29895,00:00.0
Aci Worldwide Corp.,Services,59790,00:00.0
Active Transportation Alliance,Services,2500,00:00.0
Active Transportation Alliance,Services,2500,00:00.0
Adam Farence,Services,293.44,00:00.0
Adam Farence,Services,103.64,00:00.0
Adam Farence,Services,161.13,00:00.0
Adam Gibson,Services,77.94,00:00.0
Adam Gibson,Services,49.58,00:00.0
Adam Gibson,Services,1124.8,00:00.0
Adam Gibson,Services,288,00:00.0
Adam R. Page,Services,49.39,00:00.0
Adam R. Page,Services,502.18,00:00.0
Adam R. Page,Services,147.5,00:00.0
Adam Singer,Services,45,00:00.0
Adam Singer,Services,419.27,00:00.0
Adam Singer,Services,58.03,00:00.0
Adam Singer,Services,147.5,00:00.0
Adams & Westlake  Ltd.,Materials,1264,00:00.0
Adams & Westlake  Ltd.,Materials,761.04,00:00.0
Adams & Westlake  Ltd.,Materials,21379.9,00:00.0
Adams & Westlake  Ltd.,Materials,10720.4,00:00.0
Adams & Westlake  Ltd.,Materials,10639.4,00:00.0
Adams & Westlake  Ltd.,Materials,1668,00:00.0
Adams & Westlake  Ltd.,Materials,9358.65,00:00.0
Adams & Westlake  Ltd.,Materials,1393.35,00:00.0
Adams & Westlake  Ltd.,Materials,10350.45,00:00.0
Adams & Westlake  Ltd.,Materials,547,00:00.0
Adams & Westlake  Ltd.,Materials,6900.3,00:00.0
Adams & Westlake  Ltd.,Materials,2028.81,00:00.0
Adams & Westlake  Ltd.,Materials,5628.2,00:00.0
Adams & Westlake  Ltd.,Materials,10695.6,00:00.0
Adams & Westlake  Ltd.,Materials,7977.18,00:00.0
Adams & Westlake  Ltd.,Materials,13369.5,00:00.0
Adams & Westlake  Ltd.,Materials,1375,00:00.0
Adams & Westlake  Ltd.,Materials,14186.58,00:00.0
Adams & Westlake  Ltd.,Materials,10849.23,00:00.0
Adams & Westlake  Ltd.,Materials,7574.06,00:00.0
Adams & Westlake  Ltd.,Materials,16608,00:00.0
Adams & Westlake  Ltd.,Materials,1459.7,00:00.0
Adams & Westlake  Ltd.,Materials,29298.2,00:00.0
Adams & Westlake  Ltd.,Materials,2166,00:00.0
Adams & Westlake  Ltd.,Materials,1698.66,00:00.0
Adams & Westlake  Ltd.,Materials,1274,00:00.0
Adams & Westlake  Ltd.,Materials,21015.32,00:00.0
Adams & Westlake  Ltd.,Materials,2703,00:00.0
Adams & Westlake  Ltd.,Materials,422.94,00:00.0
Adaptive Micro Systems Inc.,Capital Purchases,94350,00:00.0
Adedamola Tobi Olatunji,Services,18.73,00:00.0
Adedamola Tobi Olatunji,Services,71.14,00:00.0
Adedamola Tobi Olatunji,Services,1469.43,00:00.0
Adedamola Tobi Olatunji,Services,311.5,00:00.0
Adorama Inc,Services,15851.08,00:00.0
Adorama Inc,Services,3815.92,00:00.0
Adorama Inc,Services,1298,00:00.0
"ADR Systems Of America, LLC",Claims & Insurance,6700,00:00.0
"ADR Systems Of America, LLC",Claims & Insurance,8789,00:00.0
Adriana S. Mena,Services,16.16,00:00.0
Adriana S. Mena,Services,17,00:00.0
"Advent Systems, LLC dba Allied Universal Technology Services",Services,39521.8,00:00.0
"Advent Systems, LLC dba Allied Universal Technology Services",Services,39521.8,00:00.0
Aecom Technical Services  Inc.,Capital Purchases,51843.04,00:00.0
Aecom Technical Services  Inc.,Capital Purchases,46348.69,00:00.0
Aecom Technical Services  Inc.,Capital Purchases,36686.11,00:00.0
Aecom Technical Services  Inc.,Capital Purchases,46050.11,00:00.0
Aecom Technical Services  Inc.,Capital Purchases,45743.07,00:00.0
Aecom Technical Services  Inc.,Capital Purchases,40562.98,00:00.0
Aecom Technical Services  Inc.,Capital Purchases,44030.36,00:00.0
Aecom Technical Services  Inc.,Capital Purchases,29367.23,00:00.0
Aecom Technical Services  Inc.,Capital Purchases,33727.85,00:00.0
Aecom Technical Services  Inc.,Capital Purchases,26747.28,00:00.0
Aecom Technical Services  Inc.,Capital Purchases,40832.68,00:00.0
Afc International  Inc.,Materials,3856,00:00.0
Afc International  Inc.,Services,1350,00:00.0
Afc International  Inc.,Services,9012.1,00:00.0
Afc International  Inc.,Services,380,00:00.0
Afc International  Inc.,Materials,12026.31,00:00.0
Afc International  Inc.,Services,438,00:00.0
Ahmad Abusini,Services,6886.9,00:00.0
Ahmad Abusini,Services,1246.21,00:00.0
Ahmad Abusini,Services,2595,00:00.0
Ahmad Abusini,Services,161.04,00:00.0
Ahmad Abusini,Services,379.5,00:00.0
Ahmad Abusini,Services,16,00:00.0
Ahmad Abusini,Services,51.28,00:00.0
Ahmad Abusini,Services,2822.7,00:00.0
Ahmad Abusini,Services,6967.2,00:00.0
Aircraft & Commercial Enterprises Inc.,Materials,3895,00:00.0
Aircraft & Commercial Enterprises Inc.,Capital Purchases,1797,00:00.0
Aircraft & Commercial Enterprises Inc.,Capital Purchases,1198,00:00.0
Aircraft & Commercial Enterprises Inc.,Materials,1198,00:00.0
Aircraft & Commercial Enterprises Inc.,Capital Purchases,1797,00:00.0
Aircraft & Commercial Enterprises Inc.,Capital Purchases,2396,00:00.0
Aircraft & Commercial Enterprises Inc.,Capital Purchases,599,00:00.0
Aircraft & Commercial Enterprises Inc.,Materials,159,00:00.0
Aircraft & Commercial Enterprises Inc.,Capital Purchases,7188,00:00.0
Aircraft & Commercial Enterprises Inc.,Capital Purchases,2995,00:00.0
Aircraft & Commercial Enterprises Inc.,Capital Purchases,599,00:00.0
Aircraft & Commercial Enterprises Inc.,Capital Purchases,599,00:00.0
Aircraft & Commercial Enterprises Inc.,Capital Purchases,10183,00:00.0
Airgas,Services,32.95,00:00.0
Airgas,Materials,412.94,00:00.0
Aka Comp Solutions  Inc.,Materials,10288.44,00:00.0
Aka Comp Solutions  Inc.,Capital Purchases,134005,00:00.0
Aka Comp Solutions  Inc.,Services,79062.5,00:00.0
Aka Comp Solutions  Inc.,Capital Purchases,75768.16,00:00.0
Aka Comp Solutions  Inc.,Services,151536.32,00:00.0
Aka Comp Solutions  Inc.,Services,101467.38,00:00.0
Aka Comp Solutions  Inc.,Services,51090.2,00:00.0
"Al Warren Oil Co., Inc.",Materials,88638,00:00.0
"Al Warren Oil Co., Inc.",Materials,60817.5,00:00.0
"Al Warren Oil Co., Inc.",Materials,30115.5,00:00.0
"Al Warren Oil Co., Inc.",Materials,52083.75,00:00.0
"Al Warren Oil Co., Inc.",Materials,30600,00:00.0
"Al Warren Oil Co., Inc.",Materials,49712.25,00:00.0
"Al Warren Oil Co., Inc.",Materials,63750,00:00.0
"Al Warren Oil Co., Inc.",Materials,12758.92,00:00.0
"Al Warren Oil Co., Inc.",Materials,169694.85,00:00.0
"Al Warren Oil Co., Inc.",Materials,76500,00:00.0
"Al Warren Oil Co., Inc.",Materials,83015.25,00:00.0
"Al Warren Oil Co., Inc.",Materials,77940.75,00:00.0
"Al Warren Oil Co., Inc.",Materials,70933.35,00:00.0
"Al Warren Oil Co., Inc.",Materials,81740.25,00:00.0
"Al Warren Oil Co., Inc.",Materials,13203.9,00:00.0
"Al Warren Oil Co., Inc.",Materials,82989.75,00:00.0
"Al Warren Oil Co., Inc.",Materials,81676.5,00:00.0
"Al Warren Oil Co., Inc.",Materials,81141,00:00.0
"Al Warren Oil Co., Inc.",Materials,83201.4,00:00.0
"Al Warren Oil Co., Inc.",Materials,81077.25,00:00.0
"Al Warren Oil Co., Inc.",Materials,12116.32,00:00.0
"Al Warren Oil Co., Inc.",Materials,81638.25,00:00.0
"Al Warren Oil Co., Inc.",Materials,83346.75,00:00.0
"Al Warren Oil Co., Inc.",Materials,61245.9,00:00.0
"Al Warren Oil Co., Inc.",Materials,12753.82,00:00.0
"Al Warren Oil Co., Inc.",Materials,83066.25,00:00.0
"Al Warren Oil Co., Inc.",Materials,12835.42,00:00.0
Alan B. Bakotic,Services,1172.24,00:00.0
Alan B. Bakotic,Services,355.5,00:00.0
Alan B. Bakotic,Services,73.23,00:00.0
Alan B. Bakotic,Services,3.62,00:00.0
Alan B. Bakotic,Services,259,00:00.0
Alan B. Bakotic,Services,73.23,00:00.0
Alan B. Bakotic,Services,224,00:00.0
Alan B. Bakotic,Services,166.04,00:00.0
Alan B. Bakotic,Services,11.05,00:00.0
Alan B. Bakotic,Services,96,00:00.0
Alan B. Bakotic,Services,34.45,00:00.0
Alan B. Bakotic,Services,398.28,00:00.0
Alan B. Bakotic,Services,310.5,00:00.0
Alan B. Bakotic,Services,90.52,00:00.0
Alan B. Bakotic,Services,5.3,00:00.0
Alan B. Bakotic,Services,22.39,00:00.0
Alan B. Bakotic,Services,197.5,00:00.0
Alan B. Bakotic,Services,54.3,00:00.0
Alan B. Bakotic,Services,54.3,00:00.0
Alan B. Bakotic,Services,96,00:00.0
Alan B. Bakotic,Services,7.2,00:00.0
Alan B. Bakotic,Services,83.27,00:00.0
Alan B. Bakotic,Services,224,00:00.0
Alan B. Bakotic,Services,31.64,00:00.0
Alan B. Bakotic,Services,27.85,00:00.0
Alan B. Bakotic,Services,224,00:00.0
Alan B. Bakotic,Services,31.64,00:00.0
Alan B. Bakotic,Services,379.5,00:00.0
Alan B. Bakotic,Services,7.2,00:00.0
Alan B. Bakotic,Services,108.7,00:00.0
Alan B. Bakotic,Services,310.5,00:00.0
Alan B. Bakotic,Services,54.3,00:00.0
Alan Ratliff,Services,147.5,00:00.0
Alan Ratliff,Services,344.26,00:00.0
Alan Ratliff,Services,265.5,00:00.0
Alan Ratliff,Services,62.88,00:00.0
Alan Ratliff,Services,101.41,00:00.0
Alan Ratliff,Services,513.88,00:00.0
Alan Ratliff,Services,587.95,00:00.0
Alan Ratliff,Services,65.04,00:00.0
Alan Ratliff,Services,667.28,00:00.0
Alan Ratliff,Services,265.5,00:00.0
Alan Ratliff,Services,106.22,00:00.0
Alan Ratliff,Services,1405.44,00:00.0
Alcohol & Drug Testing Services Llc,Claims & Insurance,46605.5,00:00.0
Aldon Co.,Materials,8126.01,00:00.0
Aldon Co.,Materials,2480.16,00:00.0
Aldon Co.,Services,245.96,00:00.0
Aldridge Electric  Inc.,Capital Purchases,805259.88,00:00.0
Aldridge Electric  Inc.,Capital Purchases,474126.84,00:00.0
Aldridge Electric  Inc.,Capital Purchases,1583452.26,00:00.0
ALEJANDRO MONTES,Services,120.52,00:00.0
ALEJANDRO MONTES,Services,78.6,00:00.0
ALEJANDRO MONTES,Services,39.3,00:00.0
ALEJANDRO MONTES,Services,60.26,00:00.0
ALEJANDRO MONTES,Services,60.26,00:00.0
ALEJANDRO MONTES,Services,196.5,00:00.0
ALEJANDRO MONTES,Services,157.2,00:00.0
ALEJANDRO MONTES,Services,120.52,00:00.0
ALEJANDRO MONTES,Services,39.3,00:00.0
ALEJANDRO MONTES,Services,60.26,00:00.0
ALEJANDRO MONTES,Services,78.6,00:00.0
Alejandro Reyes,Services,23.78,00:00.0
Alera Group,Services,18611.02,00:00.0
Alera Group,Services,19812.53,00:00.0
Alera Group,Services,19858.11,00:00.0
Alera Group,Services,19826.25,00:00.0
Alex Valenzuela,Services,50,00:00.0
Alex Valenzuela,Services,41.92,00:00.0
Alex Valenzuela,Services,104.8,00:00.0
Alex Valenzuela,Services,83.84,00:00.0
Alex Valenzuela,Services,52.4,00:00.0
Alex Valenzuela,Services,41.92,00:00.0
Alex Valenzuela,Services,14.41,00:00.0
Alex Valenzuela,Services,99.56,00:00.0
Alex Valenzuela,Services,74.67,00:00.0
Alexandru Vitalis,Services,37.06,00:00.0
Alexandru Vitalis,Services,224,00:00.0
Alexandru Vitalis,Services,457.55,00:00.0
Alexis Rojas,Services,39.3,00:00.0
Alexis Rojas,Services,120.52,00:00.0
Alexis Rojas,Services,60.26,00:00.0
Alexis Rojas,Services,180.78,00:00.0
Alexis Rojas,Services,78.6,00:00.0
Alexis Rojas,Services,39.3,00:00.0
Alexis Rojas,Services,78.6,00:00.0
Alexis Rojas,Services,60.26,00:00.0
Alexis Rojas,Services,120.52,00:00.0
Alexis Rojas,Services,39.3,00:00.0
Alexis Rojas,Services,138.86,00:00.0
Alexis Rojas,Services,78.6,00:00.0
Alfonso Becerra,Services,75,00:00.0
Alfred Benesch & Co.,Capital Purchases,27.59,00:00.0
Alfred Benesch & Co.,Capital Purchases,68648,00:00.0
Alfred Benesch & Co.,Capital Purchases,27005.9,00:00.0
Alfred Benesch & Co.,Capital Purchases,1220931.47,00:00.0
Alfred Benesch & Co.,Capital Purchases,483123.58,00:00.0
Alfred Benesch & Co.,Capital Purchases,130677.02,00:00.0
Alfred Benesch & Co.,Capital Purchases,105426.97,00:00.0
Alfred Benesch & Co.,Capital Purchases,107044.49,00:00.0
"Alfredo Godinez, Jr.",Services,19.78,00:00.0
Allied Hand Dryer,Materials,7350,00:00.0
Alma Cervantes,Services,21.09,00:00.0
Aloha Print Group,Services,1824,00:00.0
Aloha Print Group,Services,5956.52,00:00.0
Aloha Print Group,Services,4323,00:00.0
Aloha Print Group,Services,1750.26,00:00.0
Aloha Print Group,Services,1507.5,00:00.0
Aloha Print Group,Services,517.25,00:00.0
Aloha Print Group,Services,4532.49,00:00.0
Aloha Print Group,Services,1536.25,00:00.0
Aloha Print Group,Services,3438,00:00.0
Aloha Print Group,Services,5200,00:00.0
Aloha Print Group,Services,4517.6,00:00.0
Aloha Print Group,Services,540,00:00.0
Alstom Signaling  Inc.,Services,4386.53,00:00.0
Alstom Signaling  Inc.,Services,910.03,00:00.0
Alstom Signaling  Inc.,Services,2640,00:00.0
Alstom Signaling  Inc.,Services,10160,00:00.0
Alstom Signaling  Inc.,Services,1789.38,00:00.0
Alstom Signaling  Inc.,Services,790,00:00.0
Alstom Signaling  Inc.,Services,790,00:00.0
Alstom Signaling  Inc.,Services,2096.13,00:00.0
Alstom Signaling  Inc.,Services,5317,00:00.0
Alstom Signaling  Inc.,Services,1012.28,00:00.0
Alstom Signaling  Inc.,Services,1022.5,00:00.0
Alstom Signaling  Inc.,Services,4539.9,00:00.0
Alstom Signaling Operation  LLC,Services,3502.07,00:00.0
Alstom Signaling Operation  LLC,Services,3398.9,00:00.0
Alstom Signaling Operation  LLC,Services,3300,00:00.0
Alstom Signaling Operation  LLC,Services,800,00:00.0
Alstom Signaling Operation  LLC,Materials,7265.15,00:00.0
Alstom Signaling Operation  LLC,Services,858.9,00:00.0
Alstom Signaling Operation  LLC,Materials,191.4,00:00.0
Alstom Signaling Operation  LLC,Materials,127.6,00:00.0
Alstom Signaling Operation  LLC,Materials,16179.75,00:00.0
Alstom Signaling Operation  LLC,Services,5398.8,00:00.0
Alstom Signaling Operation  LLC,Services,555.3,00:00.0
Alstom Signaling Operation  LLC,Materials,4919.68,00:00.0
Alstom Signaling Operation  LLC,Materials,7002.48,00:00.0
Alstom Signaling Operation  LLC,Materials,7336.38,00:00.0
Alstom Signaling Operation  LLC,Materials,11484.7,00:00.0
Alstom Signaling Operation  LLC,Materials,664.65,00:00.0
Alstom Signaling Operation  LLC,Materials,2973.24,00:00.0
Alstom Signaling Operation  LLC,Materials,3030.7,00:00.0
Alstom Signaling Operation  LLC,Materials,5540.3,00:00.0
Alstom Signaling Operation  LLC,Materials,19383.52,00:00.0
Alstom Signaling Operation  LLC,Materials,5531.52,00:00.0
Alstom Signaling Operation  LLC,Materials,8424.18,00:00.0
Alstom Signaling Operation  LLC,Materials,10406.34,00:00.0
Alstom Signaling Operation  LLC,Materials,333.9,00:00.0
Alstom Signaling Operation  LLC,Materials,386.01,00:00.0
Alstom Signaling Operation  LLC,Materials,495.9,00:00.0
Alstom Signaling Operation  LLC,Materials,28871.31,00:00.0
Alstom Signaling Operation  LLC,Materials,15317.06,00:00.0
Alstom Signaling Operation  LLC,Materials,2368.17,00:00.0
Alstom Signaling Operation  LLC,Materials,1263.87,00:00.0
Alstom Signaling Operation  LLC,Materials,1982.16,00:00.0
Alstom Signaling Operation  LLC,Materials,19493.62,00:00.0
Alstom Signaling Operation  LLC,Services,1779.15,00:00.0
Alstom Signaling Operation  LLC,Services,1779.15,00:00.0
Alstom Signaling Operation  LLC,Materials,1486.62,00:00.0
Alstom Signaling Operation  LLC,Materials,12175.92,00:00.0
Alstom Signaling Operation  LLC,Materials,991.08,00:00.0
Alstom Signaling Operation  LLC,Services,4539.9,00:00.0
Alstom Signaling Operation  LLC,Materials,5450.94,00:00.0
Alstom Signaling Operation  LLC,Materials,9112.26,00:00.0
Alstom Signaling Operation  LLC,Materials,991.08,00:00.0
Alstom Signaling Operation  LLC,Materials,8321.48,00:00.0
Alstom Signaling Operation  LLC,Materials,976.52,00:00.0
Alstom Signaling Operation  LLC,Materials,8242.63,00:00.0
Alstom Signaling Operation  LLC,Capital Purchases,12000,00:00.0
Alstom Signaling Operation  LLC,Capital Purchases,48000,00:00.0
Alstom Signaling Operation  LLC,Materials,15393.05,00:00.0
Alstom Signaling Operation  LLC,Capital Purchases,41800,00:00.0
Alstom Signaling Operation  LLC,Materials,61442.11,00:00.0
Alstom Signaling Operation  LLC,Materials,2477.7,00:00.0
Alstom Signaling Operation  LLC,Materials,166.95,00:00.0
Alstom Signaling Operation  LLC,Services,14795.6,00:00.0
Alstom Signaling Operation  LLC,Services,4447.88,00:00.0
Alstom Signaling Operation  LLC,Services,1799.6,00:00.0
Alstom Signaling Operation  LLC,Materials,4459.86,00:00.0
Alstom Signaling Operation  LLC,Services,4560.36,00:00.0
Alstom Signaling Operation  LLC,Services,3302.68,00:00.0
Alstom Signaling Operation  LLC,Services,14130.97,00:00.0
Alstom Signaling Operation  LLC,Capital Purchases,4495,00:00.0
Alstom Signaling Operation  LLC,Materials,15043.89,00:00.0
Alstom Signaling Operation  LLC,Capital Purchases,162884.16,00:00.0
Alstom Signaling Operation LLC,Capital Purchases,1701.44,00:00.0
Alstom Signaling Operation LLC,Materials,3699.35,00:00.0
Alstom Signaling Operation LLC,Capital Purchases,1572.6,00:00.0
Alstom Signaling Operation LLC,Materials,739.87,00:00.0
Alstom Signaling Operation LLC,Materials,15687.21,00:00.0
Alstom Signaling Operation LLC,Capital Purchases,1572.6,00:00.0
Alstom Signaling Operation LLC,Materials,2311.4,00:00.0
Alstom Signaling Operation LLC,Capital Purchases,5554.8,00:00.0
Alstom Signaling Operation LLC,Capital Purchases,3434.3,00:00.0
Alstom Signaling Operation LLC,Capital Purchases,7265.88,00:00.0
Alstom Signaling Operation LLC,Capital Purchases,1883.44,00:00.0
Alstom Signaling Operation LLC,Capital Purchases,10299.28,00:00.0
Alstom Signaling Operation LLC,Materials,62678.22,00:00.0
Alstom Signaling Operation LLC,Capital Purchases,1883.44,00:00.0
Alstom Signaling Operation LLC,Capital Purchases,1165.65,00:00.0
Alstom Signaling Operation LLC,Capital Purchases,168709.56,00:00.0
Alstom Signaling Operation LLC,Capital Purchases,34177.06,00:00.0
Alstom Signaling Operation LLC,Materials,5918.96,00:00.0
Alstom Signaling Operation LLC,Capital Purchases,23828.85,00:00.0
Alstom Signaling Operation LLC,Capital Purchases,10357.04,00:00.0
Alstom Signaling Operation LLC,Materials,2903.06,00:00.0
Alstom Signaling Operation LLC,Capital Purchases,7076.7,00:00.0
Alstom Signaling Operation LLC,Materials,1516.23,00:00.0
Alstom Signaling Operation LLC,Materials,2134.98,00:00.0
Alstom Signaling Operation LLC,Capital Purchases,3108.4,00:00.0
Alstom Signaling Operation LLC,Capital Purchases,711.66,00:00.0
Alstom Signaling Operation LLC,Capital Purchases,59374.3,00:00.0
Alstom Signaling Operation LLC,Materials,29213.84,00:00.0
Alstom Signaling Operation LLC,Capital Purchases,1721.2,00:00.0
Alstom Signaling Operation LLC,Capital Purchases,9323.74,00:00.0
Alstom Signaling Operation LLC,Capital Purchases,1425.36,00:00.0
Alstom Signaling Operation LLC,Materials,1690.98,00:00.0
Alstom Signaling Operation LLC,Services,1740,00:00.0
Alstom Signaling Operation LLC,Services,6960,00:00.0
Alstom Signaling Operation LLC,Capital Purchases,1690.98,00:00.0
Alstom Signaling Operation LLC,Capital Purchases,2842.6,00:00.0
Alstom Signaling Operation LLC,Capital Purchases,48630,00:00.0
Alstom Signaling Operation LLC,Materials,192.23,00:00.0
Alstom Signaling Operation LLC,Capital Purchases,61988.4,00:00.0
Alstom Signaling Operation LLC,Capital Purchases,70658.77,00:00.0
Alstom Signaling Operation LLC,Capital Purchases,16930.77,00:00.0
Alstom Signaling Operation LLC,Capital Purchases,82029.06,00:00.0
Alstom Signaling Operation LLC,Capital Purchases,34076.1,00:00.0
Alstom Signaling Operation LLC,Capital Purchases,140745.86,00:00.0
Alstom Signaling Operation LLC,Capital Purchases,63037.08,00:00.0
Alstom Signaling Operation LLC,Capital Purchases,16930.77,00:00.0
Alstom Signaling Operation LLC,Capital Purchases,63037.08,00:00.0
Alstom Signaling Operation LLC,Services,680,00:00.0
Alstom Signaling Operation LLC,Capital Purchases,38727.66,00:00.0
Alstom Signaling Operation LLC,Capital Purchases,295111.74,00:00.0
Alstom Signaling Operation LLC,Capital Purchases,68478.84,00:00.0
Alstom Signaling Operation LLC,Capital Purchases,86095,00:00.0
Alstom Signaling Operation LLC,Capital Purchases,539312.5,00:00.0
Alstom Signaling Operation LLC,Capital Purchases,202146.12,00:00.0
Alstom Signaling Operation LLC,Capital Purchases,19362.73,00:00.0
Alstom Signaling Operation LLC,Capital Purchases,3381.96,00:00.0
Alstom Signaling Operation LLC,Capital Purchases,8009.19,00:00.0
Alstom Signaling Operation LLC,Services,2903.9,00:00.0
Alstom Signaling Operation LLC,Materials,1479.74,00:00.0
Alstom Signaling Operation LLC,Capital Purchases,73886.93,00:00.0
Alstom Signaling Operation LLC,Capital Purchases,473967.34,00:00.0
Alstom Signaling Operation LLC,Capital Purchases,36181.18,00:00.0
Alstom Signaling Operation LLC,Capital Purchases,10337.48,00:00.0
Alstom Signaling Operation LLC,Capital Purchases,5116.6,00:00.0
Alstom Signaling Operation LLC,Capital Purchases,14277.17,00:00.0
Alstom Signaling Operation LLC,Capital Purchases,31012.44,00:00.0
Alstom Signaling Operation LLC,Capital Purchases,4251.5,00:00.0
Alstom Signaling Operation LLC,Capital Purchases,108806.22,00:00.0
Alstom Signaling Operation LLC,Capital Purchases,2965,00:00.0
Alstom Signaling Operation LLC,Capital Purchases,85663.02,00:00.0
Alstom Signaling Operation LLC,Services,1110,00:00.0
Alstom Signaling Operation LLC,Materials,11055.3,00:00.0
Alstom Signaling Operation LLC,Capital Purchases,128494.53,00:00.0
Alstom Signaling Operation LLC,Capital Purchases,11206.6,00:00.0
Alstom Signaling Operation LLC,Capital Purchases,76916.55,00:00.0
Alstom Signaling Operation LLC,Capital Purchases,57108.68,00:00.0
Alstom Transportation Inc.,Materials,126456.72,00:00.0
Alstom Transportation Inc.,Capital Purchases,129600,00:00.0
Alstom Transportation Inc.,Materials,350187.84,00:00.0
Alstom Transportation Inc.,Materials,246602.04,00:00.0
Alstom Transportation Inc.,Capital Purchases,324600,00:00.0
Alstom Transportation Inc.,Capital Purchases,195000,00:00.0
Alstom Transportation Inc.,Materials,476644.56,00:00.0
Alstom Transportation Inc.,Capital Purchases,129600,00:00.0
Alstom Transportation Inc.,Capital Purchases,390000,00:00.0
Alstom Transportation Inc.,Materials,723246.6,00:00.0
Alstom Transportation Inc.,Materials,77819.52,00:00.0
Alstom Transportation Inc.,Materials,350187.84,00:00.0
Altec Industries  Inc.,Services,180.43,00:00.0
Altec Industries  Inc.,Materials,708.67,00:00.0
Alternate Power  Inc.,Services,637.4,00:00.0
Alternate Power  Inc.,Services,4395.24,00:00.0
Alternate Power  Inc.,Services,1771.51,00:00.0
Alternate Power  Inc.,Materials,3950.2,00:00.0
Alternate Power  Inc.,Materials,214.06,00:00.0
Alternate Power  Inc.,Services,1129.61,00:00.0
Alternate Power  Inc.,Services,1618.24,00:00.0
Alternate Power  Inc.,Services,1682.81,00:00.0
Alternate Power  Inc.,Services,2046.36,00:00.0
Altorfer Caterpillar,Materials,7719.9,00:00.0
Altorfer Caterpillar,Services,863.9,00:00.0
Altorfer Industries Inc.,Materials,2057.35,00:00.0
Altorfer Industries Inc.,Capital Purchases,11204.88,00:00.0
Altorfer Industries Inc.,Materials,389.41,00:00.0
Altorfer Industries Inc.,Materials,6562.86,00:00.0
Altorfer Industries Inc.,Services,104.84,00:00.0
Altorfer Industries Inc.,Materials,2682.89,00:00.0
Altorfer Industries Inc.,Capital Purchases,25416.73,00:00.0
Altorfer Industries Inc.,Services,2038.5,00:00.0
Altorfer Industries Inc.,Materials,40.98,00:00.0
Altorfer Industries Inc.,Capital Purchases,25416.73,00:00.0
Altorfer Industries Inc.,Materials,287.5,00:00.0
Altorfer Industries Inc.,Materials,776.01,00:00.0
Altorfer Industries Inc.,Materials,203.69,00:00.0
Altorfer Industries Inc.,Materials,763.98,00:00.0
Altorfer Industries Inc.,Services,25.9,00:00.0
Altorfer Industries Inc.,Materials,291.62,00:00.0
Altorfer Industries Inc.,Materials,2140.2,00:00.0
Altorfer Industries Inc.,Capital Purchases,25416.73,00:00.0
Altorfer Industries Inc.,Capital Purchases,25416.73,00:00.0
Altorfer Industries Inc.,Services,962.14,00:00.0
Altorfer Industries Inc.,Materials,4051.78,00:00.0
Altorfer Industries Inc.,Materials,214.62,00:00.0
Altorfer Industries Inc.,Materials,1494.08,00:00.0
Altorfer Industries Inc.,Services,29,00:00.0
Altorfer Industries Inc.,Capital Purchases,9509.09,00:00.0
Altorfer Industries Inc.,Materials,1000,00:00.0
Altorfer Industries Inc.,Materials,177.4,00:00.0
Altorfer Industries Inc.,Materials,3000,00:00.0
Altorfer Industries Inc.,Capital Purchases,15901.56,00:00.0
Altorfer Industries Inc.,Materials,180.4,00:00.0
Altorfer Industries Inc.,Materials,846.72,00:00.0
Altorfer Industries Inc.,Materials,6747.37,00:00.0
Altorfer Industries Inc.,Materials,11653.62,00:00.0
Altorfer Industries Inc.,Materials,4726.04,00:00.0
Altorfer Industries Inc.,Materials,2676.21,00:00.0
Altorfer Industries Inc.,Materials,449.81,00:00.0
Altorfer Industries Inc.,Capital Purchases,25416.73,00:00.0
Altorfer Industries Inc.,Capital Purchases,25416.73,00:00.0
Altorfer Industries Inc.,Materials,231.55,00:00.0
Altorfer Industries Inc.,Materials,318.63,00:00.0
Altorfer Industries Inc.,Services,202.58,00:00.0
Altorfer Industries Inc.,Materials,6799.73,00:00.0
Alvarez  Inc.,Services,1100,00:00.0
Alvarez  Inc.,Services,8185.5,00:00.0
Alvarez  Inc.,Services,630,00:00.0
Alvarez  Inc.,Services,1971,00:00.0
Alvarez  Inc.,Services,800,00:00.0
Alvarez  Inc.,Services,1915,00:00.0
Alvarez  Inc.,Services,2601,00:00.0
Alvarez  Inc.,Services,800,00:00.0
Alvarez  Inc.,Services,1915,00:00.0
Alvarez  Inc.,Services,8185.5,00:00.0
Alvarez  Inc.,Services,1100,00:00.0
Alvarez  Inc.,Services,1100,00:00.0
Alvarez  Inc.,Services,8185.5,00:00.0
Alvarez  Inc.,Services,800,00:00.0
Alvarez  Inc.,Services,1971,00:00.0
Alvarez  Inc.,Services,1915,00:00.0
Alvarez  Inc.,Services,630,00:00.0
Alvarez  Inc.,Services,1100,00:00.0
Alvarez  Inc.,Services,800,00:00.0
Alvarez  Inc.,Services,1915,00:00.0
Alvarez  Inc.,Services,8185.5,00:00.0
Alvarez  Inc.,Services,1971,00:00.0
Alvarez  Inc.,Services,630,00:00.0
Alvarez  Inc.,Services,455,00:00.0
Alvarez  Inc.,Services,7730.5,00:00.0
Alvarez  Inc.,Services,6101,00:00.0
Alvarez  Inc.,Materials,970,00:00.0
Alvarez  Inc.,Services,800,00:00.0
Alvarez  Inc.,Services,1215,00:00.0
Alvarez  Inc.,Services,8185.5,00:00.0
Alvarez  Inc.,Services,1100,00:00.0
Alvarez  Inc.,Services,3301,00:00.0
Alvarez  Inc.,Services,1215,00:00.0
Alvarez  Inc.,Services,1100,00:00.0
Alvarez  Inc.,Services,8185.5,00:00.0
Alvarez  Inc.,Services,800,00:00.0
Alvarez  Inc.,Services,3301,00:00.0
Alvarez  Inc.,Services,800,00:00.0
Alvarez  Inc.,Services,3301,00:00.0
Alvarez  Inc.,Services,1215,00:00.0
Alvarez  Inc.,Services,8185.5,00:00.0
Alvarez  Inc.,Services,1100,00:00.0
Alvin Hollins Jr,Services,27.51,00:00.0
Alvin Hollins Jr,Services,75.98,00:00.0
Alvin Hollins Jr,Services,241.04,00:00.0
Alvin Hollins Jr,Services,89.08,00:00.0
Alvin Hollins Jr,Services,55.02,00:00.0
Alvin Hollins Jr,Services,131,00:00.0
Alvin Newman,Services,185,00:00.0
Alvin Newman,Services,55.02,00:00.0
Alvin T. Terry,Services,40.15,00:00.0
Alvin T. Terry,Services,75.85,00:00.0
Alvin T. Terry,Services,35.83,00:00.0
Alyssa M. Battaglia-Hofmann,Services,166.86,00:00.0
Alyssa M. Battaglia-Hofmann,Services,41.13,00:00.0
Alyssa M. Battaglia-Hofmann,Services,7.2,00:00.0
Amalgamated Bank Of Chicago,Services,18577.58,00:00.0
Amalgamated Bank Of Chicago,Services,18544.03,00:00.0
Amalgamated Bank Of Chicago,Services,16219.44,00:00.0
Amalgamated Bank Of Chicago,Services,13221.05,00:00.0
Amazon.Com/Tool Crib,Services,18.24,00:00.0
Amazon.Com/Tool Crib,,67.85,00:00.0
Amazon.Com/Tool Crib,Materials,3698.12,00:00.0
Amazon.Com/Tool Crib,Materials,1739.99,00:00.0
Amazon.Com/Tool Crib,Services,1199.2,00:00.0
Amazon.Com/Tool Crib,Materials,10489.81,00:00.0
Amazon.Com/Tool Crib,Services,895.92,00:00.0
Amazon.Com/Tool Crib,Materials,5549.99,00:00.0
Amazon.Com/Tool Crib,Materials,138.99,00:00.0
Amazon.Com/Tool Crib,Materials,316,00:00.0
Amazon.Com/Tool Crib,Services,14.13,00:00.0
Amazon.Com/Tool Crib,Services,178,00:00.0
Amazon.Com/Tool Crib,Services,694.39,00:00.0
Amazon.Com/Tool Crib,Services,5.99,00:00.0
Amazon.Com/Tool Crib,Services,5.99,00:00.0
Amazon.Com/Tool Crib,Services,1724.88,00:00.0
Amazon.Com/Tool Crib,,63.59,00:00.0
Amazon.Com/Tool Crib,Materials,1134.11,00:00.0
Amazon.Com/Tool Crib,Materials,758.85,00:00.0
Amazon.Com/Tool Crib,Materials,35.58,00:00.0
Amazon.Com/Tool Crib,Materials,52.65,00:00.0
Amazon.Com/Tool Crib,Services,21.09,00:00.0
Amazon.Com/Tool Crib,Services,6.99,00:00.0
Amazon.Com/Tool Crib,,439.96,00:00.0
Amazon.Com/Tool Crib,Materials,789,00:00.0
Amazon.Com/Tool Crib,Materials,2526.58,00:00.0
Amazon.Com/Tool Crib,Materials,97.97,00:00.0
Amazon.Com/Tool Crib,Materials,1229.7,00:00.0
Amazon.Com/Tool Crib,Materials,1015.96,00:00.0
Amazon.Com/Tool Crib,Materials,317.57,00:00.0
Amazon.Com/Tool Crib,Materials,1555.9,00:00.0
Amazon.Com/Tool Crib,Services,536.33,00:00.0
Amazon.Com/Tool Crib,Materials,779.98,00:00.0
Amazon.Com/Tool Crib,Materials,7293.86,00:00.0
Amazon.Com/Tool Crib,Services,606,00:00.0
Amazon.Com/Tool Crib,Services,11.98,00:00.0
Amazon.Com/Tool Crib,Services,234.43,00:00.0
Amazon.Com/Tool Crib,Services,2044.22,00:00.0
Amazon.Com/Tool Crib,Services,59.95,00:00.0
Amazon.Com/Tool Crib,Materials,2124.8,00:00.0
Amazon.Com/Tool Crib,Services,12800,00:00.0
Amazon.Com/Tool Crib,Services,10674.46,00:00.0
Amazon.Com/Tool Crib,Materials,996,00:00.0
Amazon.Com/Tool Crib,Materials,4056.74,00:00.0
Amazon.Com/Tool Crib,Materials,839.88,00:00.0
Amazon.Com/Tool Crib,Services,35.43,00:00.0
Amazon.Com/Tool Crib,Services,7466.31,00:00.0
Amber Spencer,Services,310.5,00:00.0
Amber Spencer,Services,289.34,00:00.0
Amber Spencer,Services,1311,00:00.0
Amber Spencer,Services,45.59,00:00.0
"America HTP USA eld, Inc.",Materials,699.9,00:00.0
American Calibration  Inc.,Materials,66,00:00.0
American Calibration  Inc.,Services,1188,00:00.0
American Calibration  Inc.,Services,132,00:00.0
American Calibration  Inc.,Services,132,00:00.0
American Calibration  Inc.,Materials,66,00:00.0
American Calibration  Inc.,Services,66,00:00.0
American Calibration  Inc.,Services,528,00:00.0
American Calibration  Inc.,Services,132,00:00.0
American Calibration  Inc.,Services,103.55,00:00.0
American Calibration  Inc.,Services,396,00:00.0
American Calibration  Inc.,Services,66,00:00.0
American Calibration  Inc.,Services,132,00:00.0
American Calibration  Inc.,Services,330,00:00.0
American Calibration  Inc.,Services,330,00:00.0
American Calibration  Inc.,Services,198,00:00.0
American Calibration  Inc.,Services,594,00:00.0
American Calibration  Inc.,Services,66,00:00.0
American Calibration  Inc.,Services,198,00:00.0
American Calibration  Inc.,Services,66,00:00.0
American Calibration  Inc.,Services,109,00:00.0
American Calibration  Inc.,Materials,1188,00:00.0
American Calibration  Inc.,Services,528,00:00.0
American Calibration  Inc.,Services,1485,00:00.0
American Calibration  Inc.,Services,462,00:00.0
American Calibration  Inc.,Services,396,00:00.0
American Calibration  Inc.,Services,660,00:00.0
American Calibration  Inc.,Services,462,00:00.0
American Calibration  Inc.,Services,660,00:00.0
American Calibration  Inc.,Services,132,00:00.0
American Calibration  Inc.,Services,462,00:00.0
American Calibration  Inc.,Services,627,00:00.0
American Calibration  Inc.,Services,528,00:00.0
American Calibration  Inc.,Services,231,00:00.0
American Calibration  Inc.,Services,1105.5,00:00.0
American Calibration  Inc.,Services,198,00:00.0
American Calibration  Inc.,Services,132,00:00.0
American Calibration  Inc.,Services,165,00:00.0
American Calibration  Inc.,Services,1485,00:00.0
American Calibration  Inc.,Services,709.5,00:00.0
American Calibration  Inc.,Services,1848,00:00.0
American Calibration  Inc.,Services,181.5,00:00.0
American Calibration  Inc.,Services,1072.5,00:00.0
American Calibration  Inc.,Services,1056,00:00.0
American Calibration  Inc.,Services,198,00:00.0
American Calibration  Inc.,Services,132,00:00.0
American Calibration  Inc.,Services,379.5,00:00.0
American Calibration  Inc.,Services,693,00:00.0
American Calibration  Inc.,Services,214.5,00:00.0
American Calibration  Inc.,Services,363,00:00.0
American Calibration  Inc.,Services,132,00:00.0
American Calibration  Inc.,Services,383,00:00.0
American Calibration  Inc.,Services,132,00:00.0
American Calibration  Inc.,Services,330,00:00.0
American Calibration  Inc.,Services,1518,00:00.0
American Calibration  Inc.,Materials,1666.5,00:00.0
American Calibration  Inc.,Services,1452,00:00.0
American Calibration  Inc.,Services,379.5,00:00.0
"American Heritage Protective Services, Inc.",Services,18800,00:00.0
American Legal Publishing Corporation,Services,2060,00:00.0
American Legal Publishing Corporation,Services,2085.75,00:00.0
American Legal Publishing Corporation,Services,3055,00:00.0
American Planning Assn.,Services,668,00:00.0
American Planning Assn.,Services,2075,00:00.0
American Public Transit Assoc.,Services,575,00:00.0
American Public Transportation Ass Meeting Department Apta,Services,7500,00:00.0
American Solutions For Business,Services,25861.2,00:00.0
American Solutions For Business,Services,13844.6,00:00.0
American Solutions For Business,Services,17240.8,00:00.0
American Solutions For Business,Services,2447,00:00.0
American Solutions For Business,Services,32300,00:00.0
American Solutions For Business,Services,8620.4,00:00.0
American Solutions For Business,Services,13844.6,00:00.0
American Solutions For Business,Services,25861.2,00:00.0
American Solutions For Business,Services,12889.8,00:00.0
American Solutions For Business,Services,13046.4,00:00.0
American Solutions For Business,Services,238.7,00:00.0
American Solutions For Business,Materials,4746,00:00.0
American Solutions For Business,Services,8620.4,00:00.0
American Solutions For Business,Services,32300,00:00.0
American Surveying & Engineering Pc,Capital Purchases,141042.15,00:00.0
American Surveying & Engineering Pc,Capital Purchases,3486.78,00:00.0
American Surveying & Engineering Pc,Capital Purchases,1640.86,00:00.0
American Welding Society,Services,695,00:00.0
American Welding Society,Materials,2391,00:00.0
American Welding Society,Services,115.93,00:00.0
"Amsted Rail Company, Inc.",Capital Purchases,65305.2,00:00.0
"Amsted Rail Company, Inc.",Capital Purchases,61672.8,00:00.0
"Amsted Rail Company, Inc.",Capital Purchases,7348.04,00:00.0
"Amsted Rail Company, Inc.",Capital Purchases,69508.8,00:00.0
"Amsted Rail Company, Inc.",Capital Purchases,9660.02,00:00.0
"Amsted Rail Company, Inc.",Capital Purchases,6794.33,00:00.0
"Amsted Rail Company, Inc.",Capital Purchases,30930.77,00:00.0
"Amsted Rail Company, Inc.",Capital Purchases,88703.76,00:00.0
"Amsted Rail Company, Inc.",Capital Purchases,5435.46,00:00.0
"Amsted Rail Company, Inc.",Capital Purchases,7728.02,00:00.0
"Amsted Rail Company, Inc.",Materials,2215,00:00.0
"Amsted Rail Company, Inc.",Capital Purchases,7015.2,00:00.0
"Amsted Rail Company, Inc.",Capital Purchases,50870.4,00:00.0
"Amsted Rail Company, Inc.",Capital Purchases,36063.78,00:00.0
"Amsted Rail Company, Inc.",Capital Purchases,104915.8,00:00.0
"Amsted Rail Company, Inc.",Capital Purchases,35198.82,00:00.0
"Amundsen Davis, LLC",Insurance Expense,7128,00:00.0
"Amundsen Davis, LLC",Claims & Insurance,80847.5,00:00.0
"Amundsen Davis, LLC",Services,11410,00:00.0
"Amundsen Davis, LLC",Claims & Insurance,82124.8,00:00.0
"Amundsen Davis, LLC",Claims & Insurance,60137.3,00:00.0
Anali De La O,Services,28.81,00:00.0
Anali De La O,Services,41.79,00:00.0
Analytic Systems,Materials,9036,00:00.0
Analytic Systems,Materials,6777,00:00.0
Analytic Systems,Materials,9036,00:00.0
Analytic Systems,Materials,1725,00:00.0
Analytic Systems,Materials,4518,00:00.0
Analytic Systems,Materials,3045,00:00.0
Analytic Systems,Materials,1620,00:00.0
Analytic Systems,Materials,13554,00:00.0
Analytic Systems,Materials,9036,00:00.0
Analytic Systems,Materials,60993,00:00.0
Analytic Systems,Capital Purchases,42921,00:00.0
Analytic Systems,Capital Purchases,24849,00:00.0
Anchor Brake Shoe Co.,Materials,22977.9,00:00.0
Anchor Brake Shoe Co.,Materials,8355.6,00:00.0
Anchor Brake Shoe Co.,Materials,10444.5,00:00.0
Anchor Brake Shoe Co.,Materials,34062.3,00:00.0
Anchor Brake Shoe Co.,Materials,41778,00:00.0
Anchor Brake Shoe Co.,Materials,16711.2,00:00.0
Anchor Brake Shoe Co.,Materials,27155.7,00:00.0
Anchor Brake Shoe Co.,Materials,22977.9,00:00.0
Anchor Brake Shoe Co.,Materials,20889,00:00.0
Anchor Brake Shoe Co.,Materials,25066.8,00:00.0
Anchor Brake Shoe Co.,Materials,19440,00:00.0
Anchor Brake Shoe Co.,Materials,10098,00:00.0
Anchor Brake Shoe Co.,Materials,54549,00:00.0
Anchor Brake Shoe Co.,Materials,40392,00:00.0
Anchor Brake Shoe Co.,Materials,37026,00:00.0
Anchor Brake Shoe Co.,Materials,53856,00:00.0
Anchor Brake Shoe Co.,Materials,34650,00:00.0
Anchor Brake Shoe Co.,Materials,37026,00:00.0
Anchor Brake Shoe Co.,Materials,6732,00:00.0
Anchor Brake Shoe Co.,Materials,12998.7,00:00.0
Anchor Brake Shoe Co.,Materials,12533.4,00:00.0
Anchor Brake Shoe Co.,Materials,52341.3,00:00.0
Anchor Brake Shoe Co.,Materials,10098,00:00.0
Anchor Brake Shoe Co.,Materials,33660,00:00.0
Anchor Brake Shoe Co.,Materials,20196,00:00.0
Anchor Brake Shoe Co.,Materials,26928,00:00.0
Anchor Brake Shoe Co.,Materials,10098,00:00.0
Anchor Brake Shoe Co.,Materials,9720,00:00.0
Anchor Brake Shoe Co.,Materials,19440,00:00.0
Anchor Brake Shoe Co.,Materials,16830,00:00.0
Anchor Brake Shoe Co.,Materials,29160,00:00.0
Anchor Brake Shoe Co.,Materials,98352,00:00.0
Anchor Brake Shoe Co.,Materials,3366,00:00.0
Anchor Brake Shoe Co.,Materials,35122.5,00:00.0
Anchor Brake Shoe Co.,Materials,57915,00:00.0
Andre Hunt,Services,114.99,00:00.0
Andre Hunt,Services,80,00:00.0
Andre Hunt,Services,935.12,00:00.0
Andre Hunt,Services,259,00:00.0
Andre Hunt,Services,610,00:00.0
Andre Hunt,Services,576.36,00:00.0
Andre Hunt,Services,45,00:00.0
Andre Hunt,Services,475,00:00.0
Andre Hunt,Services,185,00:00.0
Andre Hunt,Services,454.96,00:00.0
Andre Hunt,Services,160,00:00.0
Andre Hunt,Services,45,00:00.0
Andrea Clark,Services,179.47,00:00.0
Andrea Clark,Services,27.51,00:00.0
Andrea Clark,Services,103.49,00:00.0
Andrea Clark,Services,110.04,00:00.0
Andrea Clark,Services,55.02,00:00.0
Andres Hernandez Rodriguez,Services,734.5,00:00.0
Andres Hernandez Rodriguez,Services,791,00:00.0
Andres Hernandez Rodriguez,Services,734.5,00:00.0
Andres Hernandez Rodriguez,Services,508.5,00:00.0
Andres Hernandez Rodriguez,Services,621.5,00:00.0
ANDREW MARSH,Services,88.36,00:00.0
Angel Chavez,Services,56.5,00:00.0
ANGELINA ROSAS,Services,39.3,00:00.0
ANGELINA ROSAS,Services,60.26,00:00.0
Anita Ayala-Ortega,Services,74.67,00:00.0
Anita Ayala-Ortega,Services,24.89,00:00.0
Anita Ayala-Ortega,Services,49.78,00:00.0
Anita Ayala-Ortega,Services,49.78,00:00.0
Anita Ayala-Ortega,Services,24.89,00:00.0
Anita Ayala-Ortega,Services,49.78,00:00.0
Anita Ayala-Ortega,Services,24.89,00:00.0
Anita Ayala-Ortega,Services,49.78,00:00.0
Anita Ayala-Ortega,Services,24.89,00:00.0
Anita Ayala-Ortega,Services,24.89,00:00.0
Anita Ayala-Ortega,Services,49.78,00:00.0
Anita Ayala-Ortega,Services,74.67,00:00.0
Anita Ayala-Ortega,Services,49.78,00:00.0
Anixter  Inc.,Materials,4732.07,00:00.0
Anthony B. Davis,Services,120.52,00:00.0
Anthony Belarmino,Services,552.1,00:00.0
Anthony Belarmino,Services,462.61,00:00.0
Anthony Belarmino,Services,1260.2,00:00.0
Anthony Belarmino,Services,25.87,00:00.0
Anthony Belarmino,Services,75,00:00.0
Anthony Belarmino,Services,185.63,00:00.0
Anthony Belarmino,Services,75,00:00.0
Anthony Belarmino,Services,1260.2,00:00.0
Anthony Belarmino,Services,25.87,00:00.0
Anthony Belarmino,Services,211.5,00:00.0
Anthony Belarmino,Services,48.05,00:00.0
Anthony Dellorto,Services,168,00:00.0
Anthony Dellorto,Services,59.94,00:00.0
Anthony Dellorto,Services,894.57,00:00.0
Anthony Dellorto,Services,276.5,00:00.0
Anthony Dellorto,Services,160,00:00.0
Anthony Dellorto,Services,1155.96,00:00.0
Anthony Dellorto,Services,241.5,00:00.0
Anthony Dellorto,,715.45,00:00.0
Anthony E. Jones,Services,48.47,00:00.0
Anthony E. Jones,Services,48.47,00:00.0
Anthony E. Jones,Services,48.47,00:00.0
ANTHONY MILLS,Services,301.43,00:00.0
ANTHONY MILLS,Services,293.96,00:00.0
Anthony Ognibene,Services,130.35,00:00.0
Anthony Ognibene,Services,143.45,00:00.0
Anthony Ognibene,Services,7.95,00:00.0
Anthony Ognibene,Services,97.46,00:00.0
Anthony Ognibene,Services,2.9,00:00.0
Anthony Ognibene,Services,56.33,00:00.0
ANTHONY SIRIANO,Services,64.19,00:00.0
ANTHONY SIRIANO,Services,462.64,00:00.0
ANTHONY SIRIANO,Services,264.78,00:00.0
ANTHONY SIRIANO,Services,118.5,00:00.0
ANTHONY SIRIANO,Services,96.94,00:00.0
ANTHONY T. SMITH,Services,1163.54,00:00.0
ANTHONY T. SMITH,Services,5.85,00:00.0
ANTHONY T. SMITH,Services,1078.85,00:00.0
ANTHONY T. SMITH,Services,954.99,00:00.0
Antoine Haynes,Services,55.02,00:00.0
Antoinette Collymore,Services,14.41,00:00.0
Antoinette Collymore,Services,14.41,00:00.0
Apex Tool Company Inc.,Services,15.97,00:00.0
Apex Tool Company Inc.,Materials,410,00:00.0
Appalachian Timber Services LLC,Materials,36780,00:00.0
Appalachian Timber Services LLC,Materials,18390,00:00.0
Appalachian Timber Services LLC,Materials,36780,00:00.0
Appalachian Timber Services LLC,Materials,36780,00:00.0
April Kilgore,Services,3494,00:00.0
AQ Transformer Solutions Inc,Materials,14000,00:00.0
AQ Transformer Solutions Inc,Services,360,00:00.0
Aql Technologies  Inc.,Services,18240,00:00.0
Aql Technologies  Inc.,Services,19200,00:00.0
Aql Technologies  Inc.,Services,19200,00:00.0
Aql Technologies  Inc.,Services,13200,00:00.0
Aql Technologies  Inc.,Services,19200,00:00.0
Aql Technologies  Inc.,Services,22080,00:00.0
Aql Technologies  Inc.,Services,19920,00:00.0
Aql Technologies  Inc.,Services,19200,00:00.0
Aql Technologies  Inc.,Services,22080,00:00.0
Aql Technologies  Inc.,Services,19200,00:00.0
Aql Technologies  Inc.,Services,18240,00:00.0
Aqua Chill of Chicago LLC,Rental Expense,1505,00:00.0
Aqua Chill of Chicago LLC,Rental Expense,1505,00:00.0
Aqua Chill of Chicago LLC,Rental Expense,3010,00:00.0
Aqua Chill of Chicago LLC,Rental Expense,1505,00:00.0
Aqua Chill of Chicago LLC,Rental Expense,1505,00:00.0
Aqua Chill of Chicago LLC,Rental Expense,1505,00:00.0
Aqua Chill of Chicago LLC,Rental Expense,1505,00:00.0
Aqua Chill of Chicago LLC,Rental Expense,1505,00:00.0
Aqua Chill of Chicago LLC,Rental Expense,1505,00:00.0
Aqua Chill of Chicago LLC,Rental Expense,1505,00:00.0
Aqua Chill of Chicago LLC,Rental Expense,1505,00:00.0
Aqua Illinois,Utilities,167.48,00:00.0
Aqua Illinois,Utilities,222.32,00:00.0
Aqua Illinois,Utilities,83.99,00:00.0
Aqua Illinois,Utilities,81.83,00:00.0
Aqua Illinois,Utilities,80.51,00:00.0
Aqua Illinois,Utilities,80.51,00:00.0
Aqua Illinois,Utilities,173.43,00:00.0
Aqua Illinois,Utilities,230.77,00:00.0
Aqua Illinois,Utilities,264.77,00:00.0
Aqua Illinois,Utilities,357.19,00:00.0
Arcadis Us  Inc.,Capital Purchases,60149.93,00:00.0
Arcadis Us  Inc.,Capital Purchases,7524.67,00:00.0
Arcadis Us  Inc.,Services,9500,00:00.0
Arcadis Us  Inc.,Capital Purchases,14603.87,00:00.0
Arcadis Us  Inc.,Capital Purchases,183588.51,00:00.0
Arcadis Us  Inc.,Capital Purchases,109564.74,00:00.0
Arcadis Us  Inc.,Services,9500,00:00.0
Arcadis Us  Inc.,Capital Purchases,130377.31,00:00.0
Arcadis Us  Inc.,Capital Purchases,8904.53,00:00.0
Arcadis Us  Inc.,Capital Purchases,48470.67,00:00.0
Arcadis Us  Inc.,Capital Purchases,143355.18,00:00.0
Arcadis Us  Inc.,Capital Purchases,91169.6,00:00.0
Arcadis Us  Inc.,Capital Purchases,23516.13,00:00.0
Arcadis Us  Inc.,Capital Purchases,5281.75,00:00.0
Arcadis Us  Inc.,Capital Purchases,198396.79,00:00.0
Arcadis Us  Inc.,Capital Purchases,4975.39,00:00.0
Arcadis Us  Inc.,Capital Purchases,83786.28,00:00.0
Arcadis Us  Inc.,Services,21236.71,00:00.0
Arcadis Us  Inc.,Capital Purchases,69931.76,00:00.0
Arcadis Us  Inc.,Capital Purchases,828,00:00.0
Arcadis Us  Inc.,Services,2882.59,00:00.0
Arcadis Us  Inc.,Services,9500,00:00.0
Arcadis Us  Inc.,Capital Purchases,140544.4,00:00.0
Arcadis Us  Inc.,Capital Purchases,62109.39,00:00.0
Arcadis Us  Inc.,Capital Purchases,61797.43,00:00.0
Arcadis Us  Inc.,Capital Purchases,457371.3,00:00.0
Arcadis Us  Inc.,Services,17766.38,00:00.0
Arcadis Us  Inc.,Capital Purchases,112844.77,00:00.0
Arcadis Us  Inc.,Capital Purchases,61972.48,00:00.0
Arcadis Us  Inc.,Capital Purchases,1969.57,00:00.0
Arcadis Us  Inc.,Capital Purchases,129528.17,00:00.0
Arcadis Us  Inc.,Services,2664.26,00:00.0
Arcadis Us  Inc.,Capital Purchases,162968.95,00:00.0
Arcadis Us  Inc.,Capital Purchases,1256.28,00:00.0
Arcadis Us  Inc.,Capital Purchases,87823.36,00:00.0
Arcadis Us  Inc.,Capital Purchases,48985.88,00:00.0
Arcadis Us  Inc.,Capital Purchases,1484.67,00:00.0
Arcadis Us  Inc.,Services,18144.8,00:00.0
Arcadis Us  Inc.,Capital Purchases,127790.34,00:00.0
Arcadis Us  Inc.,Services,12449.01,00:00.0
Arcadis Us  Inc.,Capital Purchases,81480.44,00:00.0
Arcadis Us  Inc.,Capital Purchases,10063.44,00:00.0
Arcadis Us  Inc.,Capital Purchases,5136.98,00:00.0
Arcadis Us  Inc.,Capital Purchases,148187.67,00:00.0
Arcadis Us  Inc.,Capital Purchases,7226.44,00:00.0
Arcadis Us  Inc.,Capital Purchases,258717.75,00:00.0
Arcadis Us  Inc.,Services,1174.61,00:00.0
Arcadis Us  Inc.,Capital Purchases,177679.62,00:00.0
Arcadis Us  Inc.,Capital Purchases,227959.79,00:00.0
Arcadis Us  Inc.,Services,20760.17,00:00.0
Arcadis Us  Inc.,Capital Purchases,63083.63,00:00.0
Arcadis Us  Inc.,Capital Purchases,62645.88,00:00.0
Arcadis Us  Inc.,Capital Purchases,8015.08,00:00.0
Arcadis Us  Inc.,Capital Purchases,197423.89,00:00.0
Arcadis Us  Inc.,Services,22296.88,00:00.0
Arcadis Us  Inc.,Services,9500,00:00.0
Arcadis Us  Inc.,Capital Purchases,53647.59,00:00.0
Arcadis Us  Inc.,Capital Purchases,9153.5,00:00.0
Arcadis Us  Inc.,Capital Purchases,27963.82,00:00.0
Arcadis Us  Inc.,Capital Purchases,50860.86,00:00.0
Arcadis Us  Inc.,Capital Purchases,12793.13,00:00.0
Arcadis Us  Inc.,Capital Purchases,11890,00:00.0
Arcadis Us  Inc.,Capital Purchases,174812.08,00:00.0
Arcadis Us  Inc.,Capital Purchases,191493.35,00:00.0
Arcadis Us  Inc.,Services,60955.2,00:00.0
Arcadis Us  Inc.,Capital Purchases,86618.56,00:00.0
Arcadis Us  Inc.,Capital Purchases,38894.27,00:00.0
Arcadis Us  Inc.,Capital Purchases,96490.68,00:00.0
Arcadis Us  Inc.,Capital Purchases,111475.46,00:00.0
Arcus Corp. DBA Mart Tech Services,Claims & Insurance,1998.65,00:00.0
Arema,Services,14725,00:00.0
Arema,Services,5200,00:00.0
Argo Inc.,Services,10800,00:00.0
Argo Inc.,Services,26990,00:00.0
Argo Inc.,Services,42120,00:00.0
Argo Inc.,Services,54410,00:00.0
Argo Inc.,Services,47520,00:00.0
Argo Inc.,Services,31150,00:00.0
Argo Inc.,Services,24850,00:00.0
Argo Inc.,Services,12150,00:00.0
Arlington Park Racecourse Llc Churchill Downs Inc.,Rental Expense,32617.95,00:00.0
Arlington Park Racecourse Llc Churchill Downs Inc.,Rental Expense,24749.69,00:00.0
"ARM Camco, LLC",Capital Purchases,5875,00:00.0
"ARM Camco, LLC",Services,8955,00:00.0
"ARM Camco, LLC",Materials,8753.88,00:00.0
"ARM Camco, LLC",Capital Purchases,11750,00:00.0
"ARM Camco, LLC",Capital Purchases,11750,00:00.0
"ARM Camco, LLC",Materials,2257.42,00:00.0
Arnold Holder,Services,329.22,00:00.0
Arnold Holder,Services,276.24,00:00.0
Arnold Holder,Services,364.56,00:00.0
Arnold Holder,Services,372.62,00:00.0
Arnold Holder,Services,476.92,00:00.0
Arnold Holder,Services,405.09,00:00.0
Arnold Holder,Services,377.44,00:00.0
Arnold Holder,Services,490.95,00:00.0
Arnold Maxey,Services,74.75,00:00.0
Arnold Maxey,Services,380.38,00:00.0
Arnold Maxey,Services,271.83,00:00.0
Arnold Maxey,Services,380.03,00:00.0
Arnold Maxey,Services,391.69,00:00.0
Arnold Maxey,Services,353.31,00:00.0
Arnold Maxey,Services,313.75,00:00.0
Arnold Maxey,Services,195.85,00:00.0
Arnold Maxey,Services,313.35,00:00.0
Arnold Maxey,Services,301.69,00:00.0
Arnold Maxey,Services,313.35,00:00.0
Arnold Maxey,Services,410.29,00:00.0
Arnold Maxey,Services,244.32,00:00.0
Arnold Maxey,Services,274.18,00:00.0
Arnold Maxey,Services,389.33,00:00.0
Arnold Maxey,Services,361.82,00:00.0
Arnold Maxey,Services,400.99,00:00.0
Arnold Maxey,Services,391.69,00:00.0
Arnold Maxey,Services,313.35,00:00.0
Arnold Maxey,Services,391.69,00:00.0
Arnold Maxey,Services,509.2,00:00.0
Arnold Maxey,Services,341.12,00:00.0
Arnold Maxey,Services,274.18,00:00.0
Arnold Maxey,Services,391.69,00:00.0
Ars Corp.,Services,3637.6,00:00.0
Ars Corp.,Services,18339.86,00:00.0
Ars Corp.,Services,25263.56,00:00.0
Ars Corp.,Services,3030.16,00:00.0
Ars Corp.,Services,18339.86,00:00.0
Ars Corp.,Services,22116.28,00:00.0
Ars Corp.,Services,1031.92,00:00.0
Ars Corp.,Services,11508.08,00:00.0
Ars Corp.,Services,47288.8,00:00.0
Ars Corp.,Services,3637.6,00:00.0
Ars Corp.,Services,3637.6,00:00.0
Ars Corp.,Services,8337.3,00:00.0
Ars Corp.,Services,14550.4,00:00.0
Ars Corp.,Services,7275.2,00:00.0
Ars Corp.,Services,3637.6,00:00.0
Ars Corp.,Services,3637.6,00:00.0
Ars Corp.,Services,10912.8,00:00.0
Ars Corp.,Services,14550.4,00:00.0
Ars Corp.,Services,29100.8,00:00.0
Ars Corp.,Services,15828.08,00:00.0
Ars Corp.,Services,7275.2,00:00.0
Ars Corp.,Services,22735,00:00.0
Ars Corp.,Services,94577.6,00:00.0
Ars Corp.,Services,7275.2,00:00.0
Arsenio Pomales,Services,103.75,00:00.0
Arsenio Pomales,Services,48.6,00:00.0
Arsenio Pomales,Services,258.5,00:00.0
Arsenio Pomales,Services,58.16,00:00.0
Arsenio Pomales,Services,70.87,00:00.0
Arthur J Gallagher Risk Management Risk Management Services  Inc.,Claims & Insurance,140507,00:00.0
Arthur J Gallagher Risk Management Risk Management Services  Inc.,Services,254697,00:00.0
Arthur J Gallagher Risk Management Risk Management Services  Inc.,Claims & Insurance,1000,00:00.0
Arthur J Gallagher Risk Management Risk Management Services  Inc.,Claims & Insurance,19622,00:00.0
Arthur J Gallagher Risk Management Risk Management Services  Inc.,Claims & Insurance,678416,00:00.0
Arthur J Gallagher Risk Management Risk Management Services  Inc.,Claims & Insurance,26403,00:00.0
Arthur J Gallagher Risk Management Risk Management Services  Inc.,Claims & Insurance,2590,00:00.0
Arthur J Gallagher Risk Management Risk Management Services  Inc.,Services,11375,00:00.0
Arthur J Gallagher Risk Management Risk Management Services  Inc.,Claims & Insurance,36314,00:00.0
Arthur J Gallagher Risk Management Risk Management Services  Inc.,Services,17500,00:00.0
Arthur J Gallagher Risk Management Risk Management Services  Inc.,Claims & Insurance,688431,00:00.0
Arthur J Gallagher Risk Management Risk Management Services  Inc.,Claims & Insurance,907892,00:00.0
Arthur J Gallagher Risk Management Risk Management Services  Inc.,Claims & Insurance,655452,00:00.0
Arthur J Gallagher Risk Management Risk Management Services  Inc.,Claims & Insurance,356889,00:00.0
Arthur J Gallagher Risk Management Risk Management Services  Inc.,Claims & Insurance,305000,00:00.0
Arthur J Gallagher Risk Management Risk Management Services  Inc.,Claims & Insurance,343000,00:00.0
Arthur J Gallagher Risk Management Risk Management Services  Inc.,Claims & Insurance,500,00:00.0
Arthur J Gallagher Risk Management Risk Management Services  Inc.,Claims & Insurance,194039,00:00.0
Arthur J Gallagher Risk Management Risk Management Services  Inc.,Claims & Insurance,18842,00:00.0
Arthur J Gallagher Risk Management Risk Management Services  Inc.,Claims & Insurance,1036,00:00.0
Arthur J Gallagher Risk Management Risk Management Services  Inc.,Claims & Insurance,1444940.85,00:00.0
Arthur J Gallagher Risk Management Risk Management Services  Inc.,Claims & Insurance,611766,00:00.0
Arthur J Gallagher Risk Management Risk Management Services  Inc.,Claims & Insurance,465920,00:00.0
Arthur J Gallagher Risk Management Risk Management Services  Inc.,Claims & Insurance,1016607.12,00:00.0
Arthur J Gallagher Risk Management Risk Management Services  Inc.,Claims & Insurance,397358,00:00.0
Arthur J Gallagher Risk Management Risk Management Services  Inc.,Claims & Insurance,1532910,00:00.0
Arthur J Gallagher Risk Management Risk Management Services  Inc.,Claims & Insurance,426724.48,00:00.0
Arthur J Gallagher Risk Management Risk Management Services  Inc.,Claims & Insurance,82062,00:00.0
Arthur J Gallagher Risk Management Risk Management Services  Inc.,Claims & Insurance,96912,00:00.0
Arthur J Gallagher Risk Management Risk Management Services  Inc.,Claims & Insurance,60472.99,00:00.0
Arthur J Gallagher Risk Management Risk Management Services  Inc.,Claims & Insurance,96912,00:00.0
Arthur J Gallagher Risk Management Risk Management Services  Inc.,Claims & Insurance,42672.24,00:00.0
Arthur J Gallagher Risk Management Risk Management Services  Inc.,Claims & Insurance,511543.52,00:00.0
Arthur J Gallagher Risk Management Risk Management Services  Inc.,Claims & Insurance,205348,00:00.0
Arthur J Gallagher Risk Management Risk Management Services  Inc.,Claims & Insurance,91527.34,00:00.0
Arthur J Gallagher Risk Management Risk Management Services  Inc.,Claims & Insurance,72000,00:00.0
Arthur J Gallagher Risk Management Risk Management Services  Inc.,Claims & Insurance,182833,00:00.0
Arthur J Gallagher Risk Management Risk Management Services  Inc.,Services,114875,00:00.0
Arthur J Gallagher Risk Management Risk Management Services  Inc.,Claims & Insurance,340,00:00.0
Arthur J Gallagher Risk Management Risk Management Services  Inc.,Claims & Insurance,108,00:00.0
Arturo J Mota,Services,412.32,00:00.0
Arturo J Mota,Services,517.32,00:00.0
Arturo J Mota,Services,458.37,00:00.0
Arturo J Mota,Services,660.96,00:00.0
Arturo J Mota,Services,758.29,00:00.0
Arturo J Mota,Services,612.82,00:00.0
Arturo J Mota,Services,505.6,00:00.0
Arturo J Mota,Services,404.53,00:00.0
Arturo J Mota,Services,635.81,00:00.0
Arturo J Mota,Services,301.89,00:00.0
Arturo J Mota,Services,642.23,00:00.0
Arturo Lopez,Services,223.64,00:00.0
Arturo Lopez,Services,481,00:00.0
Arturo Lopez,Services,60,00:00.0
Arturo Lopez,Services,1351.62,00:00.0
Arturo Lopez,Services,1054.83,00:00.0
Arturo Lopez,Services,379.5,00:00.0
Asas/Tysol  Inc.,Materials,29376.9,00:00.0
Asas/Tysol  Inc.,Materials,25200,00:00.0
Asas/Tysol  Inc.,Materials,29376.9,00:00.0
Asas/Tysol  Inc.,Materials,4905,00:00.0
Asas/Tysol  Inc.,Materials,4905,00:00.0
Asas/Tysol  Inc.,Materials,4905,00:00.0
Ashley Hamlet,Services,67.92,00:00.0
Ashley Hamlet,Services,1.25,00:00.0
ASHLEY SROGA,Services,46.11,00:00.0
Ashrae,Services,310,00:00.0
"Asplundh Tree Expert, LLC",Services,31827.4,00:00.0
"Asplundh Tree Expert, LLC",Services,14170.65,00:00.0
"Asplundh Tree Expert, LLC",Services,20424,00:00.0
"Asplundh Tree Expert, LLC",Services,851,00:00.0
"Asplundh Tree Expert, LLC",Services,22519.25,00:00.0
"Asplundh Tree Expert, LLC",Services,32848.6,00:00.0
"Asplundh Tree Expert, LLC",Services,34582.68,00:00.0
"Asplundh Tree Expert, LLC",Services,100406.04,00:00.0
"Asplundh Tree Expert, LLC",Services,71250.16,00:00.0
"Asplundh Tree Expert, LLC",Services,28305.4,00:00.0
ASQ,Services,185,00:00.0
ASQ,Services,1249,00:00.0
ASQ,Services,185,00:00.0
Assn. Of American Railroads (AAR),Services,615,00:00.0
Assn. Of American Railroads (AAR),Services,615,00:00.0
Assn. Of American Railroads (AAR),Services,615,00:00.0
Assn. Of American Railroads (AAR),Services,615,00:00.0
Assn. Of American Railroads (AAR),Services,615,00:00.0
Assn. Of American Railroads (AAR),Services,615,00:00.0
Assn. Of American Railroads (AAR),Services,615,00:00.0
Assn. Of American Railroads (AAR),Services,96044,00:00.0
Assn. Of American Railroads (AAR),Services,615,00:00.0
Assn. Of American Railroads (AAR),Services,615,00:00.0
Assn. Of American Railroads (AAR),Capital Purchases,7120.61,00:00.0
Assn. Of American Railroads (AAR),Services,3890,00:00.0
Assn. Of American Railroads (AAR),Services,57.59,00:00.0
Assn. Of American Railroads (AAR),Services,615,00:00.0
Assn. Of American Railroads (AAR),Services,615,00:00.0
Association of Government Accountants,Services,140,00:00.0
AT & T,Utilities,1318.6,00:00.0
AT & T,Utilities,64373.59,00:00.0
AT & T,Utilities,7152.62,00:00.0
AT & T,Utilities,197117.66,00:00.0
AT & T,Utilities,1176.05,00:00.0
AT & T,Utilities,12915.12,00:00.0
AT & T,Utilities,1927.04,00:00.0
AT & T,Utilities,76432.76,00:00.0
AT & T,Utilities,17401.84,00:00.0
AT & T,Utilities,5150.19,00:00.0
AT & T,Utilities,42678.5,00:00.0
AT & T,Utilities,1986902.26,00:00.0
AT & T,Utilities,2068.44,00:00.0
AT & T,Utilities,17308.35,00:00.0
AT & T,Utilities,1176.05,00:00.0
AT & T,Utilities,7653.74,00:00.0
AT & T,Utilities,264.13,00:00.0
AT & T,Utilities,10665.24,00:00.0
AT & T,Utilities,5139.37,00:00.0
AT & T,Utilities,5112.57,00:00.0
AT & T,Utilities,1229.97,00:00.0
AT & T,Utilities,1927.04,00:00.0
AT & T,Utilities,8733.86,00:00.0
AT & T,Utilities,9984.68,00:00.0
AT & T,Utilities,849.51,00:00.0
AT & T,Utilities,6879.93,00:00.0
AT & T,Utilities,12133.23,00:00.0
AT & T,Utilities,13333.41,00:00.0
AT & T,Utilities,264.13,00:00.0
AT & T,Utilities,63682.14,00:00.0
AT & T,Utilities,7653.74,00:00.0
AT & T,Utilities,3255.35,00:00.0
AT & T,Utilities,4861.32,00:00.0
AT & T,Utilities,3294.14,00:00.0
AT & T,Utilities,8733.86,00:00.0
AT & T,Utilities,7075.79,00:00.0
AT & T,Utilities,1210.35,00:00.0
AT & T,Utilities,11712.55,00:00.0
AT & T,Utilities,3294.14,00:00.0
AT & T,Utilities,17685.7,00:00.0
AT & T,Utilities,1210.35,00:00.0
AT & T,Utilities,17685.7,00:00.0
AT & T,Utilities,5149.63,00:00.0
AT & T,Utilities,1927.04,00:00.0
AT & T,Utilities,745059.94,00:00.0
AT & T,Utilities,2458.49,00:00.0
AT & T,Utilities,3250,00:00.0
AT & T,Utilities,847,00:00.0
AT & T,Utilities,46618.04,00:00.0
AT & T,Utilities,7387.5,00:00.0
AT & T,Utilities,23141.48,00:00.0
AT & T,Utilities,4823.33,00:00.0
AT & T,Utilities,6437.2,00:00.0
AT & T,Capital Purchases,95368.25,00:00.0
AT & T,Utilities,74713.49,00:00.0
AT & T,Utilities,43410.01,00:00.0
AT & T,Utilities,12069.3,00:00.0
AT & T,Utilities,10155.34,00:00.0
AT & T,Utilities,1210.35,00:00.0
AT & T,Utilities,13385.08,00:00.0
AT & T,Utilities,5288.26,00:00.0
AT & T,Utilities,8877.88,00:00.0
AT & T,Utilities,2144.47,00:00.0
AT & T,Utilities,5129.6,00:00.0
AT & T,Utilities,2140.15,00:00.0
AT & T,Utilities,2152.33,00:00.0
AT & T,Utilities,17685.7,00:00.0
AT & T,Utilities,6835.5,00:00.0
AT & T,Utilities,263.19,00:00.0
AT & T,Utilities,6897.02,00:00.0
AT & T,Utilities,3720,00:00.0
AT & T,Utilities,6088.95,00:00.0
AT & T,Utilities,3336.96,00:00.0
AT & T,Utilities,15785.34,00:00.0
AT & T,Utilities,13517.7,00:00.0
AT & T,Utilities,5129.6,00:00.0
AT & T,Utilities,3720,00:00.0
AT & T,Utilities,26221.29,00:00.0
AT & T,Utilities,6108.52,00:00.0
AT & T,Utilities,6180.49,00:00.0
AT & T,Utilities,3720,00:00.0
AT & T,Utilities,23665.76,00:00.0
AT & T,Utilities,25229.68,00:00.0
AT & T,Utilities,852.43,00:00.0
AT & T,Utilities,63908.33,00:00.0
AT & T,Utilities,7100.93,00:00.0
AT & T,Utilities,1129.69,00:00.0
AT & T,Utilities,3294.14,00:00.0
AT & T,Utilities,17685.7,00:00.0
AT & T,Utilities,80259.04,00:00.0
AT & T,Utilities,1210.35,00:00.0
AT & T,Utilities,1176.05,00:00.0
AT & T,Utilities,22170.71,00:00.0
AT & T,Utilities,263.19,00:00.0
AT & T,Utilities,3250,00:00.0
AT & T,Utilities,9631.75,00:00.0
AT & T,Utilities,5205.28,00:00.0
AT & T,Utilities,20916.51,00:00.0
AT & T,Utilities,12607.17,00:00.0
AT & T,Utilities,1040276.57,00:00.0
AT & T,Utilities,1927.68,00:00.0
AT & T,Utilities,10218.99,00:00.0
AT & T,Utilities,71118.7,00:00.0
AT & T,Utilities,2170.34,00:00.0
AT & T,Utilities,6380.12,00:00.0
AT & T,Utilities,5142.67,00:00.0
AT & T,Utilities,5129.6,00:00.0
AT & T,Utilities,15848.25,00:00.0
AT & T,Utilities,3720,00:00.0
AT & T,Utilities,27451.98,00:00.0
AT & T,Utilities,6879.93,00:00.0
AT & T,Utilities,16385.45,00:00.0
AT & T,Utilities,877476.6,00:00.0
AT & T,Utilities,72842.07,00:00.0
AT & T,Utilities,3276.51,00:00.0
AT & T,Utilities,858.69,00:00.0
AT & T,Utilities,1582.55,00:00.0
AT & T,Utilities,8093.56,00:00.0
AT & T,Utilities,1359.32,00:00.0
AT & T,Utilities,9681.75,00:00.0
AT & T,Utilities,3250,00:00.0
AT & T,Utilities,125486.25,00:00.0
AT & T,Utilities,12034.8,00:00.0
AT & T,Utilities,1176.05,00:00.0
AT & T,Utilities,12620.64,00:00.0
AT & T,Utilities,41834.69,00:00.0
AT & T,Utilities,5135.08,00:00.0
AT & T,Utilities,2130.13,00:00.0
AT & T,Utilities,29132.33,00:00.0
AT & T,Utilities,5104.89,00:00.0
AT & T,Utilities,1927.04,00:00.0
AT & T,Utilities,263.19,00:00.0
AT & T,Utilities,10479.55,00:00.0
AT & T,Utilities,4990.3,00:00.0
AT & T,Utilities,17685.7,00:00.0
AT & T,Utilities,6361.97,00:00.0
AT & T,Utilities,1210.35,00:00.0
AT & T,Utilities,3294.14,00:00.0
AT & T,Utilities,3720,00:00.0
AT & T,Utilities,6835.5,00:00.0
AT & T,Utilities,14436.12,00:00.0
AT & T,Utilities,7614.02,00:00.0
AT & T,Utilities,47245.18,00:00.0
AT & T,Utilities,68526.19,00:00.0
AT & T,Utilities,3255.35,00:00.0
AT & T,Utilities,15800.7,00:00.0
AT & T,Utilities,859.94,00:00.0
AT & T,Utilities,426587.91,00:00.0
AT & T,Utilities,12594.64,00:00.0
AT & T,Utilities,106.52,00:00.0
AT & T,Utilities,9559.56,00:00.0
AT & T,Utilities,80379.76,00:00.0
AT & T,Utilities,1359.07,00:00.0
AT & T,Utilities,1927.04,00:00.0
AT & T,Utilities,2141.38,00:00.0
AT & T,Utilities,3250,00:00.0
AT & T,Utilities,47579.13,00:00.0
AT & T,Utilities,32117.83,00:00.0
AT & T,Utilities,1210.35,00:00.0
AT & T,Utilities,3294.14,00:00.0
AT & T,Utilities,152.44,00:00.0
AT & T,Utilities,17685.7,00:00.0
AT & T,Utilities,5137.8,00:00.0
AT & T,Utilities,1064.06,00:00.0
AT & T,Utilities,10487.41,00:00.0
AT & T,Utilities,5104.89,00:00.0
AT & T,Utilities,859.53,00:00.0
AT & T,Utilities,7052.11,00:00.0
AT & T,Utilities,7941.55,00:00.0
AT & T,Utilities,23553.13,00:00.0
AT & T,Utilities,1342.97,00:00.0
AT & T,Utilities,175516.76,00:00.0
AT & T,Utilities,1316.01,00:00.0
AT & T,Utilities,4990.3,00:00.0
AT & T,Utilities,483.38,00:00.0
AT & T,Utilities,47346.86,00:00.0
AT & T,Utilities,677239.18,00:00.0
AT & T,Utilities,859.94,00:00.0
AT & T,Utilities,5110.49,00:00.0
AT & T,Utilities,6835.5,00:00.0
AT & T,Utilities,15800.7,00:00.0
AT & T,Utilities,11689.95,00:00.0
AT & T,Utilities,3250,00:00.0
AT & T,Utilities,12366.64,00:00.0
AT & T,Utilities,1927.04,00:00.0
AT & T,Utilities,7859.88,00:00.0
AT & T,Utilities,1106.05,00:00.0
AT & T,Utilities,5124.46,00:00.0
AT & T,Utilities,70738.93,00:00.0
AT & T,Utilities,14545.21,00:00.0
AT & T,Utilities,10909.09,00:00.0
AT & T,Utilities,99208.47,00:00.0
AT & T,Utilities,7978.84,00:00.0
AT & T,Utilities,14461.76,00:00.0
AT & T,Utilities,859.53,00:00.0
AT & T,Utilities,3294.14,00:00.0
AT & T,Utilities,17685.7,00:00.0
AT & T,Utilities,47.99,00:00.0
AT & T,Utilities,16051.92,00:00.0
AT & T,Utilities,71809.51,00:00.0
AT & T,Utilities,6835.5,00:00.0
AT & T,Utilities,1210.35,00:00.0
AT & T,Utilities,10909.09,00:00.0
AT & T,Utilities,4998.02,00:00.0
AT & T,Utilities,7614.02,00:00.0
AT & T,Utilities,10487.41,00:00.0
AT & T,Utilities,47.99,00:00.0
AT & T,Utilities,547582.85,00:00.0
AT & T,Utilities,15800.7,00:00.0
AT & T,Utilities,68526.19,00:00.0
AT & T,Utilities,5245.15,00:00.0
AT & T,Utilities,17685.7,00:00.0
AT & T,Utilities,1210.35,00:00.0
AT & T,Utilities,3294.14,00:00.0
AT & T,Utilities,1927.04,00:00.0
AT & T,Utilities,48864.35,00:00.0
AT & T,Utilities,34588,00:00.0
AT & T,Utilities,3720,00:00.0
AT & T,Utilities,5110.49,00:00.0
AT & T,Utilities,1106.05,00:00.0
AT & T,Utilities,2157.42,00:00.0
AT & T,Utilities,17685.7,00:00.0
AT & T,Utilities,11895.15,00:00.0
AT & T,Utilities,100960.74,00:00.0
AT & T,Utilities,33263.42,00:00.0
AT & T,Utilities,47.99,00:00.0
AT & T,Utilities,1210.35,00:00.0
AT & T,Utilities,5132.17,00:00.0
AT & T,Utilities,3294.14,00:00.0
AT & T,Utilities,2150.77,00:00.0
AT & T,Utilities,10095.07,00:00.0
AT & T,Utilities,12366.64,00:00.0
AT & T,Utilities,35203.44,00:00.0
AT & T,Utilities,3250,00:00.0
AT & T,Utilities,8140.09,00:00.0
AT & T,Utilities,793316,00:00.0
AT & T,Utilities,1163.96,00:00.0
AT & T,Utilities,2196.34,00:00.0
AT & T,Utilities,3720,00:00.0
AT & T,Utilities,3720,00:00.0
AT & T,Utilities,6731.52,00:00.0
AT & T,Utilities,7158.07,00:00.0
AT & T,Utilities,6914.11,00:00.0
AT & T,Utilities,14458.28,00:00.0
AT & T,Utilities,4998.02,00:00.0
AT & T,Utilities,16269.64,00:00.0
AT & T,Utilities,3720,00:00.0
AT & T,Utilities,8556.13,00:00.0
AT & T,Utilities,8028.34,00:00.0
AT & T,Utilities,754492.83,00:00.0
AT & T,Utilities,10909.09,00:00.0
AT & T,Utilities,868.29,00:00.0
AT & T,Utilities,72255.07,00:00.0
AT & T,Utilities,2183.87,00:00.0
AT & T,Utilities,35331.97,00:00.0
AT & T,Utilities,48084.98,00:00.0
AT & T,Utilities,12366.64,00:00.0
AT & T,Utilities,3250,00:00.0
AT & T,Utilities,9406.01,00:00.0
AT & T,Utilities,99039.31,00:00.0
AT & T,Utilities,866.73,00:00.0
AT & T,Utilities,1106.05,00:00.0
AT & T,Utilities,1927.04,00:00.0
AT & T,Utilities,453.3,00:00.0
AT & T,Utilities,17685.7,00:00.0
AT & T,Utilities,5143.68,00:00.0
AT & T,Utilities,11895.15,00:00.0
AT & T,Utilities,47.99,00:00.0
AT & T,Utilities,5225.89,00:00.0
AT & T,Utilities,4998.02,00:00.0
AT & T,Utilities,3294.14,00:00.0
AT & T,Utilities,8023.79,00:00.0
AT & T,Utilities,3720,00:00.0
AT & T,Utilities,793546.99,00:00.0
AT & T,Utilities,859.94,00:00.0
AT & T,Utilities,72214.09,00:00.0
AT & T,Utilities,35602.34,00:00.0
AT & T,Utilities,6835.5,00:00.0
AT & T,Utilities,881.83,00:00.0
AT & T,Utilities,15047,00:00.0
AT & T,Utilities,14456.24,00:00.0
AT & T,Utilities,2139.95,00:00.0
AT & T,Utilities,10909.09,00:00.0
AT & T,Utilities,8494.62,00:00.0
AT & T,Utilities,237.65,00:00.0
AT & T,Utilities,5196.53,00:00.0
AT & T,Utilities,3250,00:00.0
AT & T,Utilities,33.84,00:00.0
AT & T,Utilities,5258.21,00:00.0
AT & T,Utilities,3100.83,00:00.0
AT & T,Utilities,47981.84,00:00.0
AT & T,Utilities,1927.04,00:00.0
AT & T,Utilities,12348,00:00.0
AT & T,Utilities,12366.64,00:00.0
AT & T,Utilities,104615.7,00:00.0
AT & T,Utilities,859.34,00:00.0
AT & T,Utilities,72214.09,00:00.0
AT & T,Utilities,915923.88,00:00.0
AT & T,Utilities,14668.42,00:00.0
AT & T,Utilities,8023.79,00:00.0
AT & T,Utilities,6835.5,00:00.0
AT & T,Utilities,15808.68,00:00.0
AT & T,Utilities,1227.15,00:00.0
AT & T,Utilities,17685.7,00:00.0
AT & T,Utilities,10923.95,00:00.0
AT & T,Utilities,788.89,00:00.0
AT & T,Utilities,1106.05,00:00.0
AT & T,Utilities,110363.01,00:00.0
AT & T,Utilities,3250,00:00.0
AT & T,Utilities,12366.64,00:00.0
AT & T,Utilities,35702.73,00:00.0
AT & T,Utilities,2139.22,00:00.0
AT & T,Utilities,48160.72,00:00.0
AT & T,Utilities,3720,00:00.0
AT & T,Utilities,8659.63,00:00.0
AT & T,Utilities,9512.91,00:00.0
AT & T,Utilities,3.75,00:00.0
AT & T,Utilities,1927.04,00:00.0
AT & T,Utilities,3308.8,00:00.0
AT & T,Utilities,5123.87,00:00.0
AT & T,Utilities,11927.71,00:00.0
AT & T,Utilities,5258.21,00:00.0
AT & T,Utilities,17685.7,00:00.0
AT & T,Utilities,5226.49,00:00.0
AT & T,Utilities,6835.5,00:00.0
AT & T,Utilities,3720,00:00.0
AT & T,Utilities,14669.57,00:00.0
AT & T,Utilities,8779.18,00:00.0
AT & T,Utilities,1106.05,00:00.0
AT & T,Utilities,15824.62,00:00.0
AT & T,Utilities,10923.95,00:00.0
AT & T,Utilities,859.75,00:00.0
AT & T,Utilities,2111.41,00:00.0
AT & T,Utilities,8242.33,00:00.0
AT & T,Utilities,795407.71,00:00.0
AT & T,Utilities,74180.97,00:00.0
A-Tire County Service  Inc.,Materials,2828.63,00:00.0
A-Tire County Service  Inc.,Services,1297,00:00.0
A-Tire County Service  Inc.,Materials,15741.44,00:00.0
A-Tire County Service  Inc.,Services,180,00:00.0
A-Tire County Service  Inc.,Services,5382,00:00.0
A-Tire County Service  Inc.,Materials,3143.39,00:00.0
A-Tire County Service  Inc.,Services,28,00:00.0
A-Tire County Service  Inc.,Services,45,00:00.0
A-Tire County Service  Inc.,Materials,228.2,00:00.0
A-Tire County Service  Inc.,Materials,8357.13,00:00.0
A-Tire County Service  Inc.,Services,5597,00:00.0
A-Tire County Service  Inc.,Services,955.72,00:00.0
A-Tire County Service  Inc.,Materials,2271.04,00:00.0
A-Tire County Service  Inc.,Services,2320,00:00.0
A-Tire County Service  Inc.,Materials,695.66,00:00.0
A-Tire County Service  Inc.,Services,989.98,00:00.0
A-Tire County Service  Inc.,Services,496,00:00.0
A-Tire County Service  Inc.,Services,1662,00:00.0
A-Tire County Service  Inc.,Materials,10459.12,00:00.0
A-Tire County Service  Inc.,Materials,78.28,00:00.0
A-Tire County Service  Inc.,Services,206,00:00.0
A-Tire County Service  Inc.,Materials,3750.94,00:00.0
A-Tire County Service  Inc.,Services,1085.62,00:00.0
A-Tire County Service  Inc.,Services,1937,00:00.0
A-Tire County Service  Inc.,Materials,6838.64,00:00.0
A-Tire County Service  Inc.,Services,2298,00:00.0
A-Tire County Service  Inc.,Materials,1685.34,00:00.0
A-Tire County Service  Inc.,Services,938,00:00.0
A-Tire County Service  Inc.,Materials,4695.45,00:00.0
A-Tire County Service  Inc.,Services,1628.78,00:00.0
A-Tire County Service  Inc.,Services,2600,00:00.0
A-Tire County Service  Inc.,Materials,1736.9,00:00.0
A-Tire County Service  Inc.,Services,851,00:00.0
A-Tire County Service  Inc.,Services,701.2,00:00.0
A-Tire County Service  Inc.,Services,827.21,00:00.0
A-Tire County Service  Inc.,Services,1460.6,00:00.0
A-Tire County Service  Inc.,Services,7451.76,00:00.0
A-Tire County Service  Inc.,Materials,6223.37,00:00.0
A-Tire County Service  Inc.,Services,478.86,00:00.0
Atlantic Track & Turnout Co.,Materials,24597.39,00:00.0
Atlantic Track & Turnout Co.,Materials,47292.66,00:00.0
Atlantic Track & Turnout Co.,Materials,49194.78,00:00.0
Atlantic Track & Turnout Co.,Materials,71685.27,00:00.0
Atlantic Track & Turnout Co.,Materials,43015.86,00:00.0
Atlantic Track & Turnout Co.,Materials,6220,00:00.0
Atlantic Track & Turnout Co.,Materials,76473.6,00:00.0
Atlantic Track & Turnout Co.,Materials,70069,00:00.0
Atlantic Track & Turnout Co.,Materials,24091.08,00:00.0
Atlas & Associates  Inc.,Capital Purchases,114000,00:00.0
Atlas & Associates  Inc.,Capital Purchases,54000,00:00.0
Atlas & Associates  Inc.,Capital Purchases,140000,00:00.0
Atlas & Associates  Inc.,Capital Purchases,101500,00:00.0
Atlas Copco Compressors LLC,Materials,6105.83,00:00.0
Atlas Copco Compressors LLC,Materials,22581.33,00:00.0
Atlas Copco Compressors LLC,Materials,540,00:00.0
Atlas Copco Compressors LLC,Materials,1350,00:00.0
Atlas Copco Compressors LLC,Materials,628.27,00:00.0
Atlas Copco Compressors LLC,Materials,3583.57,00:00.0
Atlas Copco Compressors LLC,Materials,607.5,00:00.0
Atlas Copco Compressors LLC,Materials,5214.77,00:00.0
Atlas First Access,Services,237.5,00:00.0
Atlas First Access,Services,3728.75,00:00.0
Atlas First Access,Materials,1591.71,00:00.0
Atlas First Access,Services,345.98,00:00.0
Atlas First Access,Services,4085,00:00.0
Atlas First Access,Materials,1602.28,00:00.0
Atlas First Access,Services,237.5,00:00.0
Atlas First Access,Materials,186.06,00:00.0
Atlas First Access,Services,570,00:00.0
Atlas First Access,Materials,1186.73,00:00.0
Atlas First Access,Services,950,00:00.0
Atlas First Access,Services,1841.2,00:00.0
Atlas First Access,Materials,5792.92,00:00.0
Atlas First Access,Capital Purchases,46500,00:00.0
Atlas First Access,Materials,297.86,00:00.0
Atlas First Access,Services,938.5,00:00.0
Atlas First Access,Materials,43631,00:00.0
Atlas First Access,Materials,5729.5,00:00.0
Atlas First Access,Services,5641,00:00.0
Atlas First Access,Materials,1463.9,00:00.0
Atlas First Access,Services,950,00:00.0
Atlas First Access,Capital Purchases,174500,00:00.0
Atlas First Access,Materials,2418.26,00:00.0
Atlas First Access,Services,2018.75,00:00.0
Atlas First Access,Materials,1471.23,00:00.0
Atlas First Access,Services,1389.5,00:00.0
Atlas First Access,Services,82,00:00.0
Atlas First Access,Materials,1892.16,00:00.0
Atlas First Access,Services,570,00:00.0
Atlas First Access,Materials,433.26,00:00.0
Atlas First Access,Services,1163.75,00:00.0
Atlas First Access,Materials,7974.95,00:00.0
Atlas First Access,Services,11427.15,00:00.0
Atlas First Access,Services,5842.5,00:00.0
Atlas First Access,Materials,1296.8,00:00.0
Atlas First Access,Materials,396.88,00:00.0
Atlas First Access,Services,890.75,00:00.0
Atlas First Access,Services,142.5,00:00.0
Atlas First Access,Materials,2435.98,00:00.0
Atlas First Access,Services,1467.64,00:00.0
Atlas First Access,Materials,183.45,00:00.0
Atlas First Access,Services,1045,00:00.0
Atlas First Access,Materials,553.36,00:00.0
Atlas First Access,Services,546.25,00:00.0
Atlas First Access,Services,190,00:00.0
Atlas First Access,Services,107,00:00.0
Atlas First Access,Materials,3.31,00:00.0
Atlas First Access,Services,380,00:00.0
Atlas First Access,Services,867,00:00.0
Atlas First Access,Materials,537.75,00:00.0
Atlas First Access,Materials,196.07,00:00.0
Atlas First Access,Services,1045,00:00.0
Atlas First Access,Materials,3612.42,00:00.0
Atlas First Access,Services,3954.5,00:00.0
Atlas First Access,Materials,2042.26,00:00.0
Atlas First Access,Services,1947.5,00:00.0
Atlas First Access,Materials,384.07,00:00.0
Atlas First Access,Services,498.75,00:00.0
Atlas First Access,Materials,1714.72,00:00.0
Atlas First Access,Services,3859.75,00:00.0
Atlas Toyota Material Handling  LLC,Capital Purchases,41414.9,00:00.0
Atlas Toyota Material Handling  LLC,,2650,00:00.0
Atlas Toyota Material Handling  LLC,Services,90308,00:00.0
Atlas Toyota Material Handling  LLC,Capital Purchases,34708,00:00.0
Atlas Toyota Material Handling  LLC,Materials,351.92,00:00.0
Atlas Toyota Material Handling  LLC,Materials,1699,00:00.0
Atlas Toyota Material Handling  LLC,Capital Purchases,47281,00:00.0
Atlas Toyota Material Handling  LLC,Capital Purchases,79920,00:00.0
Aurelio E. Rocha,Services,96.94,00:00.0
Auto Glass Plus Inc,Services,1260,00:00.0
Auto Glass Plus Inc,Services,1260,00:00.0
Automated Railroad Mntce. Systems  Inc. (Arms  Inc.),Capital Purchases,1378.4,00:00.0
Automated Railroad Mntce. Systems  Inc. (Arms  Inc.),Capital Purchases,2756.8,00:00.0
Automated Railroad Mntce. Systems  Inc. (Arms  Inc.),Capital Purchases,1378.4,00:00.0
Automated Railroad Mntce. Systems  Inc. (Arms  Inc.),Materials,4824.4,00:00.0
Automated Railroad Mntce. Systems  Inc. (Arms  Inc.),Capital Purchases,5513.6,00:00.0
Automated Railroad Mntce. Systems  Inc. (Arms  Inc.),Materials,2151.12,00:00.0
Automated Railroad Mntce. Systems  Inc. (Arms  Inc.),Capital Purchases,2151.12,00:00.0
Automated Railroad Mntce. Systems  Inc. (Arms  Inc.),Capital Purchases,6453.36,00:00.0
Automated Railroad Mntce. Systems  Inc. (Arms  Inc.),Capital Purchases,1434.08,00:00.0
Automated Railroad Mntce. Systems  Inc. (Arms  Inc.),Capital Purchases,717.04,00:00.0
Automated Railroad Mntce. Systems  Inc. (Arms  Inc.),Capital Purchases,717.04,00:00.0
Automated Railroad Mntce. Systems  Inc. (Arms  Inc.),Capital Purchases,717.04,00:00.0
Automated Railroad Mntce. Systems  Inc. (Arms  Inc.),Materials,717.04,00:00.0
Automated Railroad Mntce. Systems  Inc. (Arms  Inc.),Materials,5019.28,00:00.0
"Automotive Rentals, Inc.",Capital Purchases,16726.5,00:00.0
"Automotive Rentals, Inc.",Services,4587.86,00:00.0
"Axon Enterprise, Inc",Services,874,00:00.0
"Axon Enterprise, Inc",Services,430679.67,00:00.0
Azura Investigations Llc,Services,4221,00:00.0
Azura Investigations Llc,Services,3066,00:00.0
Azura Investigations Llc,Services,3230,00:00.0
Azura Investigations Llc,Services,1546,00:00.0
Azura Investigations Llc,Services,1096,00:00.0
Azura Investigations Llc,Services,1331,00:00.0
Azura Investigations Llc,Services,4808,00:00.0
Azura Investigations Llc,Services,6235,00:00.0
Azura Investigations Llc,Services,2465,00:00.0
Azura Investigations Llc,Services,1623,00:00.0
Azura Investigations Llc,Services,5388,00:00.0
Azura Investigations Llc,Services,1952,00:00.0
Azura Investigations Llc,Services,2229,00:00.0
Azura Investigations Llc,Services,1566,00:00.0
B & B Instrument  Inc.,Materials,5868,00:00.0
Bach-Simpson Div. Of Wabtec Canada  Inc.,Materials,23375,00:00.0
Bach-Simpson Div. Of Wabtec Canada  Inc.,Materials,1985,00:00.0
Bach-Simpson Div. Of Wabtec Canada  Inc.,Materials,650,00:00.0
Bach-Simpson Div. Of Wabtec Canada  Inc.,Materials,5430,00:00.0
Bach-Simpson Div. Of Wabtec Canada  Inc.,Materials,5580,00:00.0
Bach-Simpson Div. Of Wabtec Canada  Inc.,Materials,8585,00:00.0
Bach-Simpson Div. Of Wabtec Canada  Inc.,Materials,1960,00:00.0
Bach-Simpson Div. Of Wabtec Canada  Inc.,Materials,1095,00:00.0
Bach-Simpson Div. Of Wabtec Canada  Inc.,Materials,425,00:00.0
Bach-Simpson Div. Of Wabtec Canada  Inc.,Materials,2200,00:00.0
Bach-Simpson Div. Of Wabtec Canada  Inc.,Materials,19175,00:00.0
Bach-Simpson Div. Of Wabtec Canada  Inc.,Materials,19515,00:00.0
Bach-Simpson Div. Of Wabtec Canada  Inc.,Materials,4375,00:00.0
Bach-Simpson Div. Of Wabtec Canada  Inc.,Materials,2950,00:00.0
Bach-Simpson Div. Of Wabtec Canada  Inc.,Materials,1550,00:00.0
Bach-Simpson Div. Of Wabtec Canada  Inc.,Materials,19160,00:00.0
Bach-Simpson Div. Of Wabtec Canada  Inc.,Materials,425,00:00.0
Bach-Simpson Div. Of Wabtec Canada  Inc.,Materials,7120,00:00.0
Bach-Simpson Div. Of Wabtec Canada  Inc.,Materials,4790,00:00.0
Bach-Simpson Div. Of Wabtec Canada  Inc.,Materials,16725,00:00.0
Bach-Simpson Div. Of Wabtec Canada  Inc.,Materials,7140,00:00.0
Bach-Simpson Div. Of Wabtec Canada  Inc.,Materials,19310,00:00.0
Bach-Simpson Div. Of Wabtec Canada  Inc.,Materials,2450,00:00.0
Bach-Simpson Div. Of Wabtec Canada  Inc.,Materials,3000,00:00.0
Bach-Simpson Div. Of Wabtec Canada  Inc.,Capital Purchases,241156,00:00.0
Bach-Simpson Div. Of Wabtec Canada  Inc.,Materials,5545,00:00.0
Bach-Simpson Div. Of Wabtec Canada  Inc.,Materials,5570,00:00.0
Bach-Simpson Div. Of Wabtec Canada  Inc.,Materials,3180,00:00.0
Bach-Simpson Div. Of Wabtec Canada  Inc.,Materials,1980,00:00.0
Bach-Simpson Div. Of Wabtec Canada  Inc.,Materials,2780,00:00.0
Bach-Simpson Div. Of Wabtec Canada  Inc.,Materials,19190,00:00.0
Bach-Simpson Div. Of Wabtec Canada  Inc.,Materials,2495,00:00.0
Bach-Simpson Div. Of Wabtec Canada  Inc.,Materials,1635,00:00.0
Bach-Simpson Div. Of Wabtec Canada  Inc.,Materials,16155,00:00.0
Bach-Simpson Div. Of Wabtec Canada  Inc.,Materials,1635,00:00.0
Bach-Simpson Div. Of Wabtec Canada  Inc.,Services,550,00:00.0
Bach-Simpson Div. Of Wabtec Canada  Inc.,Materials,545,00:00.0
Bach-Simpson Div. Of Wabtec Canada  Inc.,Materials,9765,00:00.0
Bach-Simpson Div. Of Wabtec Canada  Inc.,Materials,6395,00:00.0
Bach-Simpson Div. Of Wabtec Canada  Inc.,Services,950,00:00.0
Ballast Tools  Inc.,Materials,11040,00:00.0
Ballast Tools  Inc.,Materials,2760,00:00.0
Ballast Tools  Inc.,Materials,4656,00:00.0
Ballast Tools  Inc.,Materials,9312,00:00.0
Ballast Tools  Inc.,Materials,4656,00:00.0
Ballast Tools  Inc.,Materials,2328,00:00.0
Ballast Tools  Inc.,Materials,4947,00:00.0
Barrett Hardware & Industrial Suppl,Materials,5931.41,00:00.0
Barrett Hardware & Industrial Suppl,Services,50,00:00.0
Baultar Concept  Inc.,Capital Purchases,5000,00:00.0
Baultar Concept  Inc.,Capital Purchases,25300,00:00.0
Baultar Concept  Inc.,Materials,1200,00:00.0
Baultar Concept  Inc.,Materials,3600,00:00.0
Baultar Concept  Inc.,Materials,2365,00:00.0
Baultar Concept  Inc.,Services,650,00:00.0
Baultar Concept  Inc.,Capital Purchases,67500,00:00.0
Baultar Concept  Inc.,Materials,4425,00:00.0
Baultar Concept  Inc.,Services,0,00:00.0
Baultar Concept  Inc.,Services,350,00:00.0
Baultar Concept  Inc.,Materials,480,00:00.0
BCBS Of Illinois,Services,41806.46,00:00.0
BCBS Of Illinois,Services,982905.2,00:00.0
BCBS Of Illinois,Services,1020004.32,00:00.0
BCBS Of Illinois,Services,42523.96,00:00.0
BCBS Of Illinois,Services,1031884.51,00:00.0
BCBS Of Illinois,Services,43155.3,00:00.0
BCBS Of Illinois,Services,999342.51,00:00.0
BCBS Of Illinois,Services,43523.84,00:00.0
BCBS Of Illinois,Services,1033517.43,00:00.0
BCBS Of Illinois,Services,43523.84,00:00.0
BCBS Of Illinois,Services,45252.71,00:00.0
BCBS Of Illinois,Services,1045008.94,00:00.0
BCBS Of Illinois,Services,1101183.06,00:00.0
BCBS Of Illinois,Services,45495.42,00:00.0
BCBS Of Illinois,Services,45766.74,00:00.0
BCBS Of Illinois,Services,1039235.05,00:00.0
BCBS Of Illinois,Services,1067178.56,00:00.0
BCBS Of Illinois,Services,46362.16,00:00.0
BCBS Of Illinois,Services,1049495.97,00:00.0
BCBS Of Illinois,Services,51236.53,00:00.0
BCBS Of Illinois,Services,52026.26,00:00.0
BCBS Of Illinois,Services,1096736.86,00:00.0
BCBS Of Illinois,Services,205159.06,00:00.0
BCBS Of Illinois,Services,1089501.98,00:00.0
Bearing Headquarters Co.,Materials,941.76,00:00.0
Bearing Headquarters Co.,Materials,8468.18,00:00.0
Bebon Office Machines Co.  Inc.,,400,00:00.0
Bebon Office Machines Co.  Inc.,,400,00:00.0
Becker Professional Development Corp.,Services,381.65,00:00.0
Becker Professional Development Corp.,Services,449,00:00.0
Becker Professional Development Corp.,Services,449,00:00.0
Becker Professional Development Corp.,Services,314.3,00:00.0
Beligh Sraieb,Services,40,00:00.0
Beligh Sraieb,Services,50,00:00.0
Beligh Sraieb,Services,157.2,00:00.0
Beligh Sraieb,Services,206,00:00.0
Beligh Sraieb,Services,29.05,00:00.0
Beligh Sraieb,Services,334.71,00:00.0
Beligh Sraieb,Services,17.75,00:00.0
Beligh Sraieb,Services,770.28,00:00.0
Beligh Sraieb,Services,28.25,00:00.0
Beligh Sraieb,Services,593.76,00:00.0
Beligh Sraieb,Services,24.7,00:00.0
Beligh Sraieb,Services,943.27,00:00.0
Beligh Sraieb,Services,35.75,00:00.0
Beligh Sraieb,Services,888.19,00:00.0
Beligh Sraieb,Services,41.3,00:00.0
Beligh Sraieb,Services,47.95,00:00.0
Beligh Sraieb,Services,831.85,00:00.0
Beligh Sraieb,Services,878.68,00:00.0
Beligh Sraieb,Services,31.65,00:00.0
Beligh Sraieb,Services,42.4,00:00.0
Beligh Sraieb,Services,858.12,00:00.0
Bellwood Electric Motors Inc.,Materials,18900,00:00.0
Bellwood Electric Motors Inc.,Materials,5100,00:00.0
Bellwood Electric Motors Inc.,Materials,18900,00:00.0
Bellwood Electric Motors Inc.,Materials,4200,00:00.0
Bellwood Electric Motors Inc.,Materials,3200,00:00.0
Bellwood Electric Motors Inc.,Materials,12800,00:00.0
Bellwood Electric Motors Inc.,Services,19900,00:00.0
Bellwood Electric Motors Inc.,Services,7200,00:00.0
Bellwood Electric Motors Inc.,Materials,18900,00:00.0
Bellwood Electric Motors Inc.,Materials,5300,00:00.0
Bellwood Electric Motors Inc.,Materials,13700,00:00.0
Bellwood Electric Motors Inc.,Materials,5300,00:00.0
Bellwood Electric Motors Inc.,Materials,3200,00:00.0
Bellwood Electric Motors Inc.,Materials,18900,00:00.0
Bellwood Electric Motors Inc.,Materials,18900,00:00.0
Bellwood Electric Motors Inc.,Services,19900,00:00.0
Bellwood Electric Motors Inc.,Materials,920,00:00.0
Bellwood Electric Motors Inc.,Materials,3600,00:00.0
Bellwood Electric Motors Inc.,Materials,5190,00:00.0
Bellwood Electric Motors Inc.,Materials,2400,00:00.0
Bellwood Electric Motors Inc.,Materials,5100,00:00.0
Bellwood Electric Motors Inc.,Materials,32200,00:00.0
Bellwood Electric Motors Inc.,Materials,18400,00:00.0
Bellwood Electric Motors Inc.,Materials,4400,00:00.0
Bellwood Electric Motors Inc.,Services,19900,00:00.0
Bellwood Electric Motors Inc.,Materials,2400,00:00.0
Bellwood Electric Motors Inc.,Materials,8200,00:00.0
Bellwood Electric Motors Inc.,Services,19900,00:00.0
Bellwood Electric Motors Inc.,Materials,5100,00:00.0
Bellwood Electric Motors Inc.,Services,19900,00:00.0
Bellwood Electric Motors Inc.,Materials,3180,00:00.0
Bellwood Electric Motors Inc.,Materials,10200,00:00.0
Bellwood Electric Motors Inc.,Materials,8200,00:00.0
Bellwood Electric Motors Inc.,Materials,2600,00:00.0
Bellwood Electric Motors Inc.,Materials,1100,00:00.0
Bellwood Electric Motors Inc.,Services,19900,00:00.0
Bellwood Electric Motors Inc.,Materials,10200,00:00.0
Benefit Resource Inc.,Services,222704.71,00:00.0
Benefit Resource Inc.,Services,16472.67,00:00.0
Benefit Resource Inc.,Services,6657.3,00:00.0
Benefit Resource Inc.,Services,7438.1,00:00.0
Benefit Resource Inc.,Services,109179.62,00:00.0
Benefit Resource Inc.,Services,289509.67,00:00.0
Benefit Resource Inc.,Services,19907.34,00:00.0
Benefit Resource Inc.,Services,9099.5,00:00.0
Benefit Resource Inc.,Services,112634.43,00:00.0
Benefit Resource Inc.,Services,6555.12,00:00.0
Benefit Resource Inc.,Services,113572.94,00:00.0
Benefit Resource Inc.,Services,11030.27,00:00.0
Benefit Resource Inc.,Services,4548.5,00:00.0
Benefit Resource Inc.,Services,4554,00:00.0
Benefit Resource Inc.,Services,113802.95,00:00.0
Benefit Resource Inc.,Services,6862.72,00:00.0
Benefit Resource Inc.,Services,9112,00:00.0
Benefit Resource Inc.,Services,7125.88,00:00.0
Benefit Resource Inc.,Services,113148.25,00:00.0
Benefit Resource Inc.,Services,4547,00:00.0
Benefit Resource Inc.,Services,111850,00:00.0
Benefit Resource Inc.,Services,7231.45,00:00.0
Benefit Resource Inc.,Services,12494.42,00:00.0
Benefit Resource Inc.,Services,221380.58,00:00.0
Benefit Resource Inc.,Services,9116,00:00.0
Benefit Resource Inc.,Services,4569,00:00.0
Bentley Systems  Inc.,Services,45504,00:00.0
Bentley Systems  Inc.,Services,254069,00:00.0
Berg Engineering & Sales,Services,241,00:00.0
Bernard Powell,Services,678,00:00.0
Bernard Powell,Services,847.5,00:00.0
Bernard Powell,Services,847.5,00:00.0
Bernard Powell,Services,339,00:00.0
Bernard Powell,Services,1130,00:00.0
Bernard Powell,Services,508.5,00:00.0
Bernard Powell,Services,621.5,00:00.0
Bernard Powell,Services,565,00:00.0
Bernard Powell,Services,565,00:00.0
Bernard Powell,Services,452,00:00.0
Bernard Powell,Services,621.5,00:00.0
Bernard Powell,Services,621.5,00:00.0
Bernard Powell,Services,565,00:00.0
Bernard Powell,Services,621.5,00:00.0
Berts Car Wash  Inc.,Services,2611.75,00:00.0
Berts Car Wash  Inc.,Services,2001.5,00:00.0
Berts Car Wash  Inc.,Services,3833.75,00:00.0
Berts Car Wash  Inc.,Services,1739.75,00:00.0
Berts Car Wash  Inc.,Services,1602.5,00:00.0
Berts Car Wash  Inc.,Services,2227.75,00:00.0
Berts Car Wash  Inc.,Services,2232.25,00:00.0
Berts Car Wash  Inc.,Services,1772.75,00:00.0
Berts Car Wash  Inc.,Services,929.25,00:00.0
Berts Car Wash  Inc.,Services,1168.25,00:00.0
Berts Car Wash  Inc.,Services,1728.5,00:00.0
Bierer & Associates,Materials,524,00:00.0
Bierer & Associates,Services,20,00:00.0
Billy Chaney,Services,75.98,00:00.0
Billy Chaney,Services,628.8,00:00.0
Billy Chaney,Services,589.5,00:00.0
Billy Chaney,Services,670.72,00:00.0
Billy Chaney,Services,510.9,00:00.0
Billy Chaney,Services,628.8,00:00.0
Billy Chaney,Services,586.88,00:00.0
Billy Chaney,Services,589.5,00:00.0
Billy Chaney,Services,567.95,00:00.0
Black Dog Petroleum LLC,Materials,7164,00:00.0
Blackwood Barbeque,Services,1408.94,00:00.0
BLAIRE THEUERKAUF,Services,129.96,00:00.0
BLAIRE THEUERKAUF,Services,197.5,00:00.0
BLAIRE THEUERKAUF,Services,61.93,00:00.0
"Blanchard Training and Development, Inc. dba The Ken Blanchard Companies",Services,100925.9,00:00.0
"Blanchard Training and Development, Inc. dba The Ken Blanchard Companies",Services,3790,00:00.0
"Blanchard Training and Development, Inc. dba The Ken Blanchard Companies",Services,60000,00:00.0
"Blanchard Training and Development, Inc. dba The Ken Blanchard Companies",Services,30000,00:00.0
"Blanchard Training and Development, Inc. dba The Ken Blanchard Companies",Services,1598.84,00:00.0
"Blanchard Training and Development, Inc. dba The Ken Blanchard Companies",Services,30000,00:00.0
"Blanchard Training and Development, Inc. dba The Ken Blanchard Companies",Services,11207.95,00:00.0
"Blanchard Training and Development, Inc. dba The Ken Blanchard Companies",Services,14713.19,00:00.0
"Blanchard Training and Development, Inc. dba The Ken Blanchard Companies",Services,1895,00:00.0
"Blanchard Training and Development, Inc. dba The Ken Blanchard Companies",Services,5092.09,00:00.0
"Blanchard Training and Development, Inc. dba The Ken Blanchard Companies",Services,6767.39,00:00.0
BLUE LINE TRAINING & DEVELOPMENT,Services,5378.08,00:00.0
Blue Print Shoppe  Inc.,Capital Purchases,385,00:00.0
Blue Print Shoppe  Inc.,Capital Purchases,1408.05,00:00.0
Blue Print Shoppe  Inc.,Capital Purchases,167.51,00:00.0
Blue Print Shoppe  Inc.,Capital Purchases,419.2,00:00.0
Blue Print Shoppe  Inc.,Capital Purchases,242.05,00:00.0
Blue Print Shoppe  Inc.,Capital Purchases,508.72,00:00.0
Blue Print Shoppe  Inc.,Capital Purchases,2102.23,00:00.0
Blue Print Shoppe  Inc.,Capital Purchases,71.24,00:00.0
Blue Print Shoppe  Inc.,Capital Purchases,133.86,00:00.0
"BlueStar Computer Solutions, Inc. DBA BlueStar Case Solutions, Inc.",Claims & Insurance,61233.57,00:00.0
"BlueStar Computer Solutions, Inc. DBA BlueStar Case Solutions, Inc.",Claims & Insurance,10286.27,00:00.0
"BlueStar Computer Solutions, Inc. DBA BlueStar Case Solutions, Inc.",Claims & Insurance,10493.72,00:00.0
"BlueStar Computer Solutions, Inc. DBA BlueStar Case Solutions, Inc.",Claims & Insurance,10493.72,00:00.0
Bnsf Railway Co.,Capital Purchases,10337.76,00:00.0
Bnsf Railway Co.,Capital Purchases,12379.13,00:00.0
Bnsf Railway Co.,Capital Purchases,40263.8,00:00.0
Bnsf Railway Co.,Services,4150.82,00:00.0
Bnsf Railway Co.,Capital Purchases,4509.3,00:00.0
Bnsf Railway Co.,Capital Purchases,33414.39,00:00.0
Bnsf Railway Co.,Capital Purchases,38341.86,00:00.0
Bnsf Railway Co.,Services,5693555,00:00.0
Bnsf Railway Co.,Services,50,00:00.0
Bnsf Railway Co.,Services,4150.82,00:00.0
Bnsf Railway Co.,Capital Purchases,190299.59,00:00.0
Bnsf Railway Co.,Capital Purchases,121690.78,00:00.0
Bnsf Railway Co.,Capital Purchases,13353.97,00:00.0
Bnsf Railway Co.,Capital Purchases,22795.46,00:00.0
Bnsf Railway Co.,Capital Purchases,6501.01,00:00.0
Bnsf Railway Co.,Capital Purchases,39707.11,00:00.0
Bnsf Railway Co.,Capital Purchases,36378.15,00:00.0
Bnsf Railway Co.,Services,5865476,00:00.0
Bnsf Railway Co.,Capital Purchases,2307.5,00:00.0
Bnsf Railway Co.,Capital Purchases,16493.04,00:00.0
Bnsf Railway Co.,Capital Purchases,17377.46,00:00.0
Bnsf Railway Co.,Capital Purchases,614566.67,00:00.0
Bnsf Railway Co.,Capital Purchases,393370.34,00:00.0
Bnsf Railway Co.,Services,4150.82,00:00.0
Bnsf Railway Co.,Services,5427249,00:00.0
Bnsf Railway Co.,Capital Purchases,26177.25,00:00.0
Bnsf Railway Co.,Capital Purchases,19310.85,00:00.0
Bnsf Railway Co.,Capital Purchases,34.76,00:00.0
Bnsf Railway Co.,Capital Purchases,30869.74,00:00.0
Bnsf Railway Co.,Capital Purchases,191382.1,00:00.0
Bnsf Railway Co.,Capital Purchases,1732.47,00:00.0
Bnsf Railway Co.,Capital Purchases,7669.43,00:00.0
Bnsf Railway Co.,Capital Purchases,60919.65,00:00.0
Bnsf Railway Co.,Services,5867461,00:00.0
Bnsf Railway Co.,Services,4150.82,00:00.0
Bnsf Railway Co.,Services,4150.82,00:00.0
Bnsf Railway Co.,Capital Purchases,42893.99,00:00.0
Bnsf Railway Co.,Services,5453887,00:00.0
Bnsf Railway Co.,Capital Purchases,691207.12,00:00.0
Bnsf Railway Co.,Capital Purchases,1332.69,00:00.0
Bnsf Railway Co.,Capital Purchases,1127.83,00:00.0
Bnsf Railway Co.,Services,4150.82,00:00.0
Bnsf Railway Co.,Services,5965012,00:00.0
Bnsf Railway Co.,Capital Purchases,4659.71,00:00.0
Bnsf Railway Co.,Services,7599,00:00.0
Bnsf Railway Co.,Capital Purchases,422285.13,00:00.0
Bnsf Railway Co.,Services,4150.82,00:00.0
Bnsf Railway Co.,Services,5786107,00:00.0
Bnsf Railway Co.,Capital Purchases,40871.67,00:00.0
Bnsf Railway Co.,Capital Purchases,14439.31,00:00.0
Bnsf Railway Co.,Capital Purchases,18442.28,00:00.0
Bnsf Railway Co.,Capital Purchases,1322783.49,00:00.0
Bnsf Railway Co.,Capital Purchases,7669.3,00:00.0
Bnsf Railway Co.,Capital Purchases,15662.33,00:00.0
Bnsf Railway Co.,Capital Purchases,61447.99,00:00.0
Bnsf Railway Co.,Capital Purchases,10924.73,00:00.0
Bnsf Railway Co.,Capital Purchases,729402.01,00:00.0
Bnsf Railway Co.,Capital Purchases,14436.02,00:00.0
Bnsf Railway Co.,Capital Purchases,94536.92,00:00.0
Bnsf Railway Co.,Capital Purchases,773135.16,00:00.0
Bnsf Railway Co.,Capital Purchases,390.33,00:00.0
Bnsf Railway Co.,Capital Purchases,411861.45,00:00.0
Bnsf Railway Co.,Services,13677810,00:00.0
Bnsf Railway Co.,Capital Purchases,7534.46,00:00.0
Bnsf Railway Co.,Capital Purchases,3683,00:00.0
Bnsf Railway Co.,Services,4500.02,00:00.0
Bnsf Railway Co.,Capital Purchases,116344.29,00:00.0
Bnsf Railway Co.,Capital Purchases,683895.94,00:00.0
Bnsf Railway Co.,Services,4500.02,00:00.0
Bnsf Railway Co.,Capital Purchases,16877.57,00:00.0
Bnsf Railway Co.,Capital Purchases,130704.54,00:00.0
Bnsf Railway Co.,Services,4500.02,00:00.0
Bnsf Railway Co.,Services,5761140,00:00.0
Bnsf Railway Co.,Capital Purchases,275295.71,00:00.0
Bnsf Railway Co.,Capital Purchases,861925.99,00:00.0
Bnsf Railway Co.,Capital Purchases,13664.64,00:00.0
Bnsf Railway Co.,Capital Purchases,372960.19,00:00.0
Bnsf Railway Co.,Services,6222737,00:00.0
Bnsf Railway Co.,Services,4500.02,00:00.0
Bnsf Railway Co.,Capital Purchases,35185.28,00:00.0
Bnsf Railway Co.,Services,4500.02,00:00.0
Bnsf Railway Co.,Capital Purchases,311241.11,00:00.0
Bobby Brown,Services,46.25,00:00.0
Bobby Brown,Services,46.25,00:00.0
Bobby Brown,Services,48.47,00:00.0
Bobby Brown,Services,27.51,00:00.0
Bobby Brown,Services,27.51,00:00.0
Bobby Brown,Services,48.47,00:00.0
Bobby Brown,Services,17.03,00:00.0
Bobby Brown,Services,101.39,00:00.0
Bobby Brown,Services,136.24,00:00.0
Bobby Brown,Services,48.47,00:00.0
Bounce Houses R Us LLC,Services,2211.72,00:00.0
Bounce Houses R Us LLC,Services,5235,00:00.0
Brad Methling,Services,50,00:00.0
Brad Methling,Services,83.84,00:00.0
Brad Methling,Services,188.64,00:00.0
Brad Methling,Services,209.6,00:00.0
Brad Methling,Services,471.6,00:00.0
Brad Methling,Services,178.16,00:00.0
Brad Methling,Services,279.03,00:00.0
Brad Methling,Services,125.76,00:00.0
Brad Methling,Services,41.92,00:00.0
Brad Methling,Services,157.2,00:00.0
Brad Methling,Services,163.75,00:00.0
Brad Methling,Services,83.84,00:00.0
Brad Methling,Services,41.92,00:00.0
Brad Methling,Services,104.8,00:00.0
Bradken-Atchison/St. Joseph  Inc.,Materials,4911.6,00:00.0
Bradken-Atchison/St. Joseph  Inc.,Services,228,00:00.0
Brandon Henley,Services,137.6,00:00.0
Brandon Henley,Services,831.39,00:00.0
Brandon Henley,Services,63.01,00:00.0
Brandon Henley,Services,259,00:00.0
Brasco International  Inc.,Capital Purchases,115350,00:00.0
Brasco International  Inc.,Capital Purchases,100248.75,00:00.0
Brendan A. Stejskal,Services,240.63,00:00.0
Brendan A. Stejskal,Services,240.63,00:00.0
Brendan A. Stejskal,Services,252.18,00:00.0
Brendan A. Stejskal,Services,276.41,00:00.0
Brendan A. Stejskal,Services,252.18,00:00.0
Brendan A. Stejskal,Services,219.08,00:00.0
Brendan A. Stejskal,Services,279.69,00:00.0
Brendan A. Stejskal,Services,242.35,00:00.0
Brendan A. Stejskal,Services,297.37,00:00.0
Brendan A. Stejskal,Services,591.47,00:00.0
Brendan A. Stejskal,Services,242.35,00:00.0
Brendan A. Stejskal,Services,252.18,00:00.0
Brendan A. Stejskal,Services,269.86,00:00.0
Brendan A. Stejskal,Services,290.82,00:00.0
Brendan A. Stejskal,Services,556.1,00:00.0
Brendan A. Stejskal,Services,552.82,00:00.0
Brendan A. Stejskal,Services,242.35,00:00.0
Brendan A. Stejskal,Services,242.35,00:00.0
Brendan A. Stejskal,Services,273.14,00:00.0
Brendan A. Stejskal,Services,290.82,00:00.0
Brendan A. Stejskal,Services,290.82,00:00.0
Brendan A. Stejskal,Services,242.35,00:00.0
Brendan M. Ohara,Services,48.47,00:00.0
Bria Scarlett,Services,103.49,00:00.0
Bria Scarlett,Services,103.49,00:00.0
BRIAN HARDY,Services,37.5,00:00.0
BRIAN HARDY,Services,138.86,00:00.0
BRIAN HARDY,Services,39.3,00:00.0
BRIAN HARDY,Services,39.3,00:00.0
BRIAN HARDY,Services,24.89,00:00.0
BRIAN HARDY,Services,24.89,00:00.0
BRIAN HARDY,Services,60.26,00:00.0
BRIAN HARDY,Services,39.3,00:00.0
BRIAN HARDY,Services,39.3,00:00.0
BRIAN HARDY,Services,39.3,00:00.0
BRIAN HARDY,Services,60.26,00:00.0
BRIAN HARDY,Services,39.3,00:00.0
BRIAN HARDY,Services,60.26,00:00.0
BRIAN HARDY,Services,39.3,00:00.0
BRIAN HARDY,Services,39.3,00:00.0
BRIAN HARDY,Services,60.26,00:00.0
BRIAN HARDY,Services,60.26,00:00.0
BRIAN HARDY,Services,39.3,00:00.0
Brian Richard Grier,Services,41.92,00:00.0
Brian Richards,Services,37.5,00:00.0
Brian Richards,Services,78.6,00:00.0
Brian Richards,Services,60.26,00:00.0
Brian Richards,Services,91.7,00:00.0
Brian Richards,Services,99.56,00:00.0
Brian Richards,Services,60.26,00:00.0
Brian Richards,Services,120.52,00:00.0
Brian Richards,Services,117.9,00:00.0
Brian Richards,Services,60.26,00:00.0
Brian Richards,Services,13.1,00:00.0
Brian Richards,Services,78.6,00:00.0
Brian S Wimmer,Services,216.01,00:00.0
Brian S Wimmer,Services,352,00:00.0
Brian S Wimmer,Services,70.22,00:00.0
Brian S Wimmer,Services,1077.84,00:00.0
Brian S Wimmer,Services,887.06,00:00.0
Brian S Wimmer,Services,352.88,00:00.0
Brian Simmons,Services,21.91,00:00.0
Brian Simmons,Services,23.19,00:00.0
Brian Simmons,Services,1146.75,00:00.0
Brian Simmons,Services,311.5,00:00.0
Brian T. Stepp,Services,66.25,00:00.0
Brian T. Stepp,Services,59.25,00:00.0
Brian Windle,Services,197.5,00:00.0
Brian Windle,Services,189.31,00:00.0
Brian Windle,Services,335.61,00:00.0
Brian Windle,Services,14,00:00.0
Brittany Bogan,Services,5250,00:00.0
Broadway Electric  Inc.,Capital Purchases,57776.42,00:00.0
Buona Catering LLC dba Beyond Catering & Events,Services,4428.76,00:00.0
Burns & Mcdonnell Engineering Co.,Capital Purchases,101368.07,00:00.0
Cadient LLC,Services,9262,00:00.0
Cadient LLC,Services,5880,00:00.0
Cadient LLC,Services,2070,00:00.0
Cadient LLC,Services,8627,00:00.0
Cadient LLC,Services,450,00:00.0
Cadient LLC,Services,9262,00:00.0
Cadient LLC,Services,2070,00:00.0
Cadient LLC,Services,9958,00:00.0
Cadient LLC,Services,2070,00:00.0
Calumet Harbor Lumber & Supplyco.,Materials,22369.28,00:00.0
Calumet Harbor Lumber & Supplyco.,Materials,108511,00:00.0
Calumet Lift Truck Service Co. Inc.,Rental Expense,4425,00:00.0
Calumet Lift Truck Service Co. Inc.,Rental Expense,1380,00:00.0
Calumet Lift Truck Service Co. Inc.,Rental Expense,1380,00:00.0
Canadian National Railroad,Services,8945.43,00:00.0
Canadian National Railroad,Services,591.72,00:00.0
Canadian National Railroad,Services,4265.9,00:00.0
Canadian National Railroad,Services,177.8,00:00.0
Canadian National Railroad,Services,110038.64,00:00.0
Canadian National Railroad,Services,164560.83,00:00.0
Canadian National Railroad,Services,357.44,00:00.0
Canadian National Railroad,Services,5200,00:00.0
Canadian National Railroad,Services,164560.83,00:00.0
Canadian National Railroad,Services,317420.35,00:00.0
Canadian National Railroad,Services,164560.83,00:00.0
Canadian National Railroad,Services,246841.26,00:00.0
Canadian National Railroad,Services,65485.9,00:00.0
Canadian National Railroad,Services,164560.83,00:00.0
Canadian National Railroad,Services,246841.26,00:00.0
Canadian National Railroad,Capital Purchases,6020.04,00:00.0
Canadian National Railroad,Services,246841.26,00:00.0
Canadian National Railroad,Services,58769.4,00:00.0
Canadian National Railroad,Services,984.19,00:00.0
Canadian National Railroad,Services,242962.87,00:00.0
Canadian National Railroad,Services,51614.86,00:00.0
Canadian National Railroad,Capital Purchases,739962.6,00:00.0
Canadian National Railroad,Services,164560.83,00:00.0
Canadian National Railroad,Services,246841.26,00:00.0
Canadian National Railroad,Services,305610.66,00:00.0
Canadian National Railroad,Services,164560.83,00:00.0
Canadian National Railroad,Services,316.05,00:00.0
Canadian National Railroad,Services,164560.83,00:00.0
Canadian National Railroad,Services,246841.26,00:00.0
Canadian National Railroad,Capital Purchases,784283,00:00.0
Canadian National Railroad,Services,164560.83,00:00.0
Canadian National Railroad,Services,246841.26,00:00.0
Canadian National Railroad,Services,50116.71,00:00.0
Canadian National Railroad,Services,65485.9,00:00.0
Canadian National Railroad,Services,16176.08,00:00.0
Canadian National Railroad,Services,164560.83,00:00.0
Canadian National Railroad,Services,246841.26,00:00.0
Canadian National Railroad,Services,5876.94,00:00.0
Canadian National Railroad,Services,246842,00:00.0
Canadian National Railroad,Services,164560.83,00:00.0
Canadian National Railroad,Services,76011.77,00:00.0
Canadian National Railroad,Services,246841.26,00:00.0
Canadian National Railroad,Services,164560.83,00:00.0
Canadian National Railroad,Services,93520,00:00.0
Canadian National Railroad,Services,246841.26,00:00.0
Canadian National Railroad,Services,164560.83,00:00.0
Canadian National Railroad,Services,949.8,00:00.0
Canadian Pacific Railway Co.,Services,79488.96,00:00.0
Canadian Pacific Railway Co.,Services,70605.17,00:00.0
Canadian Pacific Railway Co.,Services,63041.11,00:00.0
Canadian Pacific Railway Co.,Services,69795.52,00:00.0
Canadian Pacific Railway Co.,Services,392179.18,00:00.0
Canadian Pacific Railway Co.,Services,263736.55,00:00.0
Canadian Urban Transit Association (CUTA),Capital Purchases,40000,00:00.0
Canadian Urban Transit Association (CUTA),Services,52000,00:00.0
Canadian Urban Transit Association (CUTA),Services,56592.5,00:00.0
Candice Randolph,Services,148.35,00:00.0
Candice Randolph,Services,96.22,00:00.0
Candice Randolph,Services,28.81,00:00.0
Canteen Refreshment Services,Materials,95.04,00:00.0
Canteen Refreshment Services,Materials,71.98,00:00.0
Canteen Refreshment Services,Materials,830.98,00:00.0
Canteen Refreshment Services,Materials,109.92,00:00.0
Canteen Refreshment Services,Materials,43.96,00:00.0
Canteen Refreshment Services,Materials,643.44,00:00.0
Canteen Refreshment Services,Materials,161.83,00:00.0
Canteen Refreshment Services,Materials,372.45,00:00.0
Canteen Refreshment Services,Materials,109.9,00:00.0
Canva PTY Limited,Services,149.9,00:00.0
Carahsoft Technology Corp,Services,22435.62,00:00.0
Carahsoft Technology Corp,Services,34469.02,00:00.0
Cardinal Color Group,Services,18697.12,00:00.0
Cardinal Color Group,Services,2795.1,00:00.0
Cardinal Color Group,Services,37175.43,00:00.0
Cardinal Color Group,Services,20379.6,00:00.0
Cardinal Color Group,Services,7190,00:00.0
Cardinal Color Group,Services,3700,00:00.0
Cardinal Color Group,Services,29853.18,00:00.0
Cardinal Color Group,Services,2995,00:00.0
Cardinal Color Group,Services,200,00:00.0
Cardinal Color Group,Services,6225.02,00:00.0
Cardinal Color Group,Services,2715,00:00.0
Cardinal Color Group,Services,11860,00:00.0
Cardinal Color Group,Services,4929.71,00:00.0
Cardinal Color Group,Services,29550.36,00:00.0
Cardinal Color Group,Services,4750,00:00.0
Cardinal Color Group,Services,3640,00:00.0
Cardinal Color Group,Services,5465,00:00.0
Cardinal Color Group,Services,2110,00:00.0
Cardinal Color Group,Services,5495,00:00.0
Cardinal Color Group,Services,53042.1,00:00.0
Cardinal Color Group,Services,11384.99,00:00.0
Cardinal Color Group,Services,995,00:00.0
Cardinal Color Group,Services,80214.33,00:00.0
Carl Miehlke Jr.,Services,140,00:00.0
Carl Miehlke Jr.,Services,9.4,00:00.0
Carl Miehlke Jr.,Services,10.1,00:00.0
Carl Miehlke Jr.,Services,178.16,00:00.0
Carl Miehlke Jr.,Services,123.14,00:00.0
Carlo Santori,Services,99.99,00:00.0
Carlos A. Del Toro,Services,352.75,00:00.0
Carlos A. Del Toro,Services,427.58,00:00.0
Carlos A. Del Toro,Services,462.04,00:00.0
Carlos A. Del Toro,Services,467.15,00:00.0
Carlos A. Del Toro,Services,436.23,00:00.0
Carlos A. Del Toro,Services,200.16,00:00.0
Carlos A. Del Toro,Services,445.92,00:00.0
Carlos A. Del Toro,Services,488.11,00:00.0
Carlos A. Del Toro,Services,493.61,00:00.0
Carlos A. Del Toro,Services,469.24,00:00.0
Carlos A. Del Toro,Services,498.85,00:00.0
Carlos A. Del Toro,Services,401.12,00:00.0
Carlos A. Del Toro,Services,333.66,00:00.0
Carlos A. Del Toro,Services,494.66,00:00.0
Carlos A. Del Toro,Services,158.56,00:00.0
Carlos A. Del Toro,Services,497.54,00:00.0
Carlos A. Del Toro,Services,490.07,00:00.0
Carlos A. Del Toro,Services,56.65,00:00.0
Carlos A. Del Toro,Services,492.82,00:00.0
Carlos A. Del Toro,Services,573.22,00:00.0
Carlos A. Del Toro,Services,444.09,00:00.0
Carlos A. Del Toro,Services,488.04,00:00.0
Carlos A. Del Toro,Services,459.22,00:00.0
Carlos A. Del Toro,Services,447.23,00:00.0
Carlos A. Del Toro,Services,487.45,00:00.0
Carlos A. Del Toro,Services,488.24,00:00.0
Carlos A. Del Toro,Services,496.88,00:00.0
Carlos Lazaro,Services,205.05,00:00.0
Carlos Lazaro,Services,60,00:00.0
Carlos Lazaro,Services,474.8,00:00.0
Carlos Lazaro,Services,310.5,00:00.0
Carlos Lazaro,Services,41.4,00:00.0
Carlos Lazaro,Services,33.67,00:00.0
Carlos Lazaro,Services,65.24,00:00.0
Carlos R Ochoa,Services,565,00:00.0
Carlos R Ochoa,Services,395.5,00:00.0
Carlos R Ochoa,Services,56.5,00:00.0
Carmichael Leasing Co.  Inc.,Services,240.75,00:00.0
Carmichael Leasing Co.  Inc.,Materials,96.02,00:00.0
Carmichael Leasing Co.  Inc.,Services,1658.5,00:00.0
Carmichael Leasing Co.  Inc.,Materials,1047.48,00:00.0
Carmichael Leasing Co.  Inc.,Materials,132.09,00:00.0
Carmichael Leasing Co.  Inc.,Services,374.5,00:00.0
Carmichael Leasing Co.  Inc.,Services,10532.01,00:00.0
Carmichael Leasing Co.  Inc.,Materials,10625.21,00:00.0
Carmichael Leasing Co.  Inc.,Materials,708.92,00:00.0
Carmichael Leasing Co.  Inc.,Materials,3280.62,00:00.0
Carmichael Leasing Co.  Inc.,Services,1231.23,00:00.0
Carmichael Leasing Co.  Inc.,Services,1080.7,00:00.0
Carmichael Leasing Co.  Inc.,Services,3274.2,00:00.0
Carmichael Leasing Co.  Inc.,Services,4194.4,00:00.0
Carmichael Leasing Co.  Inc.,Materials,3956.3,00:00.0
Carmichael Leasing Co.  Inc.,Materials,235.36,00:00.0
Carmichael Leasing Co.  Inc.,Services,588.5,00:00.0
Carmichael Leasing Co.  Inc.,Materials,1621.83,00:00.0
Carmichael Leasing Co.  Inc.,Services,1535.45,00:00.0
Carmichael Leasing Co.  Inc.,Services,109.2,00:00.0
Carmichael Leasing Co.  Inc.,Services,327.6,00:00.0
Carmichael Leasing Co.  Inc.,Materials,705.66,00:00.0
Carmichael Leasing Co.  Inc.,Services,786.45,00:00.0
Carmichael Leasing Co.  Inc.,Services,545.7,00:00.0
Carmichael Leasing Co.  Inc.,Materials,196.92,00:00.0
Carmichael Leasing Co.  Inc.,Services,374.5,00:00.0
Carmichael Leasing Co.  Inc.,Services,109.2,00:00.0
Carmichael Leasing Co.  Inc.,Services,218.4,00:00.0
Carmichael Leasing Co.  Inc.,Materials,1078.41,00:00.0
Carmichael Leasing Co.  Inc.,Materials,90.61,00:00.0
Carmichael Leasing Co.  Inc.,Services,802.5,00:00.0
Carmichael Leasing Co.  Inc.,Services,321,00:00.0
Carmichael Leasing Co.  Inc.,Services,802.5,00:00.0
Carmichael Leasing Co.  Inc.,Materials,108.45,00:00.0
Carmichael Leasing Co.  Inc.,Materials,3809.63,00:00.0
Carmichael Leasing Co.  Inc.,Services,214,00:00.0
Carmichael Leasing Co.  Inc.,Services,4280,00:00.0
Carmichael Leasing Co.  Inc.,Materials,1614.3,00:00.0
Carmichael Leasing Co.  Inc.,Services,1187.7,00:00.0
Carmichael Leasing Co.  Inc.,Materials,228.11,00:00.0
Carmichael Leasing Co.  Inc.,Services,492.2,00:00.0
Carmichael Leasing Co.  Inc.,Services,251.45,00:00.0
Carmichael Leasing Co.  Inc.,Materials,1694.29,00:00.0
Carmichael Leasing Co.  Inc.,Materials,134.37,00:00.0
Carmichael Leasing Co.  Inc.,Services,1936.7,00:00.0
Carmichael Leasing Co.  Inc.,Services,2829.08,00:00.0
Carmichael Leasing Co.  Inc.,Materials,390.98,00:00.0
Carmichael Leasing Co.  Inc.,Materials,751.43,00:00.0
Carmichael Leasing Co.  Inc.,Services,599.2,00:00.0
Carmichael Leasing Co.  Inc.,Materials,453.39,00:00.0
Carmichael Leasing Co.  Inc.,Services,909.5,00:00.0
Carmichael Leasing Co.  Inc.,Materials,140.6,00:00.0
Carmichael Leasing Co.  Inc.,Services,321,00:00.0
Carmichael Leasing Co.  Inc.,Services,109.2,00:00.0
Carmichael Leasing Co.  Inc.,Services,163.8,00:00.0
Carmichael Leasing Co.  Inc.,Materials,14.85,00:00.0
Carmichael Leasing Co.  Inc.,Services,585,00:00.0
Catherine Gibson,Services,5250,00:00.0
Cavalry Fire Protection Svc. LLC,Services,323.4,00:00.0
Cavalry Fire Protection Svc. LLC,Services,722.7,00:00.0
Cavalry Fire Protection Svc. LLC,Services,296.1,00:00.0
Cavalry Fire Protection Svc. LLC,Services,990.2,00:00.0
Cavalry Fire Protection Svc. LLC,Services,1195,00:00.0
Cavalry Fire Protection Svc. LLC,Services,162.4,00:00.0
Cavalry Fire Protection Svc. LLC,Materials,1833.2,00:00.0
Cavalry Fire Protection Svc. LLC,Materials,2559.6,00:00.0
Cavalry Fire Protection Svc. LLC,Materials,875.4,00:00.0
Cavalry Fire Protection Svc. LLC,Services,569.7,00:00.0
Cavalry Fire Protection Svc. LLC,Materials,17.5,00:00.0
Cavalry Fire Protection Svc. LLC,Services,214.3,00:00.0
Cavalry Fire Protection Svc. LLC,Services,377,00:00.0
Cavalry Fire Protection Svc. LLC,Materials,13778,00:00.0
Cavalry Fire Protection Svc. LLC,Materials,2424.2,00:00.0
Cavalry Fire Protection Svc. LLC,Materials,3251.7,00:00.0
Cavalry Fire Protection Svc. LLC,Services,376.4,00:00.0
Cavalry Fire Protection Svc. LLC,Services,35,00:00.0
Cavalry Fire Protection Svc. LLC,Services,1501.1,00:00.0
Cavalry Fire Protection Svc. LLC,Services,380.1,00:00.0
Cavalry Fire Protection Svc. LLC,Materials,3734.2,00:00.0
Cavalry Fire Protection Svc. LLC,Services,606.5,00:00.0
Cavalry Fire Protection Svc. LLC,Services,897.1,00:00.0
Cavalry Fire Protection Svc. LLC,Services,1750.8,00:00.0
Cavalry Fire Protection Svc. LLC,Services,3481.4,00:00.0
Cavalry Fire Protection Svc. LLC,Services,2191.2,00:00.0
Cavalry Fire Protection Svc. LLC,Services,1506.5,00:00.0
Cavalry Fire Protection Svc. LLC,Services,1751.5,00:00.0
Cavalry Fire Protection Svc. LLC,Services,1308.8,00:00.0
Cavalry Fire Protection Svc. LLC,Materials,142.9,00:00.0
Cavalry Fire Protection Svc. LLC,Materials,999.4,00:00.0
Cavalry Fire Protection Svc. LLC,Services,3994.6,00:00.0
Cavalry Fire Protection Svc. LLC,Services,180.7,00:00.0
Cavalry Fire Protection Svc. LLC,Services,1852.4,00:00.0
Cavalry Fire Protection Svc. LLC,Services,1755,00:00.0
Cavalry Fire Protection Svc. LLC,Materials,1627.2,00:00.0
Cavalry Fire Protection Svc. LLC,Services,1353,00:00.0
Cavalry Fire Protection Svc. LLC,Services,1167,00:00.0
Cavalry Fire Protection Svc. LLC,Services,735.4,00:00.0
Cavalry Fire Protection Svc. LLC,Services,253.7,00:00.0
Cavalry Fire Protection Svc. LLC,Materials,1276.75,00:00.0
Cavalry Fire Protection Svc. LLC,Services,1044.6,00:00.0
Cavalry Fire Protection Svc. LLC,Services,1296.6,00:00.0
Cavalry Fire Protection Svc. LLC,Services,1065.8,00:00.0
Cavalry Fire Protection Svc. LLC,Services,1236.6,00:00.0
Cavalry Fire Protection Svc. LLC,Services,275,00:00.0
Cavalry Fire Protection Svc. LLC,Services,384.5,00:00.0
Cavalry Fire Protection Svc. LLC,Materials,1150.5,00:00.0
Cavalry Fire Protection Svc. LLC,Services,823.5,00:00.0
Cavalry Fire Protection Svc. LLC,Services,765.2,00:00.0
Cavalry Fire Protection Svc. LLC,Services,734.9,00:00.0
Cavalry Fire Protection Svc. LLC,Materials,953.8,00:00.0
Cavalry Fire Protection Svc. LLC,Services,820.5,00:00.0
Cavalry Fire Protection Svc. LLC,Materials,762,00:00.0
Cavalry Fire Protection Svc. LLC,Services,205.2,00:00.0
Cavalry Fire Protection Svc. LLC,Services,563,00:00.0
Cavalry Fire Protection Svc. LLC,Materials,1515.4,00:00.0
Cavalry Fire Protection Svc. LLC,Services,888.2,00:00.0
Cavalry Fire Protection Svc. LLC,Services,602.5,00:00.0
Cavalry Fire Protection Svc. LLC,Materials,4640.7,00:00.0
Cavalry Fire Protection Svc. LLC,Services,130.2,00:00.0
Cavalry Fire Protection Svc. LLC,Services,856.1,00:00.0
Cavalry Fire Protection Svc. LLC,Materials,2567,00:00.0
"CBFC Development, LLC",Rental Expense,49499.38,00:00.0
"CBFC Development, LLC",Rental Expense,24749.69,00:00.0
"CBFC Development, LLC",Rental Expense,49499.38,00:00.0
"CBFC Development, LLC",Rental Expense,24749.69,00:00.0
"CBFC Development, LLC",Rental Expense,24749.69,00:00.0
"CBFC Development, LLC",Rental Expense,24749.69,00:00.0
"CBFC Development, LLC",Rental Expense,24749.69,00:00.0
"CBFC Development, LLC",Rental Expense,24749.69,00:00.0
CDECI,Services,10353,00:00.0
CDECI,Materials,3759.41,00:00.0
CDECI,Services,29556,00:00.0
CDECI,Materials,4752.94,00:00.0
CDECI,Services,12284.24,00:00.0
CDECI,Materials,421.47,00:00.0
CDECI,Services,9450,00:00.0
CDECI,Services,18798,00:00.0
CDECI,Services,19230,00:00.0
CDECI,Materials,862.11,00:00.0
CDECI,Materials,807.87,00:00.0
CDECI,Services,18825,00:00.0
CDECI,Claims & Insurance,1680,00:00.0
CDECI,Services,9750,00:00.0
CDECI,Materials,163.72,00:00.0
CDECI,Services,9885,00:00.0
CDECI,Materials,436.57,00:00.0
CDECI,Services,9750,00:00.0
CDECI,Materials,194.77,00:00.0
CDECI,Services,18090,00:00.0
CDECI,Materials,650.6,00:00.0
CDECI,Materials,9912.27,00:00.0
CDECI,Services,9180,00:00.0
CDECI,Materials,1152.8,00:00.0
CDECI,Services,10290,00:00.0
CDECI,Services,10155,00:00.0
CDECI,Materials,1151.32,00:00.0
CDECI,Services,18992.87,00:00.0
CDECI,Services,17264.11,00:00.0
Cdm Smith  Inc.,Capital Purchases,106951.84,00:00.0
Cdm Smith  Inc.,Capital Purchases,64799.71,00:00.0
Cdm Smith  Inc.,Capital Purchases,39002.13,00:00.0
Cdm Smith  Inc.,Capital Purchases,22483.68,00:00.0
Cdm Smith  Inc.,Capital Purchases,4513.13,00:00.0
Cdm Smith  Inc.,Capital Purchases,71407.98,00:00.0
Cdm Smith  Inc.,Capital Purchases,26293.79,00:00.0
Cdm Smith  Inc.,Capital Purchases,145074.89,00:00.0
CDW Government  LLC,Capital Purchases,1455,00:00.0
CDW Government  LLC,Capital Purchases,970,00:00.0
CDW Government  LLC,Materials,3395,00:00.0
CDW Government  LLC,Materials,18000,00:00.0
CDW Government  LLC,Materials,26400,00:00.0
CDW Government  LLC,Services,21500,00:00.0
CDW Government  LLC,Materials,11700,00:00.0
CDW Government  LLC,Services,25940,00:00.0
CDW Government  LLC,Services,18147.5,00:00.0
CDW Government  LLC,Capital Purchases,545,00:00.0
CDW Government  LLC,Materials,1090,00:00.0
CDW Government  LLC,Capital Purchases,9265,00:00.0
CDW Government  LLC,Capital Purchases,545,00:00.0
CDW Government  LLC,Materials,3600,00:00.0
CDW Government  LLC,Materials,21207.06,00:00.0
CDW Government  LLC,Materials,545,00:00.0
Cedric L Smith,Services,930,00:00.0
Cedric L Smith,Services,1071.86,00:00.0
Cedric L Smith,Services,318,00:00.0
Celeste Industries Corp.,Materials,1500,00:00.0
Celeste Industries Corp.,Materials,2400,00:00.0
Celeste Industries Corp.,Materials,1800,00:00.0
Celeste Industries Corp.,Materials,1500,00:00.0
Celeste Industries Corp.,Materials,1800,00:00.0
Central Sales & Service Inc.,Materials,293.8,00:00.0
Central Sales & Service Inc.,Materials,588,00:00.0
Central Sales & Service Inc.,Materials,1010,00:00.0
Central Sales & Service Inc.,Materials,465.6,00:00.0
Central Sales & Service Inc.,Materials,1686.42,00:00.0
Central Sales & Service Inc.,Capital Purchases,34782.8,00:00.0
Central Sales & Service Inc.,Materials,28542.75,00:00.0
Central Sales & Service Inc.,Materials,13442.75,00:00.0
Central Sales & Service Inc.,Materials,13442.75,00:00.0
Central Sales & Service Inc.,Materials,13442.75,00:00.0
Central Sales & Service Inc.,Materials,143.04,00:00.0
Central Sales & Service Inc.,Materials,408.6,00:00.0
Central Sales & Service Inc.,Materials,595.8,00:00.0
Central Sales & Service Inc.,Materials,534.48,00:00.0
Central Sales & Service Inc.,Capital Purchases,25975.74,00:00.0
Central Sales & Service Inc.,Materials,445.4,00:00.0
Central Sales & Service Inc.,Capital Purchases,27612.49,00:00.0
Central Sales & Service Inc.,Capital Purchases,55189.22,00:00.0
Central Sales & Service Inc.,Capital Purchases,4347.85,00:00.0
Central Sales & Service Inc.,Materials,1660.36,00:00.0
Central Sales & Service Inc.,Capital Purchases,8695.7,00:00.0
Central Sales & Service Inc.,Materials,1435.6,00:00.0
Central Sales & Service Inc.,Capital Purchases,8695.7,00:00.0
Central Sales & Service Inc.,Materials,595.8,00:00.0
Central Sales & Service Inc.,Materials,2756.76,00:00.0
Central Sales & Service Inc.,Capital Purchases,17391.4,00:00.0
CenTrio Energy Chicago LLC,Utilities,25310.08,00:00.0
CenTrio Energy Chicago LLC,Utilities,13312.02,00:00.0
CenTrio Energy Chicago LLC,Utilities,11638.63,00:00.0
CenTrio Energy Chicago LLC,Utilities,12450.69,00:00.0
CenTrio Energy Chicago LLC,Utilities,22851.55,00:00.0
CenTrio Energy Chicago LLC,Utilities,32660.75,00:00.0
CenTrio Energy Chicago LLC,Utilities,41345.83,00:00.0
CenTrio Energy Chicago LLC,Utilities,40240.43,00:00.0
CenTrio Energy Chicago LLC,Utilities,41793.84,00:00.0
CenTrio Energy Chicago LLC,Utilities,38367.24,00:00.0
CenTrio Energy Chicago LLC,Utilities,33377.08,00:00.0
Certified Languages International,Services,202,00:00.0
Certified Languages International,Services,35.1,00:00.0
Certified Languages International,Services,99.9,00:00.0
Certified Languages International,Services,42.3,00:00.0
Certified Languages International,Services,99,00:00.0
Certified Languages International,Services,247.5,00:00.0
Certified Languages International,Services,255,00:00.0
Certified Languages International,Services,113.4,00:00.0
Certified Languages International,Services,164.7,00:00.0
Certified Languages International,Services,254.7,00:00.0
Certified Languages International,Services,431.1,00:00.0
Certified Languages International,Services,141.3,00:00.0
Certified Languages International,Services,116.1,00:00.0
Charles A. Wilson,Services,168.99,00:00.0
Charles A. Wilson,Services,14.41,00:00.0
Charles A. Wilson,Services,107.42,00:00.0
Charles A. Wilson,Services,28.82,00:00.0
Charles A. Wilson,Services,14.41,00:00.0
Charles A. Wilson,Services,36.03,00:00.0
Charles A. Wilson,Services,7.21,00:00.0
Charles I. Golden,Services,52.27,00:00.0
CHARLES TILLMAN,Services,75.98,00:00.0
CHARLES TILLMAN,Services,248.9,00:00.0
CHARLES TILLMAN,Services,248.9,00:00.0
CHARLES TILLMAN,Services,27.51,00:00.0
CHARLES TILLMAN,Services,200.43,00:00.0
CHARLES TILLMAN,Services,27.51,00:00.0
CHARLES TILLMAN,Services,103.49,00:00.0
CHARLES TILLMAN,Services,48.47,00:00.0
CHARLES TILLMAN,Services,232.39,00:00.0
CHARLES TILLMAN,Services,28.69,00:00.0
CHARLES TILLMAN,Services,193.88,00:00.0
CHARLES TILLMAN,Services,227.94,00:00.0
CHARLES TILLMAN,Services,48.47,00:00.0
CHARLES TILLMAN,Services,22,00:00.0
CHARLES TILLMAN,Services,27.51,00:00.0
CHARLES TILLMAN,Services,55.02,00:00.0
Chas A Arce,Services,41.92,00:00.0
Chas A Arce,Services,52.4,00:00.0
Chas A Arce,Services,83.84,00:00.0
Chas A Arce,Services,94.32,00:00.0
Chauncey Lawrence,Services,662.97,00:00.0
Chauncey Lawrence,Services,206.5,00:00.0
"Checkfluid, Inc",Materials,59.56,00:00.0
"Checkfluid, Inc",Materials,1200,00:00.0
"Checkfluid, Inc",Materials,2400,00:00.0
"Checkfluid, Inc",Materials,119.12,00:00.0
"Checkfluid, Inc",Materials,1200,00:00.0
Chem & Consult  Inc.,Materials,3707.88,00:00.0
Chem & Consult  Inc.,Materials,10609.5,00:00.0
Chem & Consult  Inc.,Materials,4243.8,00:00.0
Chem & Consult  Inc.,Materials,4243.8,00:00.0
Chemcraft Industries,Materials,641,00:00.0
Chemcraft Industries,Materials,635,00:00.0
Chemcraft Industries,Materials,635,00:00.0
Chicago Area Public Affairs Group,Services,500,00:00.0
CHICAGO AUDIO RENTALS,Services,5500,00:00.0
Chicago Bar Assn.,Services,289,00:00.0
Chicago Car Seal Co.,Materials,275.2,00:00.0
Chicago Car Seal Co.,Materials,172,00:00.0
Chicago Car Seal Co.,Materials,361.2,00:00.0
Chicago Car Seal Co.,Materials,275.2,00:00.0
CHICAGO COMPENSATION ASSOCIATION,Services,140,00:00.0
CHICAGO COMPENSATION ASSOCIATION,Services,75,00:00.0
Chicago Metal Maintenance  Inc.,Services,1230,00:00.0
Chicago Metal Maintenance  Inc.,Services,615,00:00.0
Chicago Metal Maintenance  Inc.,Services,615,00:00.0
Chicago Metal Maintenance  Inc.,Services,615,00:00.0
Chicago Metal Maintenance  Inc.,Services,615,00:00.0
Chicago Metal Maintenance  Inc.,Services,610,00:00.0
Chicago Metal Maintenance  Inc.,Services,615,00:00.0
Chicago Parts & Sound  Llc. Dba Police Department Systems,Capital Purchases,8518,00:00.0
CHICAGO RAILROAD MECHANICAL ASSOCIATION,Services,280,00:00.0
CHICAGO RAILROAD MECHANICAL ASSOCIATION,Services,280,00:00.0
Chicago Railroad Supply Inc.,Capital Purchases,12902.32,00:00.0
Chicago Railroad Supply Inc.,Capital Purchases,22747.6,00:00.0
Chicago Railroad Supply Inc.,Capital Purchases,2858.4,00:00.0
Chicago Railroad Supply Inc.,Capital Purchases,100836.32,00:00.0
Chicago Railroad Supply Inc.,Capital Purchases,189068.1,00:00.0
Chicago Railroad Supply Inc.,Capital Purchases,173863.42,00:00.0
Chicago Railroad Supply Inc.,Capital Purchases,488862,00:00.0
Chicago Railroad Supply Inc.,Materials,25923.68,00:00.0
Chicago Railroad Supply Inc.,Capital Purchases,246274.96,00:00.0
Chicago Railroad Supply Inc.,Capital Purchases,230454.72,00:00.0
Chicago Railroad Supply Inc.,Capital Purchases,12961.84,00:00.0
Chicago Railroad Supply Inc.,Capital Purchases,246274.96,00:00.0
Chicago Railroad Supply Inc.,Capital Purchases,103694.72,00:00.0
Chicago Railroad Supply Inc.,Capital Purchases,51847.36,00:00.0
Chicago Spence Tool & Rubber Co.,Materials,1107.88,00:00.0
Chicago Spence Tool & Rubber Co.,Materials,1107.88,00:00.0
Chicago Tire Inc.,Services,1055.04,00:00.0
Chicago Tire Inc.,Services,1744.64,00:00.0
Chicago Tire Inc.,Services,650,00:00.0
Chicago Tire Inc.,Services,225.79,00:00.0
Chicago Tire Inc.,Services,6887.25,00:00.0
Chicago Tire Inc.,Services,541.58,00:00.0
Chicago Tire Inc.,Services,479.26,00:00.0
Chicago Tire Inc.,Services,1556.68,00:00.0
Chicago Tire Inc.,Services,979.74,00:00.0
Chicago Tire Inc.,Services,1518.49,00:00.0
Chicago Tire Inc.,Services,15,00:00.0
Chicago Tire Inc.,Services,5,00:00.0
Chicago Tire Inc.,Services,15,00:00.0
Chicago Tire Inc.,Services,544.79,00:00.0
Chicago Tire Inc.,Services,225.79,00:00.0
Chicago Tire Inc.,Services,2812.88,00:00.0
Chicago Tire Inc.,Services,2964.2,00:00.0
Chicago Tire Inc.,Services,2741.78,00:00.0
Chicago Tire Inc.,Services,632.83,00:00.0
Chicago Tire Inc.,Services,125,00:00.0
Chicago Tire Inc.,Services,345.97,00:00.0
Chicago Tire Inc.,Services,2404.52,00:00.0
Chicago Tire Inc.,Services,563.37,00:00.0
Chicago Tire Inc.,Services,10524.81,00:00.0
Chicago Tire Inc.,Services,440.79,00:00.0
Chicago Tire Inc.,Services,6,00:00.0
Chicago Tire Inc.,Services,125,00:00.0
Chicago Tire Inc.,Services,3849.55,00:00.0
Chicago Tire Inc.,Services,603.16,00:00.0
Chicago Tire Inc.,Services,434.15,00:00.0
Chicago Tire Inc.,Services,224.1,00:00.0
Chicago Tire Inc.,Services,90,00:00.0
Chicago Tire Inc.,Services,1113.1,00:00.0
Chicago Tire Inc.,Services,585.68,00:00.0
Chicago Tire Inc.,Services,610.13,00:00.0
Chicago Tire Inc.,Services,776.38,00:00.0
Chicago Tire Inc.,Services,25,00:00.0
Chicago Tire Inc.,Services,1235.57,00:00.0
Chicago Tire Inc.,Services,327.72,00:00.0
Chicago Tire Inc.,Services,391.58,00:00.0
Chicago Tire Inc.,Services,15202.4,00:00.0
Chicago Tire Inc.,Services,242.72,00:00.0
Chicago Tire Inc.,Services,571.79,00:00.0
Chicago Tire Inc.,Services,222.17,00:00.0
Chicago Tire Inc.,Services,232.1,00:00.0
Chicago Tire Inc.,Services,4191.5,00:00.0
Chicago Tire Inc.,Services,2071.81,00:00.0
Chicago Tire Inc.,Services,301.58,00:00.0
Chicago Tire Inc.,Services,90,00:00.0
Chicago Tire Inc.,Services,1173.69,00:00.0
Chicago Tire Inc.,Services,519.31,00:00.0
Chicago Tire Inc.,Services,3235.36,00:00.0
Chicago Tire Inc.,Services,65,00:00.0
Chicago Tire Inc.,Services,120,00:00.0
Chicago Tire Inc.,Services,586.6,00:00.0
Chicago Tire Inc.,Services,518.32,00:00.0
Chicago Tire Inc.,Services,90,00:00.0
Chicago Tire Inc.,Services,237.72,00:00.0
Chicago Tire Inc.,Services,1070.74,00:00.0
Chicago Tire Inc.,Services,3295.07,00:00.0
Chicago Tire Inc.,Services,1481.88,00:00.0
Chicago Tire Inc.,Services,684.44,00:00.0
Chicago Tire Inc.,Services,685.22,00:00.0
Chicago Tire Inc.,Services,25,00:00.0
Chicago Tire Inc.,Services,1069.64,00:00.0
Chicago Tire Inc.,Services,771.58,00:00.0
Chicago Tire Inc.,Services,519.89,00:00.0
Chicago Tire Inc.,Services,932.1,00:00.0
Chicago Tire Inc.,Services,260.79,00:00.0
Chicago Tire Inc.,Services,375.5,00:00.0
Chicago Tire Inc.,Services,731.6,00:00.0
Chicago Tire Inc.,Services,587.37,00:00.0
Chicago Tire Inc.,Services,4787.77,00:00.0
Chicago Tire Inc.,Services,1700.41,00:00.0
Chicago Tire Inc.,Services,545.13,00:00.0
Chicago Tire Inc.,Services,40,00:00.0
Chicago Tire Inc.,Services,168.88,00:00.0
Chicago Tire Inc.,Services,92.5,00:00.0
Chicago Tire Inc.,Services,376.01,00:00.0
Chicago Tire Inc.,Services,620.26,00:00.0
Chicago Tire Inc.,Services,1102.58,00:00.0
Chicago Tire Inc.,Services,315.79,00:00.0
Chicago Tire Inc.,Services,2159.38,00:00.0
Chicago Tire Inc.,Services,11450.44,00:00.0
Chicago Tire Inc.,Services,1606.94,00:00.0
Chicago Tire Inc.,Services,6235.18,00:00.0
Chicago Tire Inc.,Services,1345.02,00:00.0
Chicago Tire Inc.,Services,484.89,00:00.0
Chicago Tire Inc.,Services,7207.83,00:00.0
Chicago Tire Inc.,Services,1117.76,00:00.0
Chicago Tire Inc.,Services,4334.97,00:00.0
Chicago Tire Inc.,Services,1259.55,00:00.0
Chicago Tire Inc.,Services,225.79,00:00.0
Chicago Tire Inc.,Services,598.22,00:00.0
Chicago Tire Inc.,Services,576.58,00:00.0
Chicago Tire Inc.,Services,2379.53,00:00.0
Chicago Tire Inc.,Services,12,00:00.0
Chicago Tire Inc.,Services,4203.28,00:00.0
Chicago Tire Inc.,Services,1759.24,00:00.0
Chicago Tire Inc.,Services,4758.38,00:00.0
Chicago Tire Inc.,Services,882.95,00:00.0
Chicago Tire Inc.,Services,24994.96,00:00.0
Chicago Tire Inc.,Services,3734.46,00:00.0
Chicago Tire Inc.,Services,1749.56,00:00.0
Chicago Tire Inc.,Services,259.1,00:00.0
Chicago Tire Inc.,Services,12,00:00.0
Chicago Tire Inc.,Services,1537.44,00:00.0
Chicago Tire Inc.,Services,25,00:00.0
Chicago Tire Inc.,Services,539.89,00:00.0
Chicago Tire Inc.,Services,6003.71,00:00.0
Chicago Tire Inc.,Services,4098.96,00:00.0
Chicago Tire Inc.,Services,491.29,00:00.0
Chicago Tire Inc.,Services,258.88,00:00.0
Chicago Tire Inc.,Services,2439.11,00:00.0
Chicago Tire Inc.,Services,259.1,00:00.0
Chicago Tire Inc.,Services,225.79,00:00.0
Chicago Tire Inc.,Services,1853.33,00:00.0
Chicago Transit Authority,Services,13974,00:00.0
Chicago Transit Authority,Services,16881,00:00.0
Chicago Transit Authority,Services,15912,00:00.0
Chicago Transit Authority,Services,16855.5,00:00.0
Chicago Transit Authority,Services,14917.5,00:00.0
Chicago Transit Authority,Services,19762.5,00:00.0
Chicago Transit Authority,Services,17136,00:00.0
Chicago Transit Authority,Services,17544,00:00.0
Chicago Transit Authority,Services,17212.5,00:00.0
Chicago Transit Authority,Services,18691.5,00:00.0
Chicago Transit Authority,Services,21394.5,00:00.0
Chicago Transit Authority,Services,19456.5,00:00.0
Chicagoland Truck Parts LLC,Materials,281.15,00:00.0
Chicagoland Truck Parts LLC,Materials,147.68,00:00.0
Chicagoland Truck Parts LLC,Materials,104.96,00:00.0
Chicagoland Truck Parts LLC,Materials,588.63,00:00.0
Chicagoland Truck Parts LLC,Materials,1272.4,00:00.0
Chicagoland Truck Parts LLC,Materials,159.96,00:00.0
Chicagoland Truck Parts LLC,Materials,296.1,00:00.0
Chicagoland Truck Parts LLC,Materials,552.2,00:00.0
Chicagoland Truck Parts LLC,Materials,2806.65,00:00.0
Chicagoland Truck Parts LLC,Materials,147.51,00:00.0
Chicagoland Truck Parts LLC,Materials,179.97,00:00.0
Chicagoland Truck Parts LLC,Materials,749.36,00:00.0
Chicagoland Truck Parts LLC,Materials,81.9,00:00.0
Chicagoland Truck Parts LLC,Materials,428.42,00:00.0
Chicagoland Truck Parts LLC,Materials,1540.28,00:00.0
Chicagoland Truck Parts LLC,Materials,80.27,00:00.0
Chicagoland Truck Parts LLC,Materials,1092.24,00:00.0
Chicagoland Truck Parts LLC,Materials,1951.73,00:00.0
Chicagoland Truck Parts LLC,Materials,283.55,00:00.0
Chicagoland Truck Parts LLC,Materials,1420.4,00:00.0
Chicagoland Truck Parts LLC,Materials,103.32,00:00.0
Chicagoland Truck Parts LLC,Materials,290.3,00:00.0
Chicagoland Truck Parts LLC,Materials,177.52,00:00.0
Chicagoland Truck Parts LLC,Materials,1420.4,00:00.0
Chicagoland Truck Parts LLC,Materials,49.98,00:00.0
Chicagoland Truck Parts LLC,Materials,229.63,00:00.0
Chicagoland Truck Parts LLC,Materials,149.39,00:00.0
Chicagoland Truck Parts LLC,Materials,122.77,00:00.0
Chicagoland Truck Parts LLC,Materials,101.33,00:00.0
Chicagoland Truck Parts LLC,Materials,487.78,00:00.0
Chicagoland Truck Parts LLC,Materials,197.4,00:00.0
Chicagoland Truck Parts LLC,Materials,264.23,00:00.0
Chicagoland Truck Parts LLC,Materials,43,00:00.0
Chris Hansen,Services,45.2,00:00.0
Chris Hansen,Services,25.18,00:00.0
Chris Hansen,Services,96,00:00.0
Chris Hansen,Services,30,00:00.0
Chris Hansen,Services,129.97,00:00.0
Christian Maxwell Ramos,Services,146.23,00:00.0
Christian Maxwell Ramos,Services,88.5,00:00.0
Christian Maxwell Ramos,Services,344.26,00:00.0
Christian Maxwell Ramos,Services,147.5,00:00.0
Christian Maxwell Ramos,Services,328.86,00:00.0
Christian Maxwell Ramos,Services,493,00:00.0
Christian Maxwell Ramos,Services,1549.17,00:00.0
Christian Maxwell Ramos,Services,35.37,00:00.0
Christian Maxwell Ramos,Services,95.5,00:00.0
Christopher Dunn,Services,12.5,00:00.0
Christopher Dunn,Services,187.5,00:00.0
Christopher Dunn,Services,99.56,00:00.0
Christopher Dunn,Services,117.9,00:00.0
Christopher Dunn,Services,157.2,00:00.0
Christopher Dunn,Services,120.52,00:00.0
Christopher Dunn,Services,138.86,00:00.0
Christopher Dunn,Services,39.3,00:00.0
Christopher Essex,Services,102.5,00:00.0
Christopher Essex,Services,95,00:00.0
Christopher Essex,Services,41.92,00:00.0
Christopher Essex,Services,41.92,00:00.0
Christopher Essex,Services,167.68,00:00.0
Christopher Essex,Services,14.41,00:00.0
Christopher Essex,Services,52.4,00:00.0
Christopher Essex,Services,125.76,00:00.0
Christopher Essex,Services,41.92,00:00.0
Christopher Essex,Services,53.71,00:00.0
Christopher Essex,Services,104.8,00:00.0
Christopher Essex,Services,41.92,00:00.0
Christopher Essex,Services,52.4,00:00.0
CHRISTOPHER JOHNSON,Services,3956,00:00.0
Christopher P. Dorsey,Services,217.5,00:00.0
Christopher P. Dorsey,Services,227.94,00:00.0
Christopher P. Dorsey,Services,294.1,00:00.0
Christopher P. Dorsey,Services,245.63,00:00.0
Christopher P. Dorsey,Services,211.9,00:00.0
Christopher P. Dorsey,Services,148.69,00:00.0
Christopher P. Dorsey,Services,300.65,00:00.0
Christopher P. Dorsey,Services,276.64,00:00.0
Christopher P. Dorsey,Services,307.2,00:00.0
Christopher P. Dorsey,Services,242.35,00:00.0
Christopher P. Dorsey,Services,300.65,00:00.0
Christopher P. Dorsey,Services,324.88,00:00.0
Christopher P. Dorsey,Services,273.14,00:00.0
Christopher P. Dorsey,Services,279,00:00.0
Christopher P. Dorsey,Services,324.88,00:00.0
Christopher P. Dorsey,Services,197.16,00:00.0
Christopher P. Dorsey,Services,224.67,00:00.0
Christopher S Jackson,Services,148.42,00:00.0
Christopher S Jackson,Services,970.95,00:00.0
Christopher S Jackson,Services,276.5,00:00.0
Chrome Crankshaft Company LLC,Materials,4990,00:00.0
Chrome Crankshaft Company LLC,Materials,1050,00:00.0
Chrome Crankshaft Company LLC,Services,2450,00:00.0
Chrome Crankshaft Company LLC,Services,7750,00:00.0
Chrome Crankshaft Company LLC,Services,1050,00:00.0
Citibank N.A.,,350000,00:00.0
Citibank N.A.,,266500,00:00.0
Citibank N.A.,,60000,00:00.0
Citibank N.A.,,54000,00:00.0
Citibank N.A.,,1703763.67,00:00.0
Citibank N.A.,,475000,00:00.0
Citibank N.A.,,211434.13,00:00.0
Citibank N.A.,,65000,00:00.0
Citibank N.A.,,312235.87,00:00.0
Citibank N.A.,,211457.18,00:00.0
Citibank N.A.,,47500,00:00.0
Citibank N.A.,,800000,00:00.0
Citibank N.A.,,222832.23,00:00.0
Citibank N.A.,,86118.18,00:00.0
Citibank N.A.,,150000,00:00.0
Citibank N.A.,,174989.11,00:00.0
Citibank N.A.,,245000,00:00.0
Citibank N.A.,,293750,00:00.0
Citibank N.A.,,440092.75,00:00.0
Citibank N.A.,,3850000,00:00.0
Citibank N.A.,,114849.84,00:00.0
Citibank N.A.,,500000,00:00.0
Citibank N.A.,,57898.66,00:00.0
Citibank N.A.,,950000,00:00.0
Citibank N.A.,,62911.93,00:00.0
Citibank N.A.,,246266.79,00:00.0
Citibank N.A.,,330997.7,00:00.0
Citibank N.A.,,225000,00:00.0
Citibank N.A.,,231080.56,00:00.0
Citibank N.A.,,236550.46,00:00.0
Citibank N.A.,,315000,00:00.0
Citibank N.A.,,698687.96,00:00.0
Citibank N.A.,,73673.03,00:00.0
Citibank N.A.,,332572.36,00:00.0
Citibank N.A.,,50000,00:00.0
Citibank N.A.,,286859.98,00:00.0
Citibank N.A.,,42871.83,00:00.0
Citibank N.A.,,85000,00:00.0
Citibank N.A.,,189906.45,00:00.0
Citibank N.A.,,70000,00:00.0
Citibank N.A.,,79887.17,00:00.0
Citibank N.A.,,180087.95,00:00.0
Citibank N.A.,,5100000,00:00.0
Citibank N.A.,,340244.69,00:00.0
Citibank N.A.,,80727.28,00:00.0
Citibank N.A.,,385000,00:00.0
Citibank N.A.,,199634.62,00:00.0
Citibank N.A.,,362453.32,00:00.0
City Of Blue Island,Utilities,24.99,00:00.0
City Of Blue Island,Utilities,509.12,00:00.0
City Of Blue Island,Utilities,27.49,00:00.0
City Of Blue Island,Utilities,206.2,00:00.0
City Of Blue Island,Utilities,187.45,00:00.0
City Of Blue Island,Utilities,206.2,00:00.0
City Of Blue Island,Utilities,52.48,00:00.0
City Of Blue Island,Utilities,212.45,00:00.0
City Of Blue Island,Utilities,214.94,00:00.0
City Of Blue Island,Utilities,187.45,00:00.0
City Of Blue Island,Utilities,24.99,00:00.0
City Of Blue Island,Utilities,212.44,00:00.0
City Of Blue Island,Utilities,462.84,00:00.0
City Of Blue Island,Utilities,199.95,00:00.0
City Of Blue Island,Utilities,24.99,00:00.0
City Of Blue Island,Utilities,650.29,00:00.0
City Of Blue Island,Utilities,24.99,00:00.0
City Of Blue Island,Utilities,187.45,00:00.0
City Of Blue Island,Utilities,237.45,00:00.0
City Of Blue Island,Utilities,212.44,00:00.0
City Of Blue Island,Utilities,249.95,00:00.0
City Of Blue Island,Utilities,187.45,00:00.0
City Of Blue Island,Utilities,24.99,00:00.0
City Of Blue Island,Utilities,74.99,00:00.0
City Of Blue Island,Utilities,187.45,00:00.0
City Of Blue Island,Utilities,650.29,00:00.0
City Of Blue Island,Utilities,24.99,00:00.0
City Of Blue Island,Utilities,312.45,00:00.0
City Of Blue Island,Utilities,24.99,00:00.0
City Of Blue Island,Utilities,24.99,00:00.0
City Of Blue Island,Utilities,24.97,00:00.0
City Of Blue Island,Utilities,462.86,00:00.0
City Of Blue Island,Utilities,187.45,00:00.0
City Of Blue Island,Utilities,187.45,00:00.0
City Of Blue Island,Utilities,462.84,00:00.0
City Of Blue Island,Utilities,187.45,00:00.0
City Of Blue Island,Utilities,24.99,00:00.0
City Of Blue Island,Utilities,187.45,00:00.0
City Of Blue Island,Utilities,24.99,00:00.0
City Of Blue Island,Utilities,162.49,00:00.0
City Of Blue Island,Utilities,187.45,00:00.0
City Of Blue Island,Utilities,187.45,00:00.0
City Of Blue Island,Utilities,187.45,00:00.0
City Of Blue Island,Utilities,218.7,00:00.0
City Of Blue Island,Utilities,422.82,00:00.0
City Of Blue Island,Utilities,29.16,00:00.0
City Of Blue Island,Utilities,29.16,00:00.0
City Of Blue Island,Utilities,29.16,00:00.0
City Of Blue Island,Utilities,218.7,00:00.0
City Of Blue Island,Utilities,744.07,00:00.0
City Of Blue Island,Utilities,218.7,00:00.0
City Of Blue Island,Utilities,29.16,00:00.0
City Of Blue Island,Utilities,704.7,00:00.0
City Of Blue Island,Utilities,218.7,00:00.0
City Of Blue Island,Utilities,29.16,00:00.0
City Of Blue Island,Utilities,758.16,00:00.0
City Of Blue Island,Utilities,29.16,00:00.0
City Of Blue Island,Utilities,240.57,00:00.0
City Of Blue Island,Utilities,775.17,00:00.0
City Of Blue Island,Utilities,32.08,00:00.0
City Of Blue Island,Utilities,240.57,00:00.0
City Of Blue Island,Utilities,435.73,00:00.0
City Of Blue Island,Utilities,32.08,00:00.0
City Of Blue Island,Utilities,32.08,00:00.0
City Of Blue Island,Utilities,196.83,00:00.0
City Of Blue Island,Utilities,223.07,00:00.0
City Of Blue Island,Utilities,379.08,00:00.0
City Of Blue Island,Utilities,26.24,00:00.0
City Of Blue Island,Utilities,634.23,00:00.0
City Of Blue Island,Utilities,26.24,00:00.0
City Of Blue Island,Utilities,29.16,00:00.0
City Of Blue Island,Utilities,29.16,00:00.0
City Of Blue Island,Utilities,349.92,00:00.0
City Of Blue Island,Utilities,218.7,00:00.0
City Of Blue Island,Utilities,704.7,00:00.0
City Of Blue Island,Utilities,218.7,00:00.0
City Of Blue Island,Utilities,29.16,00:00.0
City Of Blue Island,Utilities,704.7,00:00.0
City Of Blue Island,Utilities,29.16,00:00.0
City Of Blue Island,Utilities,218.7,00:00.0
City Of Blue Island,Utilities,218.7,00:00.0
City Of Blue Island,Utilities,43.74,00:00.0
City Of Blue Island,Utilities,29.16,00:00.0
City of Chicago,Capital Purchases,3000,00:00.0
City of Chicago,Capital Purchases,8788.78,00:00.0
City of Chicago,Capital Purchases,22355.08,00:00.0
City of Chicago,Services,560,00:00.0
City of Chicago,Capital Purchases,100,00:00.0
City of Chicago,Services,105,00:00.0
City of Chicago,Capital Purchases,2222,00:00.0
City of Chicago,Capital Purchases,375,00:00.0
City of Chicago,Capital Purchases,300,00:00.0
City of Chicago,Capital Purchases,15947.89,00:00.0
City of Chicago,Capital Purchases,680,00:00.0
City of Chicago,Services,105,00:00.0
City Of Chicago  Dept. Of Revenue,Services,200,00:00.0
City Of Chicago  Dept. Of Revenue,Materials,244,00:00.0
City Of Crystal Lake,Services,32585,00:00.0
City Of Elgin,Utilities,205.78,00:00.0
City Of Elgin,Utilities,38.62,00:00.0
City Of Elgin,Utilities,993.8,00:00.0
City Of Elgin,Utilities,262.17,00:00.0
City Of Elgin,Utilities,42.06,00:00.0
City Of Elgin,Utilities,1064.8,00:00.0
City Of Elgin,Utilities,249.54,00:00.0
City Of Elgin,Utilities,1026.04,00:00.0
City Of Elgin,Utilities,232.07,00:00.0
City Of Elgin,Utilities,636.43,00:00.0
City Of Elgin,Utilities,211,00:00.0
City Of Elgin,Utilities,188.79,00:00.0
City Of Elgin,Utilities,256.07,00:00.0
City Of Elgin,Utilities,51.24,00:00.0
City Of Elgin,Utilities,1106.03,00:00.0
City Of Elgin,Utilities,240.07,00:00.0
City Of Elgin,Utilities,1216.88,00:00.0
City Of Elgin,Utilities,50.44,00:00.0
City Of Elgin,Utilities,232.07,00:00.0
City Of Elgin,Utilities,1138.72,00:00.0
City Of Elgin,Utilities,42.56,00:00.0
City Of Elgin,Utilities,247.28,00:00.0
City Of Elgin,Utilities,1292.77,00:00.0
City Of Elgin,Utilities,51.12,00:00.0
City Of Elgin,Utilities,272.08,00:00.0
City Of Elgin,Utilities,232.07,00:00.0
City Of Elgin,Utilities,103.16,00:00.0
City Of Elgin,Utilities,2705.22,00:00.0
City Of Elgin,Utilities,528.48,00:00.0
City Of Elgin,Utilities,53.72,00:00.0
City Of Elgin,Utilities,1496.6,00:00.0
City Of Elgin,Utilities,40.01,00:00.0
City Of Elgin,Utilities,486,00:00.0
City Of Elgin,Utilities,50.98,00:00.0
City Of Elgin,Utilities,1329.85,00:00.0
City Of Harvey Water Department,Utilities,469.61,00:00.0
City Of Harvey Water Department,Utilities,73.62,00:00.0
City Of Harvey Water Department,Utilities,34.97,00:00.0
City Of Harvey Water Department,Utilities,329.88,00:00.0
City Of Harvey Water Department,Utilities,35.06,00:00.0
City Of Harvey Water Department,Utilities,49.27,00:00.0
City Of Harvey Water Department,Utilities,35.06,00:00.0
City Of Harvey Water Department,Utilities,42.72,00:00.0
City Of Harvey Water Department,Utilities,35.06,00:00.0
City Of Harvey Water Department,Utilities,35.28,00:00.0
City Of Harvey Water Department,Utilities,314.34,00:00.0
City Of Harvey Water Department,Utilities,35.07,00:00.0
City Of Harvey Water Department,Utilities,36.03,00:00.0
City Of Harvey Water Department,Utilities,36.35,00:00.0
City Of Harvey Water Department,Utilities,36.31,00:00.0
City Of Harvey Water Department,Utilities,36.35,00:00.0
City Of Harvey Water Department,Utilities,36.35,00:00.0
City Of Harvey Water Department,Utilities,21.62,00:00.0
City Of Harvey Water Department,Utilities,36.09,00:00.0
City Of Harvey Water Department,Utilities,10.99,00:00.0
City Of Harvey Water Department,Utilities,11.54,00:00.0
City Of Harvey Water Department,Utilities,36.34,00:00.0
City Of Highland Park,Utilities,27.8,00:00.0
City Of Highland Park,Utilities,27.8,00:00.0
City Of Highland Park,Utilities,27.8,00:00.0
City Of Highland Park,Utilities,27.8,00:00.0
City Of Joliet,Utilities,270689.1,00:00.0
City Of Joliet,Utilities,158.78,00:00.0
City Of Joliet,Utilities,176.94,00:00.0
City Of Joliet,Utilities,142.91,00:00.0
City Of Joliet,Utilities,173.11,00:00.0
City Of Joliet,Utilities,218.26,00:00.0
City Of Joliet,Utilities,204.71,00:00.0
City Of Joliet,Utilities,205.9,00:00.0
City Of Oak Forest Ill.,Utilities,67.35,00:00.0
City Of Oak Forest Ill.,Utilities,70.72,00:00.0
City Of Oak Forest Ill.,Utilities,72.23,00:00.0
City Of Oak Forest Ill.,Utilities,69.51,00:00.0
CJ's Towing & Recovery LLC,Services,731,00:00.0
CJ's Towing & Recovery LLC,Services,766.5,00:00.0
CJ's Towing & Recovery LLC,Services,3320.5,00:00.0
CJ's Towing & Recovery LLC,Services,390.8,00:00.0
CJ's Towing & Recovery LLC,Services,2971.15,00:00.0
CJ's Towing & Recovery LLC,Services,916.1,00:00.0
CJ's Towing & Recovery LLC,Services,2644.85,00:00.0
CJ's Towing & Recovery LLC,Services,372.25,00:00.0
CJ's Towing & Recovery LLC,Services,466.5,00:00.0
CJ's Towing & Recovery LLC,Services,131.5,00:00.0
CJ's Towing & Recovery LLC,Services,2673.4,00:00.0
CJ's Towing & Recovery LLC,Services,772.15,00:00.0
CJ's Towing & Recovery LLC,Services,1270.5,00:00.0
CJ's Towing & Recovery LLC,Services,185.95,00:00.0
CJ's Towing & Recovery LLC,Services,271.45,00:00.0
CJ's Towing & Recovery LLC,Services,1755.5,00:00.0
CJ's Towing & Recovery LLC,Services,1338.45,00:00.0
CJ's Towing & Recovery LLC,Services,182.35,00:00.0
CJ's Towing & Recovery LLC,Services,211.6,00:00.0
CJ's Towing & Recovery LLC,Services,992.75,00:00.0
CJ's Towing & Recovery LLC,Services,897,00:00.0
CJ's Towing & Recovery LLC,Services,377.2,00:00.0
CJ's Towing & Recovery LLC,Services,2231.4,00:00.0
CJ's Towing & Recovery LLC,Services,584.35,00:00.0
CJ's Towing & Recovery LLC,Services,250.75,00:00.0
CJ's Towing & Recovery LLC,Services,1081.5,00:00.0
CJ's Towing & Recovery LLC,Services,2260.25,00:00.0
CJ's Towing & Recovery LLC,Services,568.65,00:00.0
CJ's Towing & Recovery LLC,Services,1181.65,00:00.0
CJ's Towing & Recovery LLC,Services,572.7,00:00.0
CJ's Towing & Recovery LLC,Services,1529.3,00:00.0
CJ's Towing & Recovery LLC,Services,521.85,00:00.0
CJ's Towing & Recovery LLC,Services,185.05,00:00.0
CJ's Towing & Recovery LLC,Services,619,00:00.0
CJ's Towing & Recovery LLC,Services,1726.5,00:00.0
CJ's Towing & Recovery LLC,Services,1480.2,00:00.0
CJ's Towing & Recovery LLC,Services,1517.7,00:00.0
CJ's Towing & Recovery LLC,Services,2330.7,00:00.0
CJ's Towing & Recovery LLC,Services,480,00:00.0
CJ's Towing & Recovery LLC,Services,816.25,00:00.0
CJ's Towing & Recovery LLC,Services,2249.4,00:00.0
CJ's Towing & Recovery LLC,Services,774,00:00.0
CJ's Towing & Recovery LLC,Services,556.5,00:00.0
CJ's Towing & Recovery LLC,Services,2240.55,00:00.0
CJ's Towing & Recovery LLC,Services,2019.75,00:00.0
CJ's Towing & Recovery LLC,Services,468,00:00.0
CJ's Towing & Recovery LLC,Services,109,00:00.0
CJ's Towing & Recovery LLC,Services,2955,00:00.0
CJ's Towing & Recovery LLC,Services,287,00:00.0
CJ's Towing & Recovery LLC,Services,2572.6,00:00.0
CJ's Towing & Recovery LLC,Services,468.3,00:00.0
CJ's Towing & Recovery LLC,Services,2805,00:00.0
CJ's Towing & Recovery LLC,Services,244.5,00:00.0
CJ's Towing & Recovery LLC,Services,932.8,00:00.0
CJ's Towing & Recovery LLC,Services,499,00:00.0
Claeven  Ltd.,Services,354.25,00:00.0
Claeven  Ltd.,Services,495.95,00:00.0
Claeven  Ltd.,Services,779.35,00:00.0
Claeven  Ltd.,Services,1558.7,00:00.0
Claeven  Ltd.,Services,4038.45,00:00.0
Claeven  Ltd.,Services,495.95,00:00.0
Claeven  Ltd.,Services,991.9,00:00.0
Claeven  Ltd.,Services,1558.7,00:00.0
Claeven  Ltd.,Services,779.35,00:00.0
Claeven  Ltd.,Services,991.9,00:00.0
Claeven  Ltd.,Services,779.35,00:00.0
Claeven  Ltd.,Services,1204.45,00:00.0
Claeven  Ltd.,Services,354.25,00:00.0
Claeven  Ltd.,Services,354.25,00:00.0
Claeven  Ltd.,Services,779.35,00:00.0
Claeven  Ltd.,Services,1771.25,00:00.0
Claeven  Ltd.,Services,1346.15,00:00.0
Claeven  Ltd.,Services,850.2,00:00.0
Claeven  Ltd.,Services,850.2,00:00.0
Claeven  Ltd.,Services,1771.25,00:00.0
Claeven  Ltd.,Services,495.95,00:00.0
Claeven  Ltd.,Services,1062.75,00:00.0
Claeven  Ltd.,Services,779.35,00:00.0
Claeven  Ltd.,Services,779.35,00:00.0
Claeven  Ltd.,Services,1062.75,00:00.0
Claeven  Ltd.,Services,779.35,00:00.0
Claeven  Ltd.,Services,1346.15,00:00.0
Claeven  Ltd.,Services,495.95,00:00.0
Claeven  Ltd.,Services,354.25,00:00.0
Claeven  Ltd.,Services,1204.45,00:00.0
Claeven  Ltd.,Services,1417,00:00.0
Claeven  Ltd.,Services,2012.14,00:00.0
Claeven  Ltd.,Services,354.25,00:00.0
Claeven  Ltd.,Services,255.06,00:00.0
Claeven  Ltd.,Services,495.95,00:00.0
Claeven  Ltd.,Services,779.35,00:00.0
Claeven  Ltd.,Services,1629.55,00:00.0
Claeven  Ltd.,Services,495.95,00:00.0
Claeven  Ltd.,Services,1275.3,00:00.0
Claeven  Ltd.,Services,779.35,00:00.0
Claeven  Ltd.,Services,991.9,00:00.0
Claeven  Ltd.,Services,779.35,00:00.0
Claeven  Ltd.,Services,921.05,00:00.0
Claeven  Ltd.,Services,779.35,00:00.0
Claeven  Ltd.,Materials,843.12,00:00.0
Claeven  Ltd.,Services,2366.39,00:00.0
Claeven  Ltd.,Services,495.95,00:00.0
Claeven  Ltd.,Services,921.05,00:00.0
Claeven  Ltd.,Services,354.25,00:00.0
Claeven  Ltd.,Services,850.2,00:00.0
Claeven  Ltd.,Services,354.25,00:00.0
Claeven  Ltd.,Services,495.95,00:00.0
Claeven  Ltd.,Services,921.05,00:00.0
Claeven  Ltd.,Services,991.9,00:00.0
Claeven  Ltd.,Services,779.35,00:00.0
Claeven  Ltd.,Services,779.35,00:00.0
Claeven  Ltd.,Services,921.05,00:00.0
Claeven  Ltd.,Services,1417,00:00.0
Claeven  Ltd.,Services,779.35,00:00.0
Claeven  Ltd.,Services,495.95,00:00.0
Claeven  Ltd.,Services,1062.75,00:00.0
Claeven  Ltd.,Services,1275.3,00:00.0
Claeven  Ltd.,Services,921.05,00:00.0
Claeven  Ltd.,Services,495.95,00:00.0
Claeven  Ltd.,Services,354.25,00:00.0
Claeven  Ltd.,Services,779.35,00:00.0
Claeven  Ltd.,Services,2621.45,00:00.0
Claeven  Ltd.,Services,1912.95,00:00.0
Claeven  Ltd.,Services,179.85,00:00.0
Claeven  Ltd.,Services,495.95,00:00.0
Claeven  Ltd.,Services,354.25,00:00.0
Claeven  Ltd.,Services,599.5,00:00.0
Claeven  Ltd.,Services,2763.15,00:00.0
Claeven  Ltd.,Services,354.25,00:00.0
Claeven  Ltd.,Services,637.65,00:00.0
Claeven  Ltd.,Services,779.35,00:00.0
Claeven  Ltd.,Services,495.95,00:00.0
Claeven  Ltd.,Services,921.05,00:00.0
Claeven  Ltd.,Services,495.95,00:00.0
Claeven  Ltd.,Services,495.95,00:00.0
Claeven  Ltd.,Services,921.05,00:00.0
Claeven  Ltd.,Services,2054.65,00:00.0
Claeven  Ltd.,Services,495.95,00:00.0
Claeven  Ltd.,Services,850.2,00:00.0
Claeven  Ltd.,Services,779.35,00:00.0
Claeven  Ltd.,Services,354.25,00:00.0
Claeven  Ltd.,Services,495.95,00:00.0
Claeven  Ltd.,Services,921.05,00:00.0
Claeven  Ltd.,Services,1133.6,00:00.0
Claeven  Ltd.,Services,779.35,00:00.0
Claeven  Ltd.,Services,779.35,00:00.0
Claeven  Ltd.,Services,779.35,00:00.0
Claeven  Ltd.,Services,1417,00:00.0
Claeven  Ltd.,Services,495.95,00:00.0
Claeven  Ltd.,Services,318.83,00:00.0
Claeven  Ltd.,Services,495.95,00:00.0
Claeven  Ltd.,Services,495.95,00:00.0
Claeven  Ltd.,Services,850.2,00:00.0
Claeven  Ltd.,Services,637.65,00:00.0
Claeven  Ltd.,Services,1062.75,00:00.0
Claeven  Ltd.,Services,354.25,00:00.0
Claeven  Ltd.,Services,1275.3,00:00.0
Claeven  Ltd.,Services,495.95,00:00.0
Claeven  Ltd.,Services,495.95,00:00.0
Claeven  Ltd.,Services,354.25,00:00.0
Claeven  Ltd.,Services,595.14,00:00.0
Clarity Partners  Llc,Services,3997.5,00:00.0
Clarity Partners  Llc,Services,1571.34,00:00.0
Clarity Partners  Llc,Services,5890,00:00.0
Clarity Partners  Llc,Services,1571.34,00:00.0
Clarity Partners  Llc,Services,3314.68,00:00.0
Clarity Partners  Llc,Services,5372.5,00:00.0
Clarity Partners  Llc,Services,1573.34,00:00.0
Clarity Partners  Llc,Services,6018.75,00:00.0
Clarity Partners  Llc,Services,2848.75,00:00.0
Clarity Partners  Llc,Services,1797.34,00:00.0
Clarity Partners  Llc,Services,2077.34,00:00.0
Clarity Partners  Llc,Services,6208.75,00:00.0
Clarity Partners  Llc,Services,16963.75,00:00.0
Clarity Partners  Llc,Services,2869.42,00:00.0
Clarity Partners  Llc,Services,2474.33,00:00.0
Clarity Partners  Llc,Services,14053.75,00:00.0
Clarity Partners  Llc,Services,10397.5,00:00.0
Clarity Partners  Llc,Services,2815.32,00:00.0
Clarity Partners  Llc,Services,6797.5,00:00.0
Clarity Partners  Llc,Services,2357.34,00:00.0
Clark Catering Inc,Services,3850,00:00.0
Clark Catering Inc,Services,891.25,00:00.0
Clark Catering Inc,Services,5344,00:00.0
Clark Catering Inc,Services,3480,00:00.0
Clark Catering Inc,Services,490,00:00.0
Clark Catering Inc,Services,1590,00:00.0
Clark Catering Inc,Services,9840,00:00.0
Clark Catering Inc,Services,1963.75,00:00.0
Claybourne Miller,Services,52.4,00:00.0
Claybourne Miller,Services,209.6,00:00.0
Claybourne Miller,Services,83.84,00:00.0
Claybourne Miller,Services,41.92,00:00.0
Claybourne Miller,Services,41.92,00:00.0
Cleaning Specialist  Inc.,Services,717,00:00.0
Cleaning Specialist  Inc.,Services,3025.7,00:00.0
Cleaning Specialist  Inc.,Services,8893.1,00:00.0
Cleaning Specialist  Inc.,Capital Purchases,7700,00:00.0
Cleaning Specialist  Inc.,Services,2831.6,00:00.0
Cleaning Specialist  Inc.,Services,666,00:00.0
Cleaning Specialist  Inc.,Services,2098,00:00.0
Cleaning Specialist  Inc.,Services,640.2,00:00.0
Cleaning Specialist  Inc.,Services,4295.8,00:00.0
Cleaning Specialist  Inc.,Services,17325.35,00:00.0
Cleaning Specialist  Inc.,Capital Purchases,4750,00:00.0
Cleaning Specialist  Inc.,Services,11351.99,00:00.0
Cleaning Specialist  Inc.,Services,4519.5,00:00.0
Cleaning Specialist  Inc.,Services,989.65,00:00.0
Cleaning Specialist  Inc.,Services,7811.55,00:00.0
Cleaning Specialist  Inc.,Services,5988.01,00:00.0
Cleaning Specialist  Inc.,Services,4817.52,00:00.0
Cleaning Specialist  Inc.,Capital Purchases,4750,00:00.0
Cleaning Specialist  Inc.,Services,4950.75,00:00.0
Cleaning Specialist  Inc.,Services,4717.6,00:00.0
Cleaning Specialist  Inc.,Services,879.3,00:00.0
Cleaning Specialist  Inc.,Services,2558.51,00:00.0
Cleaning Specialist  Inc.,Services,9774.6,00:00.0
Cleaning Specialist  Inc.,Services,8455.28,00:00.0
Cleaning Specialist  Inc.,Services,16919.03,00:00.0
Cleaning Specialist  Inc.,Services,1157.27,00:00.0
Cleaning Specialist  Inc.,Services,11807.24,00:00.0
Cleaning Specialist  Inc.,Capital Purchases,4275,00:00.0
ClearBlade Inc.,Capital Purchases,277556.25,00:00.0
ClearBlade Inc.,Capital Purchases,138778.13,00:00.0
ClearBlade Inc.,Capital Purchases,7000,00:00.0
ClearBlade Inc.,Capital Purchases,138778.12,00:00.0
ClearBlade Inc.,Capital Purchases,3750,00:00.0
Clever Devices Ltd.,Services,708715.81,00:00.0
Clever Devices Ltd.,Services,185298.91,00:00.0
Clever Devices Ltd.,Capital Purchases,25277.53,00:00.0
Clever Devices Ltd.,Capital Purchases,25793.35,00:00.0
Clever Devices Ltd.,Capital Purchases,184932.14,00:00.0
Clever Devices Ltd.,Capital Purchases,188705.88,00:00.0
Clever Devices Ltd.,Capital Purchases,99999.9,00:00.0
Clever Devices Ltd.,Capital Purchases,98000.1,00:00.0
Clever Devices Ltd.,Capital Purchases,76975,00:00.0
CLIFTON BATES III,Services,201.54,00:00.0
CLIFTON BATES III,Services,310.86,00:00.0
CLIFTON BATES III,Services,331.37,00:00.0
CLIFTON BATES III,Services,171.74,00:00.0
CLIFTON BATES III,Services,661.16,00:00.0
CLIFTON BATES III,Services,657.62,00:00.0
CLIFTON BATES III,Services,869.97,00:00.0
CLIFTON BATES III,Services,617.08,00:00.0
CLIFTON BATES III,Services,617.01,00:00.0
CLINE AVENUE BRIDGE,Services,52.65,00:00.0
Cloudinary Inc,Services,41400,00:00.0
"Clutch Solutions, LLC",Materials,5707.56,00:00.0
"Clutch Solutions, LLC",Materials,10216.67,00:00.0
"Clutch Solutions, LLC",Materials,5187.06,00:00.0
"Clutch Solutions, LLC",Materials,5406.31,00:00.0
"Clutch Solutions, LLC",Materials,1097.1,00:00.0
"Clutch Solutions, LLC",Capital Purchases,39360,00:00.0
"Clutch Solutions, LLC",Materials,5984,00:00.0
"Clutch Solutions, LLC",Capital Purchases,46084.85,00:00.0
"Clutch Solutions, LLC",Capital Purchases,120331.52,00:00.0
"Clutch Solutions, LLC",Materials,5406.31,00:00.0
"Clutch Solutions, LLC",Capital Purchases,30867.25,00:00.0
"Clutch Solutions, LLC",Capital Purchases,166303.47,00:00.0
"Clutch Solutions, LLC",Capital Purchases,3397.97,00:00.0
"Clutch Solutions, LLC",Capital Purchases,6467.98,00:00.0
"Clutch Solutions, LLC",Capital Purchases,65374.46,00:00.0
"Clutch Solutions, LLC",Capital Purchases,89093.24,00:00.0
"Clutch Solutions, LLC",Materials,8223.24,00:00.0
"Clutch Solutions, LLC",Capital Purchases,1581.26,00:00.0
"Clutch Solutions, LLC",Capital Purchases,11938.14,00:00.0
"Clutch Solutions, LLC",Capital Purchases,53000,00:00.0
"Clutch Solutions, LLC",Materials,7779.64,00:00.0
"Clutch Solutions, LLC",Capital Purchases,44050.5,00:00.0
"Clutch Solutions, LLC",Materials,1300,00:00.0
"Clutch Solutions, LLC",Capital Purchases,10395.35,00:00.0
"Clutch Solutions, LLC",Materials,3979.38,00:00.0
"Clutch Solutions, LLC",Materials,3250,00:00.0
"Clutch Solutions, LLC",Capital Purchases,24520.36,00:00.0
"Clutch Solutions, LLC",Capital Purchases,12994.46,00:00.0
"Clutch Solutions, LLC",Materials,11665.9,00:00.0
"Clutch Solutions, LLC",Capital Purchases,3296.7,00:00.0
"Clutch Solutions, LLC",Capital Purchases,2541.18,00:00.0
"Clutch Solutions, LLC",Materials,5406.31,00:00.0
"Clutch Solutions, LLC",Materials,6878.7,00:00.0
"Clutch Solutions, LLC",Capital Purchases,23442,00:00.0
"Clutch Solutions, LLC",Capital Purchases,21625.24,00:00.0
"Clutch Solutions, LLC",Capital Purchases,283590,00:00.0
"Clutch Solutions, LLC",Capital Purchases,9915.95,00:00.0
"Clutch Solutions, LLC",Materials,2751.48,00:00.0
"Clutch Solutions, LLC",Materials,15944.46,00:00.0
"Clutch Solutions, LLC",Capital Purchases,897.12,00:00.0
"Clutch Solutions, LLC",Capital Purchases,384.48,00:00.0
"Clutch Solutions, LLC",Materials,8744.46,00:00.0
"Clutch Solutions, LLC",Materials,8276.9,00:00.0
"Clutch Solutions, LLC",Capital Purchases,9932.28,00:00.0
"Clutch Solutions, LLC",Capital Purchases,28892.02,00:00.0
"Clutch Solutions, LLC",Services,23510.48,00:00.0
Cmp Corp.,Services,14084.66,00:00.0
Cmp Corp.,Services,1226.94,00:00.0
Cmp Corp.,Services,10799.18,00:00.0
"CMPIC, LLC",Services,1350,00:00.0
"CMPIC, LLC",Services,1350,00:00.0
Cody Young,Services,52.27,00:00.0
Cohnreznick Llp,Services,1975,00:00.0
Cohnreznick Llp,Services,2574,00:00.0
Cohnreznick Llp,Services,8000,00:00.0
Cohnreznick Llp,Services,5500,00:00.0
Cohnreznick Llp,Services,4500,00:00.0
Cohnreznick Llp,Services,121228,00:00.0
Colleen F Ocon,Services,41.92,00:00.0
College of Dupage,Services,505.5,00:00.0
Collin Uyttebroeck,Services,41.92,00:00.0
Columbia Pipe & Supply,Materials,1612.83,00:00.0
Columbia Pipe & Supply,Materials,763.4,00:00.0
Columbia Pipe & Supply,Materials,1617.5,00:00.0
Columbia Pipe & Supply,Materials,3384.6,00:00.0
Columbia Pipe & Supply,Materials,1437.4,00:00.0
Columbia Pipe & Supply,Materials,970.56,00:00.0
Columbia Pipe & Supply,Materials,361.41,00:00.0
Columbia Pipe & Supply,Materials,34.15,00:00.0
Columbia Pipe & Supply,Materials,3810.28,00:00.0
Columbia Pipe & Supply,Materials,311.93,00:00.0
Columbia Pipe & Supply,Materials,2419.89,00:00.0
Columbia Pipe & Supply,Materials,1281.41,00:00.0
Columbia Pipe & Supply,Materials,13213.54,00:00.0
Columbia Pipe & Supply,Materials,107.26,00:00.0
Columbia Pipe & Supply,Materials,147.49,00:00.0
Columbia Pipe & Supply,Materials,17543.58,00:00.0
Columbia Pipe & Supply,Materials,2286.89,00:00.0
Columbia Pipe & Supply,Materials,1682.47,00:00.0
Columbia Pipe & Supply,Materials,199.57,00:00.0
Columbia Pipe & Supply,Materials,5446.3,00:00.0
Columbia Pipe & Supply,Materials,5395.87,00:00.0
Columbia Pipe & Supply,Materials,710.5,00:00.0
Columbia Pipe & Supply,Materials,432.59,00:00.0
Columbia Pipe & Supply,Materials,79.63,00:00.0
Columbia Pipe & Supply,Materials,10703.44,00:00.0
Columbia Pipe & Supply,Materials,2461.55,00:00.0
Columbia Pipe & Supply,Materials,3238.5,00:00.0
Columbia Pipe & Supply,Materials,2204.05,00:00.0
Columbia Pipe & Supply,Materials,4489.83,00:00.0
Columbia Pipe & Supply,Materials,4582.24,00:00.0
Columbia Pipe & Supply,Materials,5338.37,00:00.0
Columbia Pipe & Supply,Materials,227.43,00:00.0
Columbia Pipe & Supply,Materials,1027,00:00.0
Columbia Pipe & Supply,Materials,266.62,00:00.0
Columbia Pipe & Supply,Materials,12.25,00:00.0
Columbia Pipe & Supply,Materials,148,00:00.0
Columbia Pipe & Supply,Materials,1987.27,00:00.0
Columbia Pipe & Supply,Materials,4284.56,00:00.0
Columbia Pipe & Supply,Materials,3524.56,00:00.0
Columbia Pipe & Supply,Materials,6127.2,00:00.0
Columbia Pipe & Supply,Materials,23373.22,00:00.0
Columbia Pipe & Supply,Materials,1872.45,00:00.0
Columbia Pipe & Supply,Materials,5295.97,00:00.0
Columbia Pipe & Supply,Materials,144.64,00:00.0
Columbia Pipe & Supply,Materials,4638.68,00:00.0
Columbia Pipe & Supply,Materials,18248.86,00:00.0
Columbia Pipe & Supply,Materials,1937.55,00:00.0
Columbia Pipe & Supply,Materials,26.97,00:00.0
Columbia Pipe & Supply,Materials,1745.04,00:00.0
Columbia Pipe & Supply,Materials,7734.55,00:00.0
Columbia Pipe & Supply,Materials,5860,00:00.0
Com Ed-Real Estate Dept.  4Th Fl.,Rental Expense,11532.72,00:00.0
Comcast,Utilities,1424.19,00:00.0
Comcast,Utilities,5049.42,00:00.0
Comcast,Utilities,5092.73,00:00.0
Comcast,Utilities,1436.41,00:00.0
Comcast,Utilities,293.02,00:00.0
Comcast,Utilities,5175.81,00:00.0
Comcast,Utilities,1459.84,00:00.0
Comcast,Utilities,5339.04,00:00.0
Comcast,Utilities,1459.87,00:00.0
Comcast,Utilities,173.12,00:00.0
Comcast,Utilities,1459.62,00:00.0
Comcast,Utilities,5175.03,00:00.0
Comcast,Utilities,173.12,00:00.0
Comcast,Utilities,1459.62,00:00.0
Comcast,Utilities,5348.15,00:00.0
Comcast,Utilities,1459.62,00:00.0
Comcast,Utilities,5338.15,00:00.0
Comcast,Utilities,5246.69,00:00.0
Comcast,Utilities,1479.84,00:00.0
Comcast,Utilities,173.12,00:00.0
Comcast,Utilities,1480.2,00:00.0
Comcast,Utilities,5247.98,00:00.0
Comcast,Utilities,177.12,00:00.0
Comcast,Utilities,5247.98,00:00.0
Comcast,Utilities,1480.2,00:00.0
Comcast,Utilities,163.12,00:00.0
Comcast,Utilities,1481,00:00.0
Comcast,Utilities,5250.83,00:00.0
Comcast,Utilities,173.12,00:00.0
Comcast,Utilities,5250.83,00:00.0
Comcast,Utilities,1481,00:00.0
Comcast Business,Utilities,38545.63,00:00.0
Comcast Business,Utilities,25697.08,00:00.0
Comcast Business,Utilities,25806.18,00:00.0
Comcast Business,Utilities,38709.28,00:00.0
Comcast Business,Utilities,41337.78,00:00.0
Comcast Business,Utilities,27558.52,00:00.0
Comcast Business,Utilities,42018.2,00:00.0
Comcast Business,Utilities,28012.13,00:00.0
Comcast Business,Utilities,27636.02,00:00.0
Comcast Business,Utilities,41454.03,00:00.0
Comcast Business,Utilities,27636.02,00:00.0
Comcast Business,Utilities,41454.03,00:00.0
Comcast Business,Utilities,27636.02,00:00.0
Comcast Business,Utilities,41454.03,00:00.0
Comcast Business,Utilities,41475.07,00:00.0
Comcast Business,Utilities,27650.05,00:00.0
Comcast Business,Utilities,41857.82,00:00.0
Comcast Business,Utilities,27905.21,00:00.0
Comcast Business,Utilities,28319.96,00:00.0
Comcast Business,Utilities,42479.95,00:00.0
Comcast Business,Utilities,15624.68,00:00.0
Comcast Business,Utilities,55396.57,00:00.0
Comcast Business,Utilities,30328.5,00:00.0
Comcast Business,Utilities,45492.75,00:00.0
Commercial Group Lifting Products,Services,660,00:00.0
Commercial Group Lifting Products,Services,571.5,00:00.0
Commercial Group Lifting Products,Materials,369.42,00:00.0
Commercial Tire Service,Services,25,00:00.0
Commercial Tire Service,Services,30,00:00.0
Commercial Tire Service,Services,33,00:00.0
Commercial Tire Service,Services,326.65,00:00.0
Commercial Tire Service,Services,90,00:00.0
Commercial Tire Service,Materials,753.3,00:00.0
Commercial Tire Service,Services,426,00:00.0
Commercial Tire Service,Services,398,00:00.0
Commercial Tire Service,Materials,539.08,00:00.0
Commercial Tire Service,Services,1311.1,00:00.0
Commercial Tire Service,Services,25,00:00.0
Commercial Tire Service,Services,33,00:00.0
Commercial Tire Service,Services,347.93,00:00.0
Commercial Tire Service,Services,243.5,00:00.0
Commercial Tire Service,Services,48,00:00.0
Commercial Tire Service,Services,308.44,00:00.0
Commercial Tire Service,Services,415.86,00:00.0
Commercial Tire Service,Services,55,00:00.0
Commercial Tire Service,Services,327.5,00:00.0
Commercial Tire Service,Services,1384.64,00:00.0
Commercial Tire Service,Services,849.72,00:00.0
Commercial Tire Service,Services,132,00:00.0
Commercial Tire Service,Services,1473.82,00:00.0
Commercial Tire Service,Materials,5,00:00.0
Commercial Tire Service,Services,315,00:00.0
Commercial Tire Service,Services,35,00:00.0
Commercial Tire Service,Services,66,00:00.0
Commercial Tire Service,Services,420.86,00:00.0
Commercial Tire Service,Services,30,00:00.0
Commercial Tire Service,Services,143.5,00:00.0
Commercial Tire Service,Services,125,00:00.0
Commercial Tire Service,Materials,2454,00:00.0
Commercial Tire Service,Services,268,00:00.0
Commonwealth Edison,Utilities,527.9,00:00.0
Commonwealth Edison,Utilities,623.4,00:00.0
Commonwealth Edison,Utilities,111.74,00:00.0
Commonwealth Edison,Utilities,1615.65,00:00.0
Commonwealth Edison,Utilities,27.56,00:00.0
Commonwealth Edison,Utilities,92.03,00:00.0
Commonwealth Edison,Utilities,55.37,00:00.0
Commonwealth Edison,Utilities,182.52,00:00.0
Commonwealth Edison,Utilities,88.3,00:00.0
Commonwealth Edison,Utilities,65.14,00:00.0
Commonwealth Edison,Utilities,173.22,00:00.0
Commonwealth Edison,Utilities,31.94,00:00.0
Commonwealth Edison,Utilities,28.34,00:00.0
Commonwealth Edison,Utilities,344.72,00:00.0
Commonwealth Edison,Utilities,46.59,00:00.0
Commonwealth Edison,Utilities,247.73,00:00.0
Commonwealth Edison,Utilities,131.64,00:00.0
Commonwealth Edison,Utilities,23.24,00:00.0
Commonwealth Edison,Utilities,1366.46,00:00.0
Commonwealth Edison,Utilities,34846.16,00:00.0
Commonwealth Edison,Utilities,88.76,00:00.0
Commonwealth Edison,Utilities,22.91,00:00.0
Commonwealth Edison,Utilities,118.72,00:00.0
Commonwealth Edison,Utilities,959.28,00:00.0
Commonwealth Edison,Utilities,177.19,00:00.0
Commonwealth Edison,Utilities,7.45,00:00.0
Commonwealth Edison,Utilities,2475.99,00:00.0
Commonwealth Edison,Utilities,55.23,00:00.0
Commonwealth Edison,Utilities,113.29,00:00.0
Commonwealth Edison,Utilities,130.03,00:00.0
Commonwealth Edison,Utilities,84.63,00:00.0
Commonwealth Edison,Utilities,216.2,00:00.0
Commonwealth Edison,Utilities,154.12,00:00.0
Commonwealth Edison,Utilities,1615.89,00:00.0
Commonwealth Edison,Utilities,265.81,00:00.0
Commonwealth Edison,Utilities,441.94,00:00.0
Commonwealth Edison,Utilities,335.88,00:00.0
Commonwealth Edison,Utilities,27.95,00:00.0
Commonwealth Edison,Utilities,34.43,00:00.0
Commonwealth Edison,Utilities,1278.85,00:00.0
Commonwealth Edison,Utilities,37.36,00:00.0
Commonwealth Edison,Utilities,127.94,00:00.0
Commonwealth Edison,Utilities,76350.19,00:00.0
Commonwealth Edison,Utilities,102.66,00:00.0
Commonwealth Edison,Utilities,27.55,00:00.0
Commonwealth Edison,Utilities,230.48,00:00.0
Commonwealth Edison,Utilities,58.02,00:00.0
Commonwealth Edison,Utilities,126.55,00:00.0
Commonwealth Edison,Utilities,1891.68,00:00.0
Commonwealth Edison,Utilities,3766.81,00:00.0
Commonwealth Edison,Utilities,37.87,00:00.0
Commonwealth Edison,Utilities,148.13,00:00.0
Commonwealth Edison,Utilities,88.34,00:00.0
Commonwealth Edison,Utilities,339.52,00:00.0
Commonwealth Edison,Utilities,51.12,00:00.0
Commonwealth Edison,Utilities,23.38,00:00.0
Commonwealth Edison,Utilities,153.91,00:00.0
Commonwealth Edison,Utilities,24.18,00:00.0
Commonwealth Edison,Utilities,2315.32,00:00.0
Commonwealth Edison,Utilities,187.47,00:00.0
Commonwealth Edison,Utilities,558.97,00:00.0
Commonwealth Edison,Utilities,23.38,00:00.0
Commonwealth Edison,Utilities,38.36,00:00.0
Commonwealth Edison,Utilities,28.53,00:00.0
Commonwealth Edison,Utilities,1440.23,00:00.0
Commonwealth Edison,Utilities,46,00:00.0
Commonwealth Edison,Utilities,32.41,00:00.0
Commonwealth Edison,Utilities,166.4,00:00.0
Commonwealth Edison,Utilities,53.31,00:00.0
Commonwealth Edison,Utilities,106501.01,00:00.0
Commonwealth Edison,Utilities,163.02,00:00.0
Commonwealth Edison,Utilities,107.78,00:00.0
Commonwealth Edison,Utilities,30.07,00:00.0
Commonwealth Edison,Utilities,1204.06,00:00.0
Commonwealth Edison,Utilities,147.83,00:00.0
Commonwealth Edison,Utilities,185.49,00:00.0
Commonwealth Edison,Utilities,629.54,00:00.0
Commonwealth Edison,Utilities,37.18,00:00.0
Commonwealth Edison,Utilities,181.77,00:00.0
Commonwealth Edison,Utilities,25.92,00:00.0
Commonwealth Edison,Utilities,1389.84,00:00.0
Commonwealth Edison,Utilities,387.09,00:00.0
Commonwealth Edison,Utilities,138.32,00:00.0
Commonwealth Edison,Utilities,1328.48,00:00.0
Commonwealth Edison,Utilities,141.53,00:00.0
Commonwealth Edison,Utilities,347.58,00:00.0
Commonwealth Edison,Utilities,261.58,00:00.0
Commonwealth Edison,Utilities,24.97,00:00.0
Commonwealth Edison,Utilities,86.92,00:00.0
Commonwealth Edison,Utilities,51.92,00:00.0
Commonwealth Edison,Utilities,67.41,00:00.0
Commonwealth Edison,Utilities,46.76,00:00.0
Commonwealth Edison,Utilities,606.5,00:00.0
Commonwealth Edison,Utilities,435.59,00:00.0
Commonwealth Edison,Utilities,395.01,00:00.0
Commonwealth Edison,Utilities,54.38,00:00.0
Commonwealth Edison,Utilities,102.95,00:00.0
Commonwealth Edison,Utilities,1393.74,00:00.0
Commonwealth Edison,Utilities,210.87,00:00.0
Commonwealth Edison,Utilities,112.42,00:00.0
Commonwealth Edison,Utilities,60.06,00:00.0
Commonwealth Edison,Utilities,136.91,00:00.0
Commonwealth Edison,Utilities,243.08,00:00.0
Commonwealth Edison,Utilities,30.06,00:00.0
Commonwealth Edison,Utilities,767.92,00:00.0
Commonwealth Edison,Utilities,344.48,00:00.0
Commonwealth Edison,Utilities,185.71,00:00.0
Commonwealth Edison,Utilities,125.3,00:00.0
Commonwealth Edison,Utilities,94.31,00:00.0
Commonwealth Edison,Utilities,111778.64,00:00.0
Commonwealth Edison,Utilities,1230.25,00:00.0
Commonwealth Edison,Utilities,2690.22,00:00.0
Commonwealth Edison,Utilities,152.41,00:00.0
Commonwealth Edison,Utilities,1902.89,00:00.0
Commonwealth Edison,Utilities,216.02,00:00.0
Commonwealth Edison,Utilities,28.68,00:00.0
Commonwealth Edison,Utilities,350.2,00:00.0
Commonwealth Edison,Utilities,48.86,00:00.0
Commonwealth Edison,Utilities,298.54,00:00.0
Commonwealth Edison,Utilities,41.63,00:00.0
Commonwealth Edison,Utilities,47,00:00.0
Commonwealth Edison,Utilities,150.87,00:00.0
Commonwealth Edison,Utilities,23.72,00:00.0
Commonwealth Edison,Utilities,1253.21,00:00.0
Commonwealth Edison,Utilities,185.77,00:00.0
Commonwealth Edison,Utilities,300.35,00:00.0
Commonwealth Edison,Utilities,60.66,00:00.0
Commonwealth Edison,Utilities,301.68,00:00.0
Commonwealth Edison,Utilities,42.65,00:00.0
Commonwealth Edison,Utilities,52.25,00:00.0
Commonwealth Edison,Utilities,408.42,00:00.0
Commonwealth Edison,Utilities,50.81,00:00.0
Commonwealth Edison,Utilities,46.47,00:00.0
Commonwealth Edison,Utilities,209.15,00:00.0
Commonwealth Edison,Utilities,999.86,00:00.0
Commonwealth Edison,Utilities,289.73,00:00.0
Commonwealth Edison,Utilities,129328.87,00:00.0
Commonwealth Edison,Utilities,915.93,00:00.0
Commonwealth Edison,Utilities,172.28,00:00.0
Commonwealth Edison,Utilities,57.65,00:00.0
Commonwealth Edison,Utilities,10.26,00:00.0
Commonwealth Edison,Utilities,138.98,00:00.0
Commonwealth Edison,Utilities,79.15,00:00.0
Commonwealth Edison,Utilities,263.81,00:00.0
Commonwealth Edison,Utilities,23.38,00:00.0
Commonwealth Edison,Utilities,192.06,00:00.0
Commonwealth Edison,Utilities,2585.44,00:00.0
Commonwealth Edison,Utilities,23.06,00:00.0
Commonwealth Edison,Utilities,150.94,00:00.0
Commonwealth Edison,Utilities,143.93,00:00.0
Commonwealth Edison,Utilities,273.35,00:00.0
Commonwealth Edison,Utilities,9.99,00:00.0
Commonwealth Edison,Utilities,39.57,00:00.0
Commonwealth Edison,Utilities,85.6,00:00.0
Commonwealth Edison,Utilities,44.34,00:00.0
Commonwealth Edison,Utilities,211.49,00:00.0
Commonwealth Edison,Utilities,313.25,00:00.0
Commonwealth Edison,Utilities,26.36,00:00.0
Commonwealth Edison,Utilities,695.07,00:00.0
Commonwealth Edison,Utilities,40.77,00:00.0
Commonwealth Edison,Utilities,70.72,00:00.0
Commonwealth Edison,Utilities,160.33,00:00.0
Commonwealth Edison,Utilities,85.07,00:00.0
Commonwealth Edison,Utilities,292.34,00:00.0
Commonwealth Edison,Utilities,2229.24,00:00.0
Commonwealth Edison,Utilities,73.36,00:00.0
Commonwealth Edison,Utilities,112301.46,00:00.0
Commonwealth Edison,Utilities,23.06,00:00.0
Commonwealth Edison,Utilities,257.74,00:00.0
Commonwealth Edison,Utilities,307.67,00:00.0
Commonwealth Edison,Utilities,693.63,00:00.0
Commonwealth Edison,Utilities,130602.01,00:00.0
Commonwealth Edison,Utilities,36.98,00:00.0
Commonwealth Edison,Utilities,62.22,00:00.0
Commonwealth Edison,Utilities,136.53,00:00.0
Commonwealth Edison,Utilities,190.11,00:00.0
Commonwealth Edison,Utilities,145.8,00:00.0
Commonwealth Edison,Utilities,186.13,00:00.0
Commonwealth Edison,Utilities,70.23,00:00.0
Commonwealth Edison,Utilities,607.11,00:00.0
Commonwealth Edison,Utilities,58.53,00:00.0
Commonwealth Edison,Utilities,83.42,00:00.0
Commonwealth Edison,Utilities,608.77,00:00.0
Commonwealth Edison,Utilities,117748.17,00:00.0
Commonwealth Edison,Utilities,90.09,00:00.0
Commonwealth Edison,Utilities,39.09,00:00.0
Commonwealth Edison,Utilities,120.81,00:00.0
Commonwealth Edison,Utilities,163.12,00:00.0
Commonwealth Edison,Utilities,23.42,00:00.0
Commonwealth Edison,Utilities,46.55,00:00.0
Commonwealth Edison,Utilities,58.36,00:00.0
Commonwealth Edison,Utilities,81.31,00:00.0
Commonwealth Edison,Utilities,38.55,00:00.0
Commonwealth Edison,Utilities,48.61,00:00.0
Commonwealth Edison,Utilities,23.13,00:00.0
Commonwealth Edison,Utilities,174.27,00:00.0
Commonwealth Edison,Utilities,161.76,00:00.0
Commonwealth Edison,Utilities,46.29,00:00.0
Commonwealth Edison,Utilities,260.01,00:00.0
Commonwealth Edison,Utilities,121.59,00:00.0
Commonwealth Edison,Utilities,121.28,00:00.0
Commonwealth Edison,Utilities,23.13,00:00.0
Commonwealth Edison,Utilities,773.84,00:00.0
Commonwealth Edison,Utilities,126.39,00:00.0
Commonwealth Edison,Utilities,87.24,00:00.0
Commonwealth Edison,Utilities,154.72,00:00.0
Commonwealth Edison,Capital Purchases,4776.1,00:00.0
Commonwealth Edison,Utilities,131.16,00:00.0
Commonwealth Edison,Utilities,2766.17,00:00.0
Commonwealth Edison,Utilities,152.62,00:00.0
Commonwealth Edison,Utilities,864.65,00:00.0
Commonwealth Edison,Utilities,157.47,00:00.0
Commonwealth Edison,Utilities,144431.53,00:00.0
Commonwealth Edison,Utilities,121756.19,00:00.0
Commonwealth Edison,Utilities,121.01,00:00.0
Commonwealth Edison,Utilities,23.42,00:00.0
Commonwealth Edison,Utilities,52.68,00:00.0
Commonwealth Edison,Utilities,23.13,00:00.0
Commonwealth Edison,Utilities,34.19,00:00.0
Commonwealth Edison,Utilities,49.53,00:00.0
Commonwealth Edison,Utilities,944.25,00:00.0
Commonwealth Edison,Utilities,55.31,00:00.0
Commonwealth Edison,Utilities,338.05,00:00.0
Commonwealth Edison,Utilities,159.42,00:00.0
Commonwealth Edison,Utilities,120.19,00:00.0
Commonwealth Edison,Utilities,156.02,00:00.0
Commonwealth Edison,Utilities,314.24,00:00.0
Commonwealth Edison,Utilities,588.16,00:00.0
Commonwealth Edison,Utilities,381.68,00:00.0
Commonwealth Edison,Utilities,107.07,00:00.0
Commonwealth Edison,Utilities,2431.29,00:00.0
Commonwealth Edison,Utilities,634.54,00:00.0
Commonwealth Edison,Utilities,23.13,00:00.0
Commonwealth Edison,Utilities,173.14,00:00.0
Commonwealth Edison,Utilities,212.46,00:00.0
Commonwealth Edison,Utilities,462.55,00:00.0
Commonwealth Edison,Utilities,226761.77,00:00.0
Commonwealth Edison,Utilities,249.29,00:00.0
Commonwealth Edison,Utilities,55.68,00:00.0
Commonwealth Edison,Utilities,42.26,00:00.0
Commonwealth Edison,Utilities,525.84,00:00.0
Commonwealth Edison,Utilities,142.52,00:00.0
Commonwealth Edison,Utilities,23.42,00:00.0
Commonwealth Edison,Utilities,55.52,00:00.0
Commonwealth Edison,Utilities,226.78,00:00.0
Commonwealth Edison,Utilities,90.1,00:00.0
Commonwealth Edison,Utilities,51.64,00:00.0
Commonwealth Edison,Utilities,322.74,00:00.0
Commonwealth Edison,Utilities,110.28,00:00.0
Commonwealth Edison,Utilities,50.38,00:00.0
Commonwealth Edison,Utilities,23.23,00:00.0
Commonwealth Edison,Utilities,46.98,00:00.0
Commonwealth Edison,Utilities,92.72,00:00.0
Commonwealth Edison,Utilities,709.89,00:00.0
Commonwealth Edison,Utilities,116.15,00:00.0
Commonwealth Edison,Utilities,894.36,00:00.0
Commonwealth Edison,Utilities,244.91,00:00.0
Commonwealth Edison,Utilities,190.28,00:00.0
Commonwealth Edison,Utilities,132365.49,00:00.0
Commonwealth Edison,Utilities,3012.23,00:00.0
Commonwealth Edison,Utilities,160.05,00:00.0
Commonwealth Edison,Utilities,672.15,00:00.0
Commonwealth Edison,Utilities,23.13,00:00.0
Commonwealth Edison,Utilities,50.5,00:00.0
Commonwealth Edison,Utilities,23.43,00:00.0
Commonwealth Edison,Utilities,89.68,00:00.0
Commonwealth Edison,Utilities,137.05,00:00.0
Commonwealth Edison,Utilities,66.88,00:00.0
Commonwealth Edison,Utilities,202630.79,00:00.0
Commonwealth Edison,Utilities,1063.61,00:00.0
Commonwealth Edison,Utilities,107.51,00:00.0
Commonwealth Edison,Utilities,38.7,00:00.0
Commonwealth Edison,Utilities,523.6,00:00.0
Commonwealth Edison,Utilities,231.47,00:00.0
Commonwealth Edison,Utilities,50.91,00:00.0
Commonwealth Edison,Utilities,184148.09,00:00.0
Commonwealth Edison,Utilities,23.14,00:00.0
Commonwealth Edison,Utilities,223.48,00:00.0
Commonwealth Edison,Utilities,657.1,00:00.0
Commonwealth Edison,Utilities,54.97,00:00.0
Commonwealth Edison,Utilities,119.35,00:00.0
Commonwealth Edison,Utilities,85.86,00:00.0
Commonwealth Edison,Utilities,237.54,00:00.0
Commonwealth Edison,Utilities,172.22,00:00.0
Commonwealth Edison,Utilities,934.47,00:00.0
Commonwealth Edison,Utilities,66.46,00:00.0
Commonwealth Edison,Utilities,2772.89,00:00.0
Commonwealth Edison,Utilities,23.88,00:00.0
Commonwealth Edison,Utilities,15.65,00:00.0
Commonwealth Edison,Utilities,185832.38,00:00.0
Commonwealth Edison,Utilities,126.97,00:00.0
Commonwealth Edison,Utilities,53.87,00:00.0
Commonwealth Edison,Utilities,23.48,00:00.0
Commonwealth Edison,Utilities,202.71,00:00.0
Commonwealth Edison,Utilities,50.13,00:00.0
Commonwealth Edison,Utilities,225.74,00:00.0
Commonwealth Edison,Utilities,23.46,00:00.0
Commonwealth Edison,Utilities,369.5,00:00.0
Commonwealth Edison,Utilities,312.39,00:00.0
Commonwealth Edison,Utilities,69.41,00:00.0
Commonwealth Edison,Utilities,38.71,00:00.0
Commonwealth Edison,Utilities,755.67,00:00.0
Commonwealth Edison,Utilities,47.06,00:00.0
Commonwealth Edison,Utilities,133.48,00:00.0
Commonwealth Edison,Utilities,49.48,00:00.0
Commonwealth Edison,Utilities,149.67,00:00.0
Commonwealth Edison,Utilities,183.58,00:00.0
Commonwealth Edison,Utilities,259.82,00:00.0
Commonwealth Edison,Utilities,24.96,00:00.0
Commonwealth Edison,Utilities,48.74,00:00.0
Commonwealth Edison,Utilities,752.6,00:00.0
Commonwealth Edison,Utilities,136.85,00:00.0
Commonwealth Edison,Utilities,602.89,00:00.0
Commonwealth Edison,Utilities,43.47,00:00.0
Commonwealth Edison,Utilities,122.91,00:00.0
Commonwealth Edison,Utilities,586.02,00:00.0
Commonwealth Edison,Utilities,23.24,00:00.0
Commonwealth Edison,Utilities,45.55,00:00.0
Commonwealth Edison,Utilities,598.51,00:00.0
Commonwealth Edison,Utilities,3033.82,00:00.0
Commonwealth Edison,Utilities,94.03,00:00.0
Commonwealth Edison,Utilities,110.01,00:00.0
Commonwealth Edison,Utilities,172.19,00:00.0
Commonwealth Edison,Utilities,984.02,00:00.0
Commonwealth Edison,Utilities,170.23,00:00.0
Commonwealth Edison,Utilities,50.14,00:00.0
Commonwealth Edison,Utilities,119.08,00:00.0
Commonwealth Edison,Utilities,23.14,00:00.0
Commonwealth Edison,Utilities,240.57,00:00.0
Commonwealth Edison,Utilities,23.46,00:00.0
Commonwealth Edison,Utilities,46.04,00:00.0
Commonwealth Edison,Utilities,232.68,00:00.0
Commonwealth Edison,Utilities,812.48,00:00.0
Commonwealth Edison,Utilities,48.78,00:00.0
Commonwealth Edison,Utilities,23.14,00:00.0
Commonwealth Edison,Utilities,3065.03,00:00.0
Commonwealth Edison,Utilities,630.8,00:00.0
Commonwealth Edison,Utilities,185057.97,00:00.0
Commonwealth Edison,Utilities,45.06,00:00.0
Commonwealth Edison,Utilities,198.33,00:00.0
Commonwealth Edison,Utilities,233.88,00:00.0
Commonwealth Edison,Utilities,64.34,00:00.0
Commonwealth Edison,Utilities,53.71,00:00.0
Commonwealth Edison,Utilities,163.68,00:00.0
Commonwealth Edison,Utilities,149.8,00:00.0
Commonwealth Edison,Utilities,55.75,00:00.0
Commonwealth Edison,Utilities,236804.3,00:00.0
Commonwealth Edison,Utilities,561.6,00:00.0
Commonwealth Edison,Utilities,182.43,00:00.0
Commonwealth Edison,Utilities,23.14,00:00.0
Commonwealth Edison,Utilities,65.17,00:00.0
Commonwealth Edison,Utilities,57.76,00:00.0
Commonwealth Edison,Utilities,1046.02,00:00.0
Commonwealth Edison,Utilities,269.79,00:00.0
Commonwealth Edison,Utilities,24.9,00:00.0
Commonwealth Edison,Utilities,169.16,00:00.0
Commonwealth Edison,Utilities,202.52,00:00.0
Commonwealth Edison,Utilities,42.2,00:00.0
Commonwealth Edison,Utilities,386.92,00:00.0
Commonwealth Edison,Utilities,23.46,00:00.0
Commonwealth Edison,Utilities,796.16,00:00.0
Commonwealth Edison,Utilities,34.65,00:00.0
Commonwealth Edison,Utilities,93.77,00:00.0
Commonwealth Edison,Utilities,1675.59,00:00.0
Commonwealth Edison,Utilities,23.14,00:00.0
Commonwealth Edison,Utilities,2079.98,00:00.0
Commonwealth Edison,Utilities,1058.79,00:00.0
Commonwealth Edison Co.,Capital Purchases,28272.5,00:00.0
Commuter Rail Coalition,Services,31500,00:00.0
Commuter Rail Coalition,Services,800,00:00.0
Commuter Rail Construction Team Llc,Capital Purchases,9806.95,00:00.0
Commuter Rail Construction Team Llc,Capital Purchases,13073.26,00:00.0
Commuter Rail Construction Team Llc,Capital Purchases,9040.65,00:00.0
Commuter Rail Construction Team Llc,Capital Purchases,12437.78,00:00.0
Commuter Rail Construction Team Llc,Capital Purchases,2322.77,00:00.0
Commuter Rail Construction Team Llc,Capital Purchases,8042.49,00:00.0
Commuter Rail Construction Team Llc,Capital Purchases,18438.85,00:00.0
Commuter Rail Construction Team Llc,Capital Purchases,15044.45,00:00.0
Commuter Rail Construction Team Llc,Capital Purchases,12098.76,00:00.0
Commuter Rail Construction Team Llc,Capital Purchases,6855.09,00:00.0
Commuter Rail Construction Team Llc,Capital Purchases,36278.07,00:00.0
Commuter Rail Construction Team Llc,Capital Purchases,5536.13,00:00.0
"COMPIN, INC.",Materials,1112,00:00.0
"COMPIN, INC.",Materials,7321,00:00.0
"COMPIN, INC.",Materials,33616.75,00:00.0
"COMPIN, INC.",Materials,1883,00:00.0
"COMPIN, INC.",Materials,9274.9,00:00.0
"COMPIN, INC.",Services,672,00:00.0
"COMPIN, INC.",Materials,31022.8,00:00.0
"Compliance Engineering Products and Services, Inc.",Materials,1610,00:00.0
Computer Aid  Inc.,Services,197288.8,00:00.0
Computer Aid  Inc.,Services,29761.68,00:00.0
Computer Aid  Inc.,Services,9898.02,00:00.0
Computer Aid  Inc.,Services,229323.6,00:00.0
Computer Aid  Inc.,Services,18109.46,00:00.0
Computer Aid  Inc.,Services,203678.58,00:00.0
Computer Aid  Inc.,Services,195073.6,00:00.0
Computer Aid  Inc.,Services,6130.1,00:00.0
Computer Aid  Inc.,Services,1907.18,00:00.0
Computer Aid  Inc.,Services,624183.44,00:00.0
Computer Aid  Inc.,Services,327.18,00:00.0
Computer Aid  Inc.,Services,230683.53,00:00.0
Computer Aid  Inc.,Services,247038.26,00:00.0
Computer Aid  Inc.,Services,185794.44,00:00.0
Comto,Services,500,00:00.0
Comto,Services,250,00:00.0
"Conceal, Inc",Services,9500,00:00.0
Conklin & Conklin LLC,Claims & Insurance,24863,00:00.0
Conklin & Conklin LLC,Claims & Insurance,28565,00:00.0
Conklin & Conklin LLC,Claims & Insurance,5375,00:00.0
Conklin & Conklin LLC,Claims & Insurance,1225,00:00.0
Conklin & Conklin LLC,Claims & Insurance,49535,00:00.0
Conklin & Conklin LLC,Claims & Insurance,6250,00:00.0
Conklin & Conklin LLC,Claims & Insurance,66380.5,00:00.0
Conklin & Conklin LLC,Claims & Insurance,2575,00:00.0
Conklin & Conklin LLC,Claims & Insurance,70782.5,00:00.0
Conklin & Conklin LLC,Services,657.5,00:00.0
Conklin & Conklin LLC,Claims & Insurance,959,00:00.0
Conklin & Conklin LLC,Claims & Insurance,12500,00:00.0
Conklin & Conklin LLC,Services,416,00:00.0
Conklin & Conklin LLC,Claims & Insurance,15775.72,00:00.0
Conklin & Conklin LLC,Claims & Insurance,600,00:00.0
Conklin & Conklin LLC,Services,6302.5,00:00.0
Conklin & Conklin LLC,Claims & Insurance,82785,00:00.0
Conklin & Conklin LLC,Services,448,00:00.0
Conklin & Conklin LLC,Claims & Insurance,82241.25,00:00.0
Conklin & Conklin LLC,Services,5716,00:00.0
Conklin & Conklin LLC,Services,7590,00:00.0
Conklin & Conklin LLC,Claims & Insurance,43063,00:00.0
Conklin & Conklin LLC,Claims & Insurance,29145.05,00:00.0
Conklin & Conklin LLC,Services,390,00:00.0
Conklin & Conklin LLC,Claims & Insurance,64734,00:00.0
Connie Coffin,Services,41.92,00:00.0
Connie Coffin,Services,14.41,00:00.0
Connie Coffin,Services,14.41,00:00.0
Constance Valkan,Services,2520,00:00.0
Constance Valkan,Services,840,00:00.0
Constance Valkan,Services,2145,00:00.0
Cook County Assessors Office,Services,50,00:00.0
Cook County Collector,Services,252,00:00.0
Cook County Human Trafficking Task Force,Services,175,00:00.0
Cook County Human Trafficking Task Force,Services,175,00:00.0
Cook County Regional Organized Crime Task Force,Services,100,00:00.0
Cook County Regional Organized Crime Task Force,Services,100,00:00.0
Cook County Regional Organized Crime Task Force,Services,100,00:00.0
Cook County Regional Organized Crime Task Force,Services,100,00:00.0
Cook County Sheriffs Police Finance Dept. Rm 106,Services,251074.98,00:00.0
Cook County Sheriffs Police Finance Dept. Rm 106,Services,251074.98,00:00.0
Cook County Sheriffs Police Finance Dept. Rm 106,Services,167383.32,00:00.0
Cook County Sheriffs Police Finance Dept. Rm 106,Services,265897.34,00:00.0
Corey Brown,Services,145.41,00:00.0
Corey Brown,Services,37.99,00:00.0
Corey Brown,Services,124.45,00:00.0
Corey Brown,Services,48.47,00:00.0
Corey Brown,Services,96.94,00:00.0
Corey Brown,Services,193.88,00:00.0
Corey Brown,Services,158.51,00:00.0
Corey Brown,Services,145.41,00:00.0
Corey Brown,Services,27.51,00:00.0
Corey Brown,Services,145.41,00:00.0
Corey Brown,Services,27.51,00:00.0
Corinna Gallardo-Jerbis,Services,90,00:00.0
Cornell D. Smith,Services,5250,00:00.0
Corner Bakery,Services,737,00:00.0
"Cornerstone Staffing Solutions, Inc. DBA Arlington Resources",Services,1850,00:00.0
"Cornerstone Staffing Solutions, Inc. DBA Arlington Resources",Services,15654.7,00:00.0
